{"text_format":"1","workbook":"xlsx","n_sheets":4,"sheets":["Contratistas","Instrucciones","Formato de Causación","Lista de Chequeo"],"not_rendered":{"charts":0,"images":3,"macros":1,"external_links":0,"defined_names":1,"comments":0,"pivot_tables":0},"unopened":[],"bounds":{"document_bytes":16777216,"sheet_cells":100000,"rows_first":2000,"rows_last":500,"rows_between":2000,"halvings":0,"cell_chars":16384,"cell_head_chars":4096},"cells_cut":0,"cells_raw":0,"read":"whole","date_system":"1900"}

{"sheet":"Contratistas","index":0,"n_rows":3616,"n_cols":2,"rows_kept":3616,"cut":false,"hidden":true,"merged":[]}
["DOC_CONTRATISTA","CONTRATISTA"]
[14563,"LUIS EMIRO VALENCIA SANCHEZ"]
[334469,"MIGUEL ANGEL VARGAS HERNANDEZ"]
[404525,"ELMER DANIEL RAMIREZ RAMIREZ"]
[659175,"CRISTHY MAIRENE VIERA TORTOZA"]
[1593098,"NERLY PEREA FLOREZ"]
[2230529,"DISRAELI LABRADOR FORERO       "]
[2940619,"JOAQUIN ALVARO FLOREZ BERNAL"]
[2971257,"CARDOSO PUENTES OSCAR AUGUSTO"]
[3002612,"JAIME GOMEZ CAMACHO"]
[3069296,"JOSE DE JESUS ZAMBRANO AVELLANEDA"]
[3077415,"PEDRO JULIO MAHECHA AVILA"]
[3081246,"JOSE MANUEL MAHECHA MAHECHA"]
[3087150,"ALEJANDRO CESPEDES AROCA"]
[3106413,"EDGAR JUVENAL RAMIREZ PEREZ"]
[3132436,"DALTON EMILIO PEREA LUNA"]
[3226959,"NELSON MUÑOZ PARDO"]
[3244416,"ALBERTO MARTINEZ MORAES"]
[3249841,"BEJARANO LUIS HERNANDO "]
[3351764,"JAVIER OMAR RUIZ ARROYAVE"]
[3839584,"JOSE VALENTIN CASTILLO CONTRERAS     "]
[4121211,"CASTILLO ECHEVERRY FRANCISCO JAVIER"]
[4149107,"RAUL EDUARDO ROMERO TOLOZA"]
[4190630,"JULIO CESAR VASQUEZ HIGUERA"]
[4191642,"AVILA PULIDO JAIME ADALBERTO"]
[4216587,"JOSUE FRANCISCO BARRERA AVELLA"]
[4229130,"ECK MANUEL IGNACIO RIVERA ALDANA"]
[4461053,"GABRIEL ARTURO WASORNA ARCE"]
[4513548,"JULIAN ANDRES ANGARITA BETANCUR     "]
[4597995,"JOSE ARLEY MINA CARDONA       "]
[4684518,"CARLOS ANTONIO VIDAL ANGULO      "]
[4752354,"CABRERA CORTEZ ELMER "]
[4825199,"PRESENTACION MOSQUERA MOSQUERA     "]
[4826453,"GLAUCOR ENRIQUE DIAZ ARBOLEDA"]
[4832984,"ARISTARCO URRUTIA MOSQUERA"]
[4884303,"RODRIGO CHARRY "]
[5107833,"ESPELETA GAZCON RUBEN DARIO"]
[5165478,"JORGE ALFREDO VERGARA BRITO"]
[5174143,"RODRIGUEZ BALLESTEROS CARLOS HERNANDO"]
[5291253,"ARIEL ROSEBEL PALACIOS ANGULO"]
[5338076,"FERNANDO RIASCOS GUERRERO"]
[5764873,"CAMPO ANIBAL CRUZ MARTINEZ"]
[5820510,"ALCAZAR MANRIQUE JUAN GUILLERMO"]
[5821973,"LEMNY GENARO LEZAMA ESPINOSA"]
[5822356,"OSCAR ANDRES ROSAS PAEZ"]
[5824835,"MAURICIO ANDRES SANCHEZ MORA"]
[5828321,"WILSON RODRIGUEZ YATE"]
[5831620,"RICAURTE TARQUINO BECERRA"]
[5864293,"JOSE WILLIAM BARRERO LOZANO"]
[5882208,"MACLOVIO POLANIA GONZALEZ"]
[5893199,"GUILLERMO SANCHEZ PRIETO"]
[5924348,"JOSE OTONIEL VALENCIA CARDONA"]
[5946109,"EDUARDO SALAZAR HERNANDEZ"]
[5946316,"CESAREO GALVEZ PERDOMO       "]
[5964220,"ARISTOBULO BARRIOS CHICO "]
[5969462,"ALPE MORENO EDGAR "]
[5970161,"JOSE GUILLERMO LOZANO GALINDO"]
[5972087,"JHON EDWIN MACIAS SANCHEZ"]
[5976178,"PEDRO ANTONIO BOCANEGRA ZABALA"]
[5976183,"GONGORA REINOSO HUGO ALFONSO"]
[5976257,"BOCANEGRA ZABALA JULIO HERNAN"]
[5977153,"ABDONIAS VERA CABRERA"]
[5978088,"JOSE RENE ORTIZ GOMEZ"]
[5978841,"MAXIMILIANO RODRIGUEZ SANCHEZ"]
[6008669,"ARIAS GONZALEZ JOSE LEONARDO"]
[6013439,"CRUZ ALONSO JOSE GEFERSON"]
[6021441,"ARCESIO VELEZ GARZON"]
[6228346,"JHON JAIRO HURTADO OCORO"]
[6246442,"WILSON LEONARDO REYES MONTOYA"]
[6437630,"EDGAR ALBERTO MARMOLEJO ACERO"]
[6769306,"HENRY ATANASIO MUÑOZ PRIETO "]
[6773359,"WINSTON GONZALEZ GALINDO       "]
[6816697,"MENEVAL BITAR CORENA"]
[6820705,"RUGERO ENRIQUE LARA GONZALEZ"]
[6868022,"JOSE LUIS SIMANCA RAMIREZ       "]
[7142793,"ARBELAEZ BATEMAN ORLANDO JOSE"]
[7166551,"MARCOS JAVIER CARVAJAL GOMEZ      "]
[7168416,"NELSON ADOLFO BARRERA RODRIGUEZ"]
[7168454,"GIAN CARLO SUESCUN SANABRIA"]
[7177139,"ALBERT ONELL OSPINO AYALA"]
[7215064,"MARIO FROILAN REYES BECERRA"]
[7301764,"LEMUS MURCIA OMAR ALIRIO"]
[7305331,"FABIO HUMBERTO CORTES SANCHEZ"]
[7318258,"JUAN DIEGO DELGADILLO PAEZ"]
[7420311,"ROBERTO ROMERO OSPINA"]
[7465944,"JOSE ANGEL PERNETT CASTILLO      "]
[7523068,"CARLOS ALBERTO GARCIA OVIEDO"]
[7721981,"EDER PAOLO GARCIA VEGA"]
[7728825,"BLADIMIR TOLEDO CARDOZO"]
[7882852,"ROBBY DANIEL RODRIGUEZ PEREZ      "]
[7919817,"JAVIER ALFONSO VELASQUEZ MOLINA"]
[7997044,"ALFONSO PEDROZO AYALA       "]
[8028368,"EDGAR HERNAN FUENTES CONTRERAS"]
[8128811,"CASTRO TORO FERNANDO "]
[8248778,"CARLOS ARTURO MONTOYA SALAZAR"]
[8424870,"LUIS ROBERTO ARBOLEDA MURILLO"]
[8567902,"REYES CARO RICARDO SENEN"]
[8675735,"NORBERTO CAÑATE VALDES"]
[8694817,"GOMEZ BALLESTAS JAIRO ENRIQUE"]
[8697259,"ALFONSO ROMAN CERA POLO"]
[8775084,"EDGARDO JESUS DONADO MEZA"]
[9066851,"MARINO DE JESUS SIERRA OTERO"]
[9077459,"FREDDY GULFO MARTINEZ       "]
[9086064,"GERMAN DE JESUS OCHOA MESA      "]
[9152765,"NARCISO TORRES PEREZ        "]
[9155674,"HERRERA BELEÑO WILMER "]
[9520849,"ABDON CELY ANGEL"]
[9522778,"LUIS VICENTE MARTINEZ VALERO"]
[9527296,"CARO PUENTES PEDRO JULIO"]
[9772684,"LUIS FELIPE PEREZ LOPEZ"]
[9867577,"JULIAN ALBERTO VASQUEZ GRAJALES"]
[10131996,"JAIRO DE JESUS CHICAMA "]
[10169904,"JORGE FAJARDO AVILA"]
[10189589,"GARCIA CARDENAS JULIAN MAURICIO"]
[10273049,"DUQUE ESCOBAR EDUARDO "]
[10300828,"FABIAN ESTEBAN OROZCO SOLANO"]
[10472514,"GEIBER TRUJILLO LUCUMI"]
[10517885,"CAMILO GONZALEZ POSSO"]
[10518115,"BERNARDO ALFONSO ORTEGA CAMPO"]
[10528748,"LUIS FELIX CUATINDOY GUERRERO      "]
[10537129,"DELGADO MANZANO MEDARDO "]
[10549671,"DIEGO FELIPE GALLEGO MARTINEZ      "]
[10721458,"DAGUA CALAMBAS KENNY FRANCISCO"]
[10772066,"EDGAR ALBERTO ALEMAN BUSTOS      "]
[11203378,"JORGE ENRIQUE PEREZ GONZALEZ"]
[11227008,"JOSE JULIAN VANEGAS VARGAS"]
[11229891,"RODRIGO PARRA RENGIFO"]
[11232392,"CLAVIJO MARTINEZ EDISON GUIOVANNI"]
[11245228,"CARLOS AMAURY GUTIERREZ VERGARA"]
[11292499,"CRUZ MURILLO JOSE BENICIO"]
[11294944,"ALFREDO D` COSTA MONTILLA"]
[11296485,"ANTONIO RODRIGUEZ ANCIZAR      "]
[11299876,"BOLIVAR RUIZ CARLOS JULIO"]
[11300268,"JOSE WDROO MOTTA SANCHEZ"]
[11322800,"ALEXANDER CAMPOS MANCERA"]
[11325457,"JULIAN CAMILO CRUZ GONZALEZ"]
[11334746,"FRANCISCO JOSE ANZOLA COVALEDA"]
[11335079,"JAVIER ORLANDO MORALES RODRIGUEZ"]
[11336603,"EDUARDO  ROMERO RODRIGUEZ"]
[11344089,"JORGE ALBERTO LEMUS "]
[11346199,"EDGAR HERNAN OSORIO FORERO"]
[11348320,"MARIO ALEJANDRO MAYORGA RODRIGUEZ     "]
[11374807,"IDELFRAN MORENO "]
[11376169,"GERMAN RICARDO ORTIZ GONZALEZ"]
[11378713,"GOMEZ DIAZ JORGE ORLANDO"]
[11379259,"VICTOR MANUEL GUTIERREZ CAMPOS"]
[11385409,"FERNANDO ALONSO LOPEZ CORTES      "]
[11389471,"ACERO BELTRAN OMAR FRANCISCO"]
[11430048,"ASPRILLA MOSQUERA CESAR EMILIO"]
[11443582,"WILLIAM HERNANDO GUZMAN APONTE"]
[11515204,"DIONISIO ALBERTO HENRIQUEZ GUARIN"]
[11518906,"PAEZ ORTIZ VICTOR HUGO"]
[11791026,"LIZARDO DE JESUS MORENO HINESTROZA"]
[11793154,"BALMES FERNELI PADILLA MORENO      "]
[11797142,"ASPRILLA ASPRILLA EUSTAQUIO HELADIO"]
[11800501,"GLEN HARLEY LOPEZ MURILLO       "]
[11803187,"CARLOS ALEXANDER MOSQUERA MOSQUERA"]
[11803682,"HAMINTON PEREA CUESTA       "]
[11805856,"HESLER PALOMEQUE TORRES PEREZ"]
[11808465,"COSSIO CORREA JESUS ANTONIO"]
[11809786,"JOSE VIRGILIO MENA MENA"]
[11810964,"YHASER SADAT YURGAQUI POSSO"]
[11811455,"AMANCIO VALOYES MOSQUERA"]
[11936011,"IVAN MOSQUERA MORENO        "]
[12000407,"EUSEBIO MOSQUERA PALACIOS      "]
[12023348,"MORENO MOSQUERA ROBERTH SNEYDER"]
[12098442,"JAIME RODRIGUEZ MURCIA       "]
[12109246,"GERMAN FARFAN TEJADA"]
[12117133,"FRANCISCO ELADIO RAMIREZ CUELLAR "]
[12124311,"YESID BAZURTO BARRAGAN "]
[12196431,"JESUS FRANCISCO VASQUEZ ROJAS"]
[12225501,"HENRY MEDINA VALDERRAMA"]
[12236147,"NIVALDO HERNAN ONATRA CAMPO"]
[12283291,"NELSON ENRIQUE BASTO SILVA"]
[12542837,"JORGE ARTURO RIVERA CUAO       "]
[12559070,"ANGULO RIVEIRA JUAN CARLOS"]
[12745900,"CAMILO ANDRES CHAMORRO CAICEDO"]
[12905538,"EDUARDO MIGUEL GARRIDO QUINTERO     "]
[12909183,"DARGE SIGFREDO SOLIS PERALTA      "]
[12911361,"EMILIO AMADO HURTADO QUIﾑONES      "]
[12914507,"RUBEN DARIO QUINONES TELLO      "]
[12917838,"RUBEN DARIO CIFUENTES GARCIA      "]
[12918048,"LANDA CAICEDO WILFRIDO OSWALDO"]
[12965206,"JIMMY PEDREROS NAVAEZ "]
[13060777,"LUIS ALFREDO LASSO LOPEZ"]
[13083036,"EDER CAMPAZ CABEZAS        "]
[13252865,"DUPLAT SANJUAN EDUARDO "]
[13259517,"JUAN DE JESUS GALVIS GARCIA"]
[13352744,"MARTIN GONZALO BERMUDEZ MUÑOZ"]
[13363584,"FRANCISCO ANTONIO CORONEL JULIO     "]
[13541996,"RAÚL ENRIQUE DANGOND CONTRERAS"]
[13544627,"HERMAN ANDRES ADARME MANOSALVA"]
[13702393,"VENECER GOMEZ FUENTES"]
[13718198,"OSCAR JULIAN DUARTE CUBILLOS"]
[13719765,"JUAN MANUEL RODRIGUEZ GOMEZ      "]
[13724322,"BERNARDO ANDRES LONDOÑO BERNAL"]
[13821943,"EDUARDO  MATYAS CAMARGO "]
[13832797,"JOSE RICARDO VARGAS MEZA       "]
[13839627,"HERNANDO MALDONADO PACHON"]
[13843227,"JORGE ALBERTO GOMEZ NORIEGA      "]
[13885810,"ARIAS TORREJANO DOMINGO JAIME"]
[13886193,"GUILLERMO HERNANDEZ QUINTERO"]
[13887773,"JOSE MANUEL MENCO ROJAS       "]
[14012938,"JOSE ROBERTO QUIJANO MUﾑOZ      "]
[14136620,"BARRAGAN NIETO LEANDRO "]
[14190175,"LOPEZ GUTIERREZ MIGUEL ANTONIO"]
[14195579,"CARLOS EDUARDO JARAMILLO CASTILLO"]
[14196597,"JORGE ALBERTO LOZANO SABOGAL"]
[14210277,"CARDONA GARCIA GERMAN "]
[14210580,"ARMANDO REYES MOLANO"]
[14211931,"HINCAPIE RAMIREZ JESUS MARIA"]
[14212124,"CAMILO ALVARO GONZALEZ PACHECO     "]
[14212241,"HUMBERTO SANTORO VARON       "]
[14237662,"FARFAN ALBARRACIN GUILLERMO "]
[14279131,"CARLOS ALBERTO GARZON BARBOSA      "]
[14296257,"GIRALDO BUSTAMANTE VICTOR MANUEL"]
[14297413,"ARJONA LLANO JORGE ANDRES"]
[14319024,"OSCAR RAMIREZ TRIANA        "]
[14321634,"FERNANDO ANTONIO ORTIZ CALDERON"]
[14397064,"ANDRES JULIAN VEGA GARZON"]
[14398957,"ALZATE ROZO MARIO ANDRES"]
[14399453,"ARANGO GARCIA CESAR AUGUSTO"]
[14470777,"JOSE DAVID RUIZ RODRIGUEZ"]
[14703644,"MAURICIO ANDRES ROJAS PAVA"]
[14877569,"GLICERIO PERDOMO VELEZ"]
[14894420,"DARIO  MARTINEZ RENDON"]
[15037802,"DANILO MERCADO RODRIGUEZ       "]
[15208140,"FELIX HUMBERTO ROSANIA AGUIRRRE"]
[15727116,"BULA MERCADO HUGO GERMAN"]
[15810577,"JUAN FELIPE BURBANO VALDEZ      "]
[15914540,"DUVAN DE JESUS DIAZ CHAURRA"]
[16219605,"FRANCISCO LUIS RIOS QUINTERO"]
[16358426,"CARLOS EDUARDO VALENCIA PEREA"]
[16468465,"ELIU MURILLO URRUTIA        "]
[16473668,"DOMINGUEZ BUSTOS JOSE SALVADOR "]
[16504244,"FRANK TORRES PAZ         "]
[16584554,"HECTOR GUILLERMO BANGUERO "]
[16587428,"HERNANDEZ YEPES JESUS HARVEY"]
[16631192,"ROSENDO CAMACHO SUAREZ"]
[16632757,"REINALDO ARTURO LEYTON CRUZ"]
[16639993,"RIVER FRANKLIN LEGRO SEGURA      "]
[16672598,"JUAN DE JESUS ALVAREZ CASTRO"]
[16692652,"PEDRO ENRIQUE FERRIN ORDOÑEZ"]
[16715784,"JUAN CARLOS GALVIS SANCHEZ"]
[16739933,"FREDDY CANCHON NARANJO"]
[16836036,"HELBERTH OVIDIO CAMPO ULABARES     "]
[16889309,"WILSON EDMUNDO DELGADO DAZA"]
[16989899,"CRISTOBAL MONTAÑO NUÑEZ"]
[17050930,"ORLANDO JOSE URDANETA BALLEN"]
[17105119,"DIAZ SABOGAL MANUEL ANTONIO"]
[17129495,"HUMBERTO VERGARA PORTELA"]
[17135602,"MANUEL GUILLERMO SALAMANCA GONZALEZ"]
[17186686,"GRANDE REINA HECTOR GUILLERMO"]
[17191274,"HUGO AFANADOR LOZANO"]
[17312536,"FULTON PALACIOS ASPRILLA"]
[17318681,"LUIS ARMANDO BLANCO CRUZ"]
[17336635,"LUIS ALVARO PADILLA AVILA"]
[17336857,"CARLOS WILSON CASTRO GARCIA"]
[17348522,"LEONARDO NARVAEZ BALLESTEROS"]
[17417223,"PINEDA CASTRO GLEISON "]
[17657233,"YEISON MURILLO BEJARANO       "]
[17904979,"NUMAS ORLANDO ARTEAGA DIAZ"]
[18112207,"EDER JAIR SANCHEZ ZAMBRANO"]
[18126551,"BERNARDO MURIEL ARCINIEGAS      "]
[18129878,"JOSE LUIS ALVAREZ DIAZ       "]
[18202701,"CASIMIRO CABRERA RODRIGUEZ"]
[18222281,"NORBEY MOLINA LEIVA        "]
[18387473,"BENJAMIN GOMEZ VEGA"]
[18603122,"ABELINO ARCE MAMUNDIA"]
[18918566,"HECTOR ELY CASTRO PORTILLO      "]
[18970609,"ANGEL ALFONSO VERGEL PABON      "]
[19062310,"HECTOR JOSE PEDRAZA PLAZAS"]
[19069126,"ADANIES MOISES MAGDANIEL FIGUEROA     "]
[19069508,"CLAUDIO JOSE HERNANDEZ QUEMBA      "]
[19076264,"JOSE ARGEMIRO ANZOLA ESCALANTE"]
[19089937,"FABIO HUMBERTO SANTANA URREGO"]
[19092546,"LUIS ANTONIO CASTRO MURCIA "]
[19097026,"LUIS ALFONSO RAMIREZ BAENA"]
[19122574,"ALONSO CRUZ REYES"]
[19125847,"SEBASTIAN GONZALEZ RIAÑO"]
[19129108,"MIGUEL ARTURO CONTRERAS RIVERA"]
[19136320,"JORGE HUMBERTO SALINAS FORERO"]
[19149297,"JOSE RENE NEUTA ALONSO"]
[19151181,"FERNANDO DAVILA VILLAMIZAR      "]
[19154345,"CUESTA RENTERIA JOSE PLACIDO"]
[19163396,"ANTENOR GUEVARA ARRIAGA"]
[19167671,"ALBERTO GOMEZ JOSE LUIS"]
[19180429,"CASTRO CARVAJAL MIGUEL ANTONIO"]
[19188262,"FERNANDO OJEDA OREJARENA"]
[19190739,"MANUEL ERNESTO MANOTAS PARDO      "]
[19200716,"CARLOS RODRIGUEZ MEJIA       "]
[19202491,"BARBOSA SANCHEZ LUIS EDUARDO"]
[19202843,"LUIS ALIRIO JAIRO HERNANDEZ ENCISO"]
[19206461,"GUSTAVO FULA TORRES"]
[19207347,"BELLO CACERES CARLOS ARTURO"]
[19208054,"HERNANDO PERDOMO BLANCO"]
[19216658,"ORLANDO ANTONIO CHINGATE CABRERA"]
[19226787,"RAMIREZ ARBELAEZ RUBEN DARIO"]
[19229846,"LUIS ORLANDO CARRILLO VASQUEZ      "]
[19232039,"HERNANDEZ GARZON JAIRO "]
[19233337,"ARANGO DIAZ JORGE OMAR"]
[19238445,"HERNANDO OTALORA ESPITIA"]
[19243727,"ANTONIO VICENTE BOHORQUEZ CUBILLOS"]
[19244354,"JOSE QUERUBIN YATE REMICIO"]
[19246061,"LUIS DANIEL DIAZ CAMARGO"]
[19246864,"HUGO ERNESTO GUZMAN TORRES"]
[19250179,"ANTONIO GONZALEZ CARRIZOSA"]
[19256528,"BARRAGAN GORDILLO HECTOR JULIO"]
[19264562,"ARENAS CORREA HERNAN DARIO"]
[19264875,"JOSE AGUSTIN FAGUA CAMELO"]
[19265476,"GERMAN CASTELLANOS VILLAMIL"]
[19270175,"JAIRO ALFONSO MOLANO RODRIGUEZ"]
[19271763,"FRANCISCO JOSE REYES TORRES"]
[19272879,"ALBERTO FRANKLIN MOYA"]
[19275629,"GAITAN BELTRAN MANUEL ANTONIO"]
[19276394,"CARLOS ARTURO GOMEZ GOMEZ       "]
[19277325,"HUGO OSWALDO MENDOZA AVILA      "]
[19281515,"ALMANZA RINCON JOSE JAIME"]
[19290811,"HECTOR JULIO GONZALEZ GOMEZ"]
[19291110,"JAIRO AUGUSTO LOPEZ ACHURY"]
[19297125,"GALAN GONZALEZ JULIO CESAR"]
[19298082,"LUIS HUMBERTO JIMENEZ PEﾑALOZA     "]
[19299182,"ALVAREZ ABRIL ANTONIO JOSE"]
[19303864,"MARTIN LADINO SERRANO"]
[19305846,"JOSE ANSELMO RODRIGUEZ GARZON      "]
[19306193,"RENE RAMOS SUAREZ"]
[19308662,"JAIME FELIX ZABALA        "]
[19310148,"JAIRO VARGAS ALVARADO"]
[19311364,"ALVARO FERNANDO HENAO QUINTERO"]
[19311707,"BAZANTE CALDAS GERARDO "]
[19312673,"JESUS ALBERTO GRUESO ZUÑIGA"]
[19314409,"ALVARO PINTO RODRIGUEZ"]
[19314864,"RICARDO PLAZAS PEDRAZA"]
[19321546,"LUIS HERNANDO BRICEÑO MUÑOZ"]
[19326369,"CUESTAS CUELLAR JOSE GABRIEL"]
[19327316,"LUIS JAVIER CLEVES GONZALEZ"]
[19327342,"FRANCISCO ALBERTO BAUTISTAS "]
[19329777,"LUIS CARLOS TORRES ROJAS"]
[19332934,"ANIBAL DE JESUS CORREA MARIÑO"]
[19334221,"LUGO OSWALDO PINZON VALERO"]
[19337029,"ALBERTO LEONIDAS CUEVAS QUINTERO"]
[19343181,"WILLIAM AGUDELO ARANGO       "]
[19345728,"CESPEDES GONZALEZ HUGO "]
[19348208,"EDGAR JAIME MARTINEZ RODRIGUEZ     "]
[19349776,"FERNANDO GUARIN POSADA       "]
[19352996,"EDGAR FERNANDO SIERRA DIAZ "]
[19356601,"RAFAEL BECERRA POVEDA       "]
[19362157,"PEDRO ALFONSO HERNANDEZ MARTINEZ     "]
[19363115,"ALVARO ALBERTO MARIN ARIAS"]
[19365050,"ARAMIS HERNANDEZ HERNANDEZ      "]
[19367165,"JOSE GREGORIO TRIANA BARRIOS"]
[19367545,"EMIL ALMANYA GANDUR        "]
[19368008,"MARTIN ACOSTA RAFAEL "]
[19368049,"CUESTA NOVOA JAIRO DE JESUS"]
[19368465,"GARCIA MARTINEZ LUIS ABELARDO"]
[19369868,"WALTER HEMBER ALVAREZ BUSTOS"]
[19369973,"JOSE ORLANDO RIVEROS CASAS"]
[19370798,"NELSON PEREZ ORTIZ"]
[19372868,"LUIS ARTURO CAÑAS RODRIGUEZ"]
[19378779,"LUIS FERNANDO RINCON CUADROS"]
[19381255,"CARLOS ELADIO AGUIRRE GAMEZ"]
[19384381,"ADOLFREDO PINEDO CHAVES"]
[19385240,"EDGAR ALFONSO GONZALEZ SALAS"]
[19386225,"DARIO ESTEBAN COLMENARES MILLAN"]
[19394009,"JORGE HERNANDO CACERES CRUZ"]
[19394453,"IVAN DE LA CRUZ MENDEZ SANDOVAL"]
[19395733,"ALVARO BORDA LEMUS"]
[19396432,"ORLANDO ALBERTO USME HERNANDEZ"]
[19400966,"ALEJANDRO MOJICA MEJIA       "]
[19403566,"SERAFIN ALFONSO FRANCO ARBELAEZ"]
[19405447,"GUZMAN PIEDRAHITA MAURICIO "]
[19405859,"MARIO  SOLANO PUENTES"]
[19405966,"PEDRO JOSE OJEDA GONZALEZ"]
[19406476,"HENRY ROMERO TRUJILLO"]
[19408569,"JORGE HERNANDO VASQUEZ SARMIENTO     "]
[19410266,"JOSE FERNANDO ARAGON RODRIGUEZ"]
[19411875,"ORLANDO ORTIZ MEDINA        "]
[19417283,"LUIS ALFONSO MEJIA ARDILA "]
[19423351,"BERNAL COCUNUBO HENRY "]
[19424775,"JOSE JAVIER MERCHAN HERNANDEZ"]
[19426466,"LUQUE RUIZ RAUL ARMANDO"]
[19427171,"JOSE GABRIEL MOLINA LAGOS"]
[19428741,"MEDARDO ANIBAL VALENCIA DE LA CADENA"]
[19435082,"JOSE DAVID SANTOS         "]
[19435942,"CARLOS ALIRIO BALLEN PAVA"]
[19440097,"RAMIRO RODRIGUEZ LOPEZ       "]
[19441797,"CORREDOR FONSECA JORGE ELIECER"]
[19443694,"WILLIAM MORENO LOPEZ        "]
[19443749,"HECTOR EDGAR SANCHEZ PUERTO      "]
[19449476,"JOSE ALONSO FRANCO VELANDIA      "]
[19449659,"CARO TOVAR MIGUEL ANTONIO"]
[19451500,"HENRY RODRIGUEZ PINZON"]
[19452739,"RICARDO  SARMIENTO SANCHEZ "]
[19454204,"CARLOS JULIO SALAZAR GONZALEZ"]
[19458698,"AGUDELO ARANGO ORLANDO "]
[19460503,"MARCO ANTONIO DUEÑAS PEÑA"]
[19462621,"DANIEL HERNAN PAEZ CAICEDO"]
[19465564,"JOSE VICENTE REYES GUERRERO"]
[19466242,"ALBERTO LEON BERNAL VILLA"]
[19467092,"ALFONSO GONZALEZ RODRIGUEZ"]
[19472189,"JESUS MARINO ALOMIA CAICEDO      "]
[19479084,"CASANOVA GUZMAN MANUEL ALBERTO"]
[19479412,"CARLOS ALBERTO GARZON PEÑUELA"]
[19488305,"MIGUEL ANGEL PULIDO VILLARREAL"]
[19491949,"IVAN ARTURO TORRES A."]
[19492508,"RUBEN DARIO ARISTIZABAL ORDOÑEZ"]
[19493788,"LUIS GUILLERMO VELASQUEZ CASTELBLANCO"]
[19494948,"JAIME ISRAEL VALDERRAMA VALDERRAMA"]
[19496571,"HECTOR HUGO GOMEZ VALDERRAMA      "]
[19498100,"NELSON GILBERTO TUNTAQUIMBA QUINCHE"]
[19498333,"EDGAR TORREJANO CARDENAS       "]
[19498723,"HERNANDO  PIZARRO PERDOMO"]
[19498977,"DIEGO CESAR ALONSO CUELLAR"]
[19581434,"ARMANDO DE LOS MILAGROS GUTIERREZ GONZALEZ"]
[20041728,"MARIA TILA URIBE DE TRUJILLO      "]
[20062497,"LEONOR ROBAYO DE MORALES       "]
[20120685,"ANA CECILIA GARAVITO DE BARRIGA     "]
[20420859,"ROSA LILIA YAYA CUERVO"]
[20424481,"DUSSAN PEREZ ROCIO "]
[20449811,"ANA CECILIA PRIETO SALCEDO"]
[20501290,"YOLIMA TUNJANO GUTIERREZ"]
[20585908,"MARTHA ELVIRA NOVOA OLAYA       "]
[20723882,"AURA ELIZABETH GOMEZ SALINAS"]
[20759449,"PATRICIA  PECHA QUIMBAY"]
[20866004,"GONZALEZ MARTINEZ MARIA ANGELICA"]
[20939962,"MARIA VICTORIA BUITRAGO CEPEDA"]
[20941391,"CLAUDIA MARCELA SARMIENTO LEON     "]
[20941452,"LUZ ESPERANZA BELLO PEREIRA"]
[21003404,"MARIA STELLA BARACALDO MENDEZ"]
[21015856,"BLANCA INES RIVERA HUERTAS"]
[21016300,"ANA EDITH RICARDO DOMINGUEZ"]
[21117508,"HERNANDEZ SANDOBAL SOL MYRIAM"]
[21403474,"YOLANDA DEL SOCORRO USUGA GONZALEZ"]
[22428750,"ANA VICTORIA OEDING CARO"]
[22429042,"MARITZA JUDITH PALENCIA ROJAS      "]
[22435218,"GLORIA ESTEFANIA MEZA ESPINOSA"]
[22462677,"KAREN JULIET CHAVES SANTIAGO"]
[22465448,"SIXTHYNA LAWRENCE DE AVILA ALARCON    "]
[22466530,"ESTHER CARIDAD SUAREZ MONDUL"]
[22493628,"ISIS YANETH BELEﾑO RODRIGUEZ      "]
[22547777,"YINA ELEONORA FONTALVO MEJIA      "]
[22548786,"SINTHYA MARGARITA RUBIO ESCOLAR"]
[22694415,"EVELYIN MODESTA MOLINA SERRANO     "]
[22808650,"AMAYA NAVARRO LUZ STELLA"]
[23175829,"MARIA BEATRIZ ALVAREZ GUERRERO"]
[23474086,"BLANCA CECILIA TORRES FERNANDEZ"]
[23489010,"ANA CAROLINA ARIAS CASAS"]
[23553867,"LUZ MILA FLOREZ DE VARGAS"]
[23582623,"LUCY BONILLA SANABRIA"]
[23754761,"FRANCY AIMED TOLOSA VALLEJO"]
[23781662,"CLAUDIA ROCIO ECHEVERRY BELTRAN     "]
[23875674,"DEYRA NELLY DAZA CARO        "]
[23896555,"ANDRADE ROA JULIA ESTHER"]
[24022669,"LUZ MARGARITA FLOREZ "]
[24022943,"MARIA TERESA PINZON SIERRA"]
[24050423,"KELLY CAROLINA MORANTES PEREZ"]
[24081521,"CARMEN DORA SALAMANCA HERNANDEZ"]
[24112838,"MARIA GLADYS VARELA FLOREZ"]
[24161311,"BARBARA ISABEL PULIDO SANABRIA"]
[24498961,"FORERO SIERRA LUZ ELENA"]
[24828310,"EDNA YULIETH CASTRO SALGADO"]
[24988999,"PATRICIA ELENA VASQUEZ VASQUEZ "]
[25001358,"ALICIA GUASORNA ARCE"]
[25480734,"MARIA OLIVA ANACONA HORMIGA"]
[25876621,"NOHORA SUSANA PEREZ MENDOZA"]
[26258792,"LUZ DEL CARMEN SANCHEZ ROMAﾑA      "]
[26290313,"NIEVES MERCEDES LEMOS GARCIA      "]
[26424812,"GINA MARCELA ALVARADO GONZALEZ"]
[26425747,"LORENA SUAREZ FIERRO"]
[26428474,"ANDREA LUCIA SALAZAR ROCHA      "]
[26429735,"KARINE  PUENTES CEDEÑO"]
[26429816,"ANGELA MARIA RAMIREZ ROJAS      "]
[26433642,"DALIS MARCELA PARRA SAMBONI      "]
[26471685,"CUMBE PERDOMO DIANA MARIA"]
[26634620,"MARY LUZ RODRIGUEZ CALDERON"]
[27105584,"MARIA INES REINA"]
[27125406,"SANDRA FABIOLA ANGULO ESTACIO      "]
[27127401,"FENY CASTILLO PRECIADO       "]
[27127436,"LAUDIS ITAMAR GONZALEZ QUIﾑONES     "]
[27177448,"GLORIA YANETH TARAPUES MONTENEGRO"]
[27229323,"BLANCA NUBIA CUMBAL IMBACUAN"]
[27277251,"ZULLY ARGENIS TOBAR ALVEAR      "]
[27532516,"GLADIS STELLA ORTEGA ARTEAGA"]
[27788048,"LIZARAZO AROCHA MIRIAM "]
[27982559,"OLBY ELENA CUBIDES CUADRADO"]
[27983823,"MAYOLI SUAREZ HERNANDEZ"]
[28089387,"MARIA ELENA MEJIA QUINTANILLA     "]
[28307436,"ADA AMERICA MILLARES ESCAMILLA"]
[28544356,"MARIA ESPERANZA SIERRA RAMIREZ     "]
[28548975,"SANDRA LUCIA ROJAS GARZON       "]
[28556613,"ADRIANA TERESA LOZANO BARRAGAN     "]
[28559268,"AGUILERA SANTANA VIVIANA MARCELA"]
[28567070,"JOHANA TRONCOSO PALMA       "]
[28711794,"CECILIA  DIAZ ESCANDON"]
[28880099,"ALEYSA OCAMPO PORTELA       "]
[28880566,"OSIRE LOPEZ YATE         "]
[28985158,"CASTAÑO BURITICA YENNY LUCIA"]
[29306847,"ANGELA MARIA GONZALEZ OROZCO"]
[29400553,"EDNA ROSANA MONDRAGON ISAZA      "]
[29623461,"LILIANA OSPINA POLO"]
[29664879,"JACKELINE  ROSERO LOPEZ"]
[30206054,"CUBIDES RUIZ EUDALIA "]
[30230745,"LUZ HELENA BETANCOURT ESCOBAR      "]
[30236871,"LIZ CECILIA VERGEL MONTERO"]
[30237285,"MANUELITA ARIAS GIRALDO"]
[30276439,"GAVIRIA VALLEJO LUZ DARY"]
[30294082,"ELSA CRISTINA POSADA RODRIGUEZ"]
[30338594,"SANDRA LILIANA CORTES ESCOBAR      "]
[30386321,"LILIANA GARCIA QUESADA"]
[30387107,"CASTAÑEDA DIAZ GLENIS MABEL"]
[30573743,"OLFA ISABEL DIAZ CORDERO"]
[30646861,"CLARA ELENA HERRERA ARAUJO      "]
[30729844,"DOLLY DE LOS ANGELES SANCHEZ ROBY"]
[30737860,"MARIA ALEXANDRA BECERRA MOSQUERA     "]
[30743823,"ADRIANA MARCELA GONZALEZ GUZMAN"]
[31164284,"ESCOBAR RIVERA RUTH MARLENY"]
[31165045,"MARIA VICTORIA ALVARADO GIRON      "]
[31307515,"YESSICA PATRICIA PEREA MACHADO"]
[31321310,"KATHERINE AGUIRRE TOBON"]
[31401850,"ELIZABETH FLOREZ "]
[31567357,"MALLELY BELEÑO POTES"]
[31579213,"GLORIA PATRICIA MENESES PORTILLA"]
[31587449,"MARLEN HURTADO SINISTERRA      "]
[31643499,"LOAIZA AGUDELO YENYFER "]
[31836143,"MARIA LILIANA CARDENAS FRANKY"]
[31872123,"DORYS VALERO OLAYA"]
[31944617,"EDELMIRA PEREA ABADIA       "]
[32108192,"RAMIREZ MORENO YUDY YIRLEZA"]
[32142158,"ANA LUCIA SERRANO GUTIERREZ"]
[32144118,"ZAMIRA ROVIRA LONDOﾑO       "]
[32288877,"LEINIR MOSQUERA MOSQUERA"]
[32299818,"OLGA LUCIA QUINTERO GALEANO"]
[32553534,"MERCY DEL CARMEN BECERRA MONTERROSA"]
[32581296,"GEANA PATRICIA MARRUGO CAMARGO     "]
[32625966,"INMACULADA CONCEPCION PALOMINO CERVANTES"]
[32659494,"JACQUELINE DEL SOCORRO VILLAREAL GUZMAN"]
[32744287,"GLORIA INES CASTILLO PAEZ"]
[32853127,"DENISE DEL CARMEN BARRAZA MANOTAS"]
[32878454,"ACOSTA VELASQUEZ CLAUDIA RAMONA"]
[32908870,"CHAVELLY PAULINA PONTON BECERRA"]
[33026002,"WENDY DEL CARMEN MUENTES PIÑERES"]
[33154546,"MILAGROS BARRAGAN NAVAS"]
[33266593,"BELKIS FUENTES LIZCANO"]
[33283529,"DORFI MARINA PORTO VILLARREAL"]
[33376432,"JENNY ANGELICA PUENTES SANDOVAL"]
[33377494,"EDILMA YAMILE OLARTE QUITO"]
[33378043,"ANDREA ALEXANDRA ROJAS JIMENEZ     "]
[33379692,"MARIA DEL PILAR ARIAS GARZON"]
[33702808,"SANCHEZ CANCELADO YURY EMPERATRIZ"]
[33704283,"DERLY ESPERANZA FAJARDO RODRIGUEZ"]
[34317097,"BIBIANA ANDREA MUÑOZ MARTINEZ"]
[34527665,"MARIA VICTORIA MAYA ESCOBAR"]
[34532382,"ANA MERCEDES PANCHOAGA BLANCO"]
[34535033,"MERCEDES MUÑOZ IMBACHI"]
[34545725,"DELFA PAULINA MAJIN JIMENEZ"]
[34554716,"RUBBY ESPERANZA VASQUEZ HERRERA"]
[34615599,"YAMILETH CAMPAZ AGUILAR       "]
[34617228,"ADRIANA QUIﾑONES LEON       "]
[35197663,"MARIA ANGELICA HOYOS RUIZ       "]
[35220932,"MARIA ANDREA DIAZ LEYVA"]
[35316810,"MYRIAM DEL CARMEN SILVA MARTINEZ"]
[35317437,"MARTHA AMAYA BULLA"]
[35333499,"DORA LUCIA GAMBA CAMACHO       "]
[35377603,"NUBIA STELLA SILVA CANO"]
[35402189,"BLANCA CECILIA SEMA ALBORNOZ"]
[35415391,"GLORIA JEANETH RINCON TORRES"]
[35423183,"FABIOLA ANDREA GOMEZ ROMERO"]
[35450590,"ALVAREZ VEGA DIANA MAYERLY"]
[35457522,"MAGDA GRACIELA CASTAﾑEDA LA ROTTA     "]
[35465394,"ANA MARIA OSPINA GUTIERREZ      "]
[35465903,"ALICIA CHON DIAZ         "]
[35468231,"MARIA MONICA CASTAﾑEDA DELGADO     "]
[35469904,"OLGA LUCIA FUENTES "]
[35479214,"NUBIA ESPERANZA SANCHEZ CORREDOR"]
[35488950,"MARIA FLORALBA MONTALBO "]
[35494102,"NIDIA MARIA GUTIERREZ MELO"]
[35501844,"ALFONSO PEREZ MARIA CONCEPCION "]
[35506839,"RIAÑO TORRES SANYA FRANCINA"]
[35512664,"MONICA LEDA ALVAREZ AGUIRRE"]
[35513907,"CRISTIAN MARYELIN ESPINOSA LEON"]
[35517667,"GLORIA STELLA OSPINA RONDON"]
[35586873,"LUZ ESTUARD HURTADO LEMUS"]
[35587009,"YINETH CURY PALACIOS        "]
[35600756,"XIOMARA MINOTTA CHAVERRA       "]
[35601588,"ORLY SUGEY MORENO CASTILLO"]
[35602196,"NIMIA ESTHER MENA MENA       "]
[35602587,"LUZ ESTELA MOSQUERA MOSQUERA      "]
[35604160,"CARMEN OLIVIA CUESTA RENTERIA      "]
[35604943,"PALACIOS MORENO SANDRA YINETH "]
[35697054,"AYDA TERESA HURTADO MOSQUERA"]
[35851659,"IBARGUEN MOSQUERA NADIA PIEDAD"]
[35895768,"LIGIA HELENA SERNA HINESTROZA"]
[36151076,"MARIA DEL PILAR MARTINEZ GUTIERREZ "]
[36163587,"CHARRY LARA LUZ MARINA"]
[36167880,"GLADYS PERDOMO MEDINA"]
[36275793,"GONZALEZ LARA SONIA "]
[36379534,"GOMEZ BECERRA LUZ MIRYAM"]
[36517414,"ATI SEYGUNDIBA QUIGUA IZQUIERDO"]
[36543344,"GUILLOTT VILORIA STELLA DE LOURDES"]
[36552601,"DE LEON PEREZ ROSA HIMELDA"]
[37082426,"DIANA MARCELA OSORIO PAZ"]
[37123131,"SANDRA CRISTINA MUÑOZ CASTILLO"]
[37259105,"AMAYA PARADA CARMEN CECILIA"]
[37270160,"LEYDI JOHANNA TAMARA RODRIGUEZ     "]
[37323165,"MARGARITA LILIANA FLETCHER DURAN"]
[37324675,"CLAUDIA GISELA TORRADO CALDERON"]
[37326547,"CONSTANZA EMILIA TRIGOS MANZANO"]
[37328872,"TATIANA KATERINE TRIGOS MANZANO"]
[37396392,"CARMEN VICTORIA ORTEGA BECERRA     "]
[37443781,"PEREZ LAGUADO SANDRA YOLIMA"]
[37625038,"LUZ SMITH FORERO MOSQUERA"]
[37626367,"MARELVIS CAMARGO OVALLE"]
[37712385,"FANNY ALEXANDRA ORDOÑEZ FORERO"]
[37728600,"ANDREA FELISA FRANCO RUEDAS      "]
[37745134,"ANGELICA LIZZET BADILLO RAMIREZ     "]
[37754920,"NELCY ALEYDA MESA ALBARRACIN"]
[37825607,"HILDA VICTORIA PALOMINO ANGARITA     "]
[37860495,"JOHANNA IVETH ARENAS PEREZ"]
[37892566,"LAURA CLEMENCIA GOMEZ RUGELES      "]
[37897157,"OLGA LUCIA FERNANDEZ BARRERA"]
[37915194,"HENNY TIRADO ZAMBRANO"]
[37944926,"MARIBEL ARGUELLO CASTILLO"]
[38141133,"JOHANNA PAOLA BOCANEGRA OLAYA      "]
[38143894,"JESSICA PAOLA ORTIZ MENDEZ"]
[38210180,"LIBERTAD CORDOBA VARON"]
[38230799,"ANA JUDITH AYALA BAYONA       "]
[38239392,"ESPERANZA RIVERA LOPERA       "]
[38245825,"ARIZA LOPEZ MARIA CONSUELO"]
[38246447,"LUZ MARINA MUÑOZ DIAZ"]
[38263344,"CABRERA PINTO MARY LUZ"]
[38288505,"SANDRA LILIANA OSORIO BARRETO"]
[38360173,"ANA MARIA CARO ZAMBRANO"]
[38362875,"BONILLA VALDERRAMA MONICA PAOLA"]
[38363220,"FLOR ESPERANZA ESPITIA CUENCA      "]
[38363387,"JAMMY CAMILA LOPEZ GONZALEZ      "]
[38469436,"LUZ ESTRELLA SOLIS BONILLA      "]
[38558762,"CARDONA BUENO CAROLINA "]
[38604005,"NELLY JOHANA RIVERA TAQUINAS"]
[38610603,"YENNY PAOLIN DAZA GUTIERREZ"]
[38941105,"EUCARIS MURILLO MOSQUERA       "]
[38999621,"SILVIA NELLY OCHOA BLANCO"]
[39271893,"EDITH MARGOTH NAVARRO ARRIETA      "]
[39316867,"CRISTINA ISABEL TOVAR GOMEZ      "]
[39417432,"LUZ NELLYS SANTANA        "]
[39427773,"ANA IRIS BLANDON CORDOBA       "]
[39522073,"ANA MERCEDES ORJUELA RODRIGUEZ"]
[39532946,"CLAUDIA ROCIO FORIGUA PRIETO"]
[39541754,"MORALES PATRICIA "]
[39544156,"RODRIGUEZ BARON YOLANDA "]
[39546102,"OLGA RUBIELA DUARTE BUITRAGO"]
[39576142,"MARGARITA MARIA CASAS ALARCON"]
[39627293,"EDNA MATILDE PABON PARDO"]
[39636691,"ANGEL GARCIA ELSA YOLANDA"]
[39636753,"MARIA CLAUDIA CASAS CEBALLOS"]
[39636816,"GLORIA LUCIA PELAEZ MONROY"]
[39649971,"LIGIA PEÑUELA PEÑUELA"]
[39655973,"MARTHA PATRICIA FORERO QUINTANILLA"]
[39656082,"LUZ ANGELA FRANCO RODRIGUEZ      "]
[39657236,"PULGARIN ROJAS YAMILE "]
[39676856,"ROCIO DEL PILAR BEJARANO BOGOTA"]
[39685777,"CAROLINA PEÑA ALDANA"]
[39688368,"MATILDE MARIA DAZA DE OROZCO"]
[39690108,"MARIA ESPERANZA RIAÑO GONZALEZ"]
[39695180,"SILVIA CHAVEZ RINCON        "]
[39696519,"CECILIA DUARTE ROMERO       "]
[39697118,"GARCIA PEREZ MERCEDES "]
[39700913,"MARCELA CASTILLO GARCIA       "]
[39702733,"ALBA LILIA MARTINEZ PEDRAZA"]
[39705799,"OLGA LUCIA TORRES AREVALO       "]
[39706861,"MARTHA ELENA RODRIGUEZ REYES"]
[39710701,"BUITRAGO PARRA GRACIELA "]
[39712249,"MYRIAN ASTRID SIERRA CORREDOR      "]
[39716467,"CUCUNUBA MALAGON LUZ ANGELA"]
[39722511,"DAVILA CABRERA SONIA MILDRED"]
[39738304,"ALBA FABIOLA MARCELO PARRA"]
[39761965,"SANDRA PATRICIA PEÑA ARCINIEGAS"]
[39763551,"EFVANNI PAOLA PALMARINY PEÑARANDA"]
[39775922,"GLORIA HERNEY GALINDEZ CLAROS      "]
[39778141,"DILIA AMPARO OLIVEROS GOMEZ"]
[39787051,"BORDA RIVAS MARIA MAGDALENA      "]
[39793268,"MARIA ELENA SILVA FANDIﾑO       "]
[39796154,"DABEIBA LUGO MUNAR"]
[39798824,"CARMEN ELENA RODRIGUEZ BAQUERO"]
[39805195,"DIDIMA VIVAS RIAÑO"]
[40046726,"RUTH CAROLINA MONROY CELY       "]
[40372414,"NIÑO MARTINEZ TULIA FABIOLA"]
[40402996,"LUZ ANGELA SARMIENTO FIERRO"]
[40433147,"LEIDY TRUJILLO CHAPARRO       "]
[40612921,"DIANA ANDREA CABRERA TIBAQUIRA "]
[40779899,"ELIZABETH TRUJILLO SALAS"]
[40924077,"NATASHA REMEDIOS PINEDO RODRIGUEZ"]
[40927053,"AGUDELO PADILLA IVANNA NUSSIKA"]
[40936502,"LILIBETH CARLINA ROMERO PINTO      "]
[40944905,"DIANDRA THERINA PINTO COTES"]
[41058690,"LINA MARIA PALOMINO SALAZAR      "]
[41323710,"MARIA IRENE MEJIA ESLAVA"]
[41324468,"BLANCA OLIVA CASAS"]
[41354627,"MARIA YASMINA ESTONIA GARCIA MOSQUERA    "]
[41410249,"MARTHA EUGENIA BOTERO TERREROS     "]
[41428400,"ESTHER SANCHEZ DE GUZMAN"]
[41449319,"LUCILA PORRAS RODRIGUEZ"]
[41481499,"ANA MARIA GUERRERO MARTINEZ"]
[41538642,"GOMEZ TORRES NOHRA GEMA"]
[41540817,"LUCIA DUARTE GALVIS"]
[41543756,"GOMEZ RAMIREZ RITA "]
[41544751,"PIEDAD JULIETA FLOREZ DELGADO"]
[41553817,"GUEVARA VILLAMARIN MARIA CRISTINA"]
[41558547,"BETTY MORA DE CENDALES"]
[41575263,"AMPARO DEL SOCORRO ARANGO ACERO"]
[41616543,"ELIZABETH FONTECHA FAJARDO      "]
[41618073,"ADELA URIBE VARGAS"]
[41642207,"CONSUELO HABIBE DUEÑAS "]
[41656554,"LUCERO BLANDON SCHILLER"]
[41657212,"ALBA MARINA ARBOLEDA MONTOYA"]
[41658013,"LORENZA MEJIA FLORIAN"]
[41662604,"INES CASTAÑEDA VIATELA"]
[41663068,"GLORIA ROSERO ACEVEDO"]
[41665402,"YOLANDA EUNICE GUTIERREZ LOPEZ     "]
[41677067,"GLADYS ALCIRA ZAMBRANO ACOSTA"]
[41684188,"GERENA RODRIGUEZ MARIA TERESA DE JESUS"]
[41685246,"AURA EDITH MALDONADO LUENGAS"]
[41688395,"MARTHA PIRAGUA ROJAS"]
[41688863,"MAJA ASTRID PINZON RAMIREZ"]
[41692855,"MARTHA ODILIA SABOGAL CORREA"]
[41694448,"AMELIA PEREZ PARRA"]
[41702832,"ANA BEATRIZ GARCIA HERNANDEZ"]
[41704123,"FLOR MARIA HERNANDEZ CASTRO"]
[41719054,"MIRYAM PARDO TORO"]
[41723460,"MARIA INES FORERO HURTADO"]
[41731774,"ROSALBA MENDEZ AVILA        "]
[41732918,"ALINA SANTOS ARAGON PINEDO"]
[41735856,"PATRICIA DEL PILAR COHEN MARTINEZ"]
[41738891,"MARIA ISABEL CASTILLO CABRERA"]
[41739154,"YENIS CECILIA ORDONEZ GUTIERREZ"]
[41742149,"ROSA YOLANDA VILLAVICENCIO MAPY     "]
[41747050,"LIEVANO TOLEDO ANITA "]
[41760629,"AYDEE GEORGETTE MURAD SANCHEZ"]
[41775637,"LENINA MERCEDES MONTAÑO CALDERON"]
[41779391,"MARIA ISABEL MORENO ARIAS"]
[41784503,"LUZ MARINA BARRERA PRIETO"]
[41793718,"CONSTANZA ELENA CONTRERAS URIBE"]
[41793928,"GLORIA PATRICIA ESPINOSA SALAZAR"]
[41796224,"NANCY ROLDAN CARDENAS"]
[41796867,"MORENO VILLAMIZAR ZULLY "]
[41945321,"LADY GISELA GARCIA COLORADO"]
[41950545,"CAROLINA LOZANO FIGUEROA"]
[41958187,"NICKY LAURA ECHEVERRY SALINAS"]
[42093875,"BEATRIZ ELENA OCAMPO CASTRO"]
[42106465,"RUTH PATRICIA ROMERO VALENCIA      "]
[42118379,"LUZ ELENA MONTOYA PELAEZ       "]
[42127724,"VIVIANA MARIA JIMENEZ OCHOA"]
[42160045,"CRISTHING ZULIMA SOTO CALDERON"]
[42163635,"LUZ MARINA HOYOS ALARCON"]
[42499059,"AMIDYS MORENO VARGAS"]
[42763808,"FABIOLA MARQUEZ GRISALES"]
[42867450,"MARIA EUGENIA RESTREPO LONDOﾑO     "]
[42872449,"GRISALES HURTADO LUZ MARINA"]
[42890658,"BEATRIZ ELENA DIAZ SUAREZ       "]
[42939983,"DIANA PATRICIA TABORDA HOYOS"]
[43034318,"GLORIA CECILIA QUICENO ACEVEDO"]
[43061502,"ANGELA MARIA HENAO ARENAS"]
[43074911,"OLGA ISABEL PALACIOS QUICENO"]
[43092964,"BLANCA ESTEY VALLE ZAPATA "]
[43220927,"ALEJANDRA MARIA GARCIA ARCILA"]
[43502983,"MARCELA GIRALDO RIVERA"]
[43581462,"MARCELA PEREIRA PINEDA"]
[43583782,"ALMA NATALIA RESTREPO ECHAVARRIA"]
[43651645,"MABEL ASTRID PALACIOS POSADA"]
[43837569,"BOTERO FLOREZ CLAUDIA LILIANA"]
[43921343,"MARIANA YEPES BLAIR"]
[44157549,"MENDOZA NAVARRO OLGA ELENA"]
[45526141,"REGINA LOPEZ BURGOS        "]
[45556377,"MARTHA LILIANA ROJAS QUIﾑONES      "]
[46359585,"MARTHA ISABEL MARIÑO MARTINEZ"]
[46367187,"GUANUMEN PACHECO YOLIMA PATRICIA"]
[46370372,"CLAUDIA PATRICIA ANDRADE LOPEZ"]
[46373671,"LILIANA PAOLA CHAPARRO RAMIREZ"]
[46377012,"ANA MARIA NOSSA ARANGUREN"]
[46377030,"MORALES BARRERA SULMA MILENA"]
[46384306,"DIANA MILENA NIÑO ACOSTA"]
[46385387,"ASTRID DALILA CAMARGO VARGAS"]
[46386679,"ANDREA KATERINE REYES BOTIA"]
[46451889,"CLARA ELENA REYES TORRES"]
[46452508,"ANDREA CAROLINA QUINTERO PINTO"]
[46457723,"HADIT LORENA ENCISO GALINDO"]
[46674664,"SONIA ESPERANZA TORRES RODRIGUEZ"]
[47442226,"CAROLINA DEL PILAR TORRES MONTAÑA"]
[49741953,"PIEDAD LUCIA RAMIREZ ARIZA"]
[49742216,"VIVIANA MARIA MENDOZA PEDROZA      "]
[49743949,"LUDVALIER LAUDITH DE LA OSSA OCHOA    "]
[49762326,"NELCY MARINA MANJARREZ MORON      "]
[49782739,"MARIA JOSE CRESPO LOPEZ       "]
[50868594,"AGAMEZ VILLEGAS MARTHA LUCIA"]
[50909321,"YASMINA VALOYES ASPRILLA"]
[51566585,"GONZALEZ PEREZ YOLANDA "]
[51569781,"AURA MIREYA CALDERON SAENZ"]
[51576780,"MARTHA LUCIA RUIZ CORONADO"]
[51593038,"ESPERANZA CRUZ RIVAS        "]
[51604977,"JACQUELINE  FRIEDE VILLAROEL"]
[51607117,"ANA ELCI MORENO TORO"]
[51608290,"MARTHA  CRUZ JIMENEZ"]
[51611275,"CARMEN YANNETH FAGUA CRUZ"]
[51611698,"NIDIA AZUCENA LOSADA POSADA"]
[51623860,"CLARA EUGENIA GIL CARDENAS"]
[51629257,"NOHRA ESPERANZA MONROY RODRIGUEZ"]
[51629870,"HERRERA SARAVIA LUZ AMALIA"]
[51631866,"FLOR MARIA ESCALANTE BARRETO "]
[51635833,"BLANCA VICTORIA ESCALANTE BARRETO"]
[51635836,"NAYIBE MESA REINOSO"]
[51640349,"MAZORRA VICTORIA EUGENIA"]
[51640766,"ESPERANZA VALCARCEL CALDERON      "]
[51647190,"SANDRA MARCELA ROJAS MACIAS"]
[51649012,"MARIA DEL PILAR QUINCHE RIOS"]
[51650215,"LUZ MARINA PORRAS DIAZ"]
[51650225,"DIANA CRISTINA FERNANDEZ MUﾑOZ     "]
[51652680,"MERCEDES RUIZ HIGUERA       "]
[51653418,"AURA LUCERO ORTIZ CADENA"]
[51656141,"VILMA DEL CARMEN SALAMANCA RAMIREZ"]
[51661756,"ROSEMARY PATRICIA MARTINEZ JIMENEZ    "]
[51663896,"MARTHA LUCIA ACOSTA RAMOS"]
[51664759,"NOHORA ROMERO GOMEZ"]
[51666084,"DE LA OSSA RODRIGUEZ MARIA CLAUDIA"]
[51666768,"RAMIREZ ANGEL SONIA "]
[51671220,"RUBY MABEL GARCIA CUEVAS"]
[51677897,"MADRID HERNANDEZ ROSA ELENA"]
[51679087,"FLORALBA RAMIREZ HERNANDEZ      "]
[51687729,"GLORIA CECILIA VELASQUEZ HERNANDEZ"]
[51689764,"NANCY ESPERANZA RODRIGUEZ CARVAJAL "]
[51690885,"BUENO MATUS MARTHA SVANY"]
[51691782,"GLORIA  ACONCHA GARCIA"]
[51703529,"DIANA LUCIA CASTRO BENETTI"]
[51703840,"MIRYAM YANET ROBLES RINCON"]
[51713042,"MARTHA ESPERANZA MARTINEZ "]
[51715632,"BETHSY  HINESTROZA MOSQUERA"]
[51716409,"OLGA LUCIA TOQUICA CORDERO      "]
[51719027,"LUZ MARY GUERRA RESTREPO"]
[51719844,"GLORIA VALLEJO SOTO"]
[51720113,"OLGA LUCIA PINEDA GUERRERO"]
[51726644,"ALTURO GONZALEZ ROCIO MARIA"]
[51726933,"BERNAL PALACIOS YOLANDA STELLA"]
[51730617,"MARIA DEL PILAR MORALES SANTODOMINGO"]
[51733108,"MARTHA PATRICIA VERA MOSQUERA"]
[51734002,"ALBARRACIN LOPEZ OLGA LUCIA"]
[51734994,"ESTUPIÑAN BOHORQUEZ IRMA SOCORRO"]
[51738318,"JACQUELINE SARMIENTO LONDOÑO"]
[51741444,"BELTRAN BELTRAN CLARA EMPERATRIZ"]
[51744634,"CLAUDIA PATRICIA LORENZO MEJIA"]
[51746394,"BLANCA CECILIA CASTILLO PARRA"]
[51749964,"CONSTANZA LEON PINTO"]
[51754392,"ELIZABETH ROJAS VARGAS"]
[51760782,"MARIA SULBIA VALENCIA ESCOBAR"]
[51760911,"AVELLANEDA DELGADO YANETH CONSUELO"]
[51762531,"NUBYA PARADA GONZALEZ       "]
[51764362,"GARZON BARRERA LIDIA ELVIRA"]
[51764909,"DALILA GOMEZ BAOS"]
[51765032,"MARIA JACINTA LIZARAZO VELANDIA     "]
[51767563,"ANA TERESA QUINTERO LONDOÑO"]
[51768625,"LUISA ESPERANZA ORTIZ PALACIOS     "]
[51773825,"LUZ MAGOLA PINZON SAAVEDRA"]
[51776844,"MARIBEL PINZON RODRIGUEZ"]
[51776845,"BLANCA ESTELLA CEBALLOS GONZALEZ     "]
[51778064,"LEONOR QUINTERO AVELLANEDA"]
[51785887,"MARIELA CHAPARRO CIFUENTES      "]
[51791113,"LIBIA JEANNETTE ALARCON VILLALOBOS"]
[51792091,"OBBY SANCHEZ RODRIGUEZ"]
[51792959,"DIANA JIMENEZ GONZALEZ"]
[51795914,"ADRIANA EMPERATRIZ HERNANDEZ PORRAS"]
[51796534,"ADELA BAUTISTA TORRES"]
[51800035,"LUZ FERNANDA OSPINA ANZOLA"]
[51800753,"MARIVEL SOLIS AVILA        "]
[51801604,"ANA OMAIRA TARAZONA RIVEROS"]
[51802342,"ANA ROCIO TIQUIDIMAS FERNANDEZ     "]
[51805376,"MARTHA LUCIA SUAREZ RODRIGUEZ      "]
[51809129,"ESTEBAN PARRA INES ESTHER"]
[51809587,"BLANCA DILIA MORENO TORO"]
[51816285,"LUCERO VALOIS "]
[51817008,"CHAMORRO DIAZ MARTHA CECILIA"]
[51818113,"LAURA ESPERANZA RANGEL FONSECA"]
[51819649,"MONCADA ARIZA ODILIA "]
[51823109,"FLOR ALBA PIÑEROS BENAVIDES"]
[51823213,"ARTUNDUAGA RODRIGUEZ LIDA ARGENIS"]
[51828764,"OLGA  VARGAS RUBIO"]
[51833082,"GOMEZ VELASQUEZ LILIANA "]
[51833216,"PEÑA TRIANA ROSA MARGARITA"]
[51837234,"MARIA NANCY TEQUIA        "]
[51838701,"FLOR MARLENY PUIN MUÑOZ"]
[51841202,"GARCIA FORERO JULIA LUCIA "]
[51850569,"SELMA BEATRIZ ASPRILLA CORONADO"]
[51854062,"JUDITH VALENCIA APARICIO"]
[51858201,"MARIA ANGELES LERMA CARREÑO"]
[51867311,"FANNY MARLEN PEREZ PABON "]
[51870738,"PEREIRA LIZCANO SANDRA MARY"]
[51872177,"DORIS PATRICIA OSMA SUAREZ"]
[51875915,"LUZ SOFIA AMAYA CASTAÑEDA"]
[51876386,"CLAUDIA IOMARA AYALA BELTRAN"]
[51878795,"LUZ DARY LEON QUINTERO       "]
[51880973,"ARIS SEDITH CABARCAS MARTINEZ"]
[51883176,"FELISA DEL SOCORRO VARGAS COSSIO"]
[51883923,"CLARA PATRICIA ROJAS PARRA"]
[51890011,"ANA LIBIA GARZON BOHORQUEZ"]
[51898565,"LIDA PIEDAD VARGAS SALAMANCA"]
[51901630,"CONTRERAS BARAJAS MARIA ARACELY"]
[51909609,"FANNY PAEZ GORDILLO        "]
[51911406,"MYRIAM MARLENE CHAPARRO LOPEZ"]
[51911512,"MILADYS RAMIREZ ARDILA"]
[51911535,"ESTHER ROSARIO HERNANDEZ CARO"]
[51918159,"CRISTINA ISABEL FORERO MANTILLA"]
[51921648,"NIDIA CLEMENCIA CASTILLO LEON"]
[51931422,"ROSA ENRIQUELINA GOMEZ CORREDOR"]
[51932226,"AIDA ESTHER MOSQUERA ARIZA      "]
[51936051,"ANA CECILIA CARRANZA BOHORQUEZ     "]
[51940017,"CONSUELO ACEVEDO NOVA       "]
[51941376,"ENELIA AMPARO HERNANDEZ HURTADO     "]
[51944635,"MARIA EUGENIA SIMIJACA LOPEZ"]
[51953207,"BABATIVA SANABRIA BRENDA INGRID"]
[51954561,"SANDRA PATRICIA PINILLA MARTINEZ"]
[51954665,"LILIANA MORALES "]
[51955452,"ADRIANA MORENO RONCANCIO"]
[51956932,"OLGA LUCIA GARCIA VALENCIA"]
[51959892,"NADYA RESTREPO SANCHEZ"]
[51966515,"BECERRA MARMOLEJO NUBIA "]
[51967859,"MARIA ROJAS BUITRAGO        "]
[51973314,"ROCIO DE DIEGO SANCHEZ       "]
[51974305,"SONIA JANNETH RODRIGUEZ ORTEGA"]
[51975685,"EDDY RUTH TARAZONA COBALEDA"]
[51980182,"MARTHA PATRICIA VARGAS MORENO"]
[51980291,"LUZ ANGELA GOMEZ GUERRERO       "]
[51981026,"ALIX ALEIDA FAJARDO BENITEZ"]
[51984008,"MARTHA CECILIA MUGNO NUÑEZ"]
[51985281,"ELIZABETH REAL MUÑOZ"]
[51987375,"NUBIA STELLA VASQUEZ ANGEL      "]
[51987663,"ROUS MILENA BELLO NIEVES       "]
[51990150,"CLAUDIA PATRICIA GUTIERREZ ECHEVERRIA"]
[51994323,"FANNY MARTINEZ SILVA        "]
[51994336,"MONICA GALEANO VELASCO       "]
[52006019,"LYNDA NADIEZHDA MELENDEZ MARTINEZ     "]
[52018995,"BERMUDEZ MOLINA OLGA LUCIA"]
[52022122,"ALISONS MAGALY DELGADO SALAZAR"]
[52023408,"ARDILA MONTOYA MARISOL "]
[52023785,"ANICHARICO DIAZ LEDIS ESTHER"]
[52025406,"AURA MARIA ACEVEDO LEGUIZAMON"]
[52026065,"GARCIA CRUZ MARIA ELIANA"]
[52027277,"BLANCA YANETH URIBE NEUTA"]
[52028613,"ADRIANA EDITH SACRISTAN CARVAJAL"]
[52029439,"CLAUDIA MARCELA NIETO ARROYO"]
[52029879,"ROSA VICTORIA GAMBOA MARTINEZ      "]
[52030890,"LADY PATRICIA JIMENEZ RODRIGUEZ     "]
[52031821,"GLADYS ESCALANTE BARRETO"]
[52032499,"LUZ DARY BARRERA PARRA       "]
[52032526,"ANA YENY RODRIGUEZ CABARCAS"]
[52032601,"MARITZABEL NUﾑEZ DUARTE       "]
[52035081,"SANDRA CAROLINA MORENO SALGADO"]
[52036335,"RINCON GUTIERREZ YENNY LILIANA"]
[52039924,"MARYBEL GAITAN CORTES"]
[52045572,"JEANNETTE LUCIA CASTRO HERNANDEZ     "]
[52048304,"HYMER CASALLAS FONSECA"]
[52049573,"ANGELA ROCIO ESPITIA MONCADA"]
[52056140,"GALVIS AYALA INGRID MABEL"]
[52056324,"INGRID ROCIO TORRES TRIANA"]
[52056343,"YOLANDA TRISTANCHO CEDIEL"]
[52056553,"VICTORIA HELENA DURAN RIVERA"]
[52057175,"SAYDA HELENA CAMBEROS PAEZ"]
[52057352,"MARTHA EDITH HERNANDEZ ARIZA"]
[52058048,"LINA MARIA TORO TAMAYO"]
[52060405,"HERMINIA HUERTAS RODRIGUEZ"]
[52064826,"NUBIA YANETH ROZO LOTERO"]
[52066179,"CRISTINA IPUS CORREA        "]
[52067182,"LUZ ERIKA SUAZA ACEVEDO       "]
[52067385,"MARIA ROSA PERSIDES MURILLO MOSQUERA    "]
[52068106,"JENNY FERRO HENAO"]
[52068188,"PERAL SIERRA CHARUM"]
[52068415,"CLAUDIA PATRICIA MONTENEGRO TRONCOSO"]
[52068508,"YAÑEZ BOLIVAR YENY "]
[52068833,"LOPEZ HERNANDEZ MARCELA "]
[52070552,"CLAUDIA MARGARITA ARTEAGA CUARTAS "]
[52071884,"ELCY AUDOR BECERRA        "]
[52071920,"MARTHA CECILIA GOMEZ CASTILLO"]
[52082293,"GUIOMAR LUZETTE OLIVEROS RENGIFO"]
[52083261,"SANDRA PATRICIA ﾑAﾑEZ ORTIZ      "]
[52083575,"JHANN KARLA ORJUELA ACOSTA"]
[52085112,"ELIANA PATRICIA RUBIO CONDE"]
[52093380,"ROSA ISELA ORTIZ VILLAMIZAR"]
[52093423,"GLORIA INES GONAZALEZ MINA"]
[52098083,"ELIANA ROCIO ALVARADO CAMPOS"]
[52099128,"DEISY YAMILE MARQUEZ MALAGON"]
[52099638,"MARYLUZ LOPEZ TALERO"]
[52100300,"ANGULO GUEVARA MONICA PAOLA"]
[52104345,"INGRY JAYDIVY BELTRAN RIVERA      "]
[52107871,"MONICA GARZON RODRIGUEZ"]
[52109150,"ANDREA DEL PILAR ROJAS ALVAREZ"]
[52111223,"LUZ MARINA SEPULVEDA SEPULVEDA"]
[52111488,"NIDIA PATRICIA VARELA ARISMENDY"]
[52115022,"JULIETA ALEXANDRA ARISTIZABAL URQUIJO"]
[52118119,"NIDIAN PEDRAZA TELLEZ       "]
[52121276,"JASMIN LICED PALACIOS NIﾑO      "]
[52121356,"SANDRA GUTIERREZ CORTES"]
[52122693,"YENNY ESMERALDA TORRES RUBIO"]
[52124205,"YENNY HASLEY YAZO LOZADA"]
[52126129,"SANDRA BIBIANA RINCON VARGAS"]
[52128564,"NURY CONDE CONDE"]
[52129432,"DIANA MARTINEZ BOCANEGRA       "]
[52146157,"MARIA CAMILA COTAMO JAIMES"]
[52146669,"MARCELA CEBALLOS MEDINA"]
[52147698,"MAGDALENA DURAN SOLORZANO"]
[52148229,"MAGDA LILIANA ROJAS ROJAS"]
[52148728,"MARTHA LILIANA SOTO IGUARAN"]
[52149801,"ELIZABETH RINCON BUITRAGO "]
[52152819,"GABRIELA PARRA MELENDRO"]
[52153747,"CARMEN ANDREA CASTRO HERNANDEZ"]
[52154471,"DEYANIRA PERDOMO CUELLAR"]
[52154679,"JUANA MARCELA PATARROYO MONTAÑEZ"]
[52155892,"NANCY ROCIO CAMACHO CAMACHO      "]
[52157045,"ANGELA PATRICIA CRUZ VARGAS"]
[52158747,"CRISTIANO EMILSE "]
[52159556,"MONICA ISABEL RUEDA QUINTERO      "]
[52159769,"NANCY CRISTINA CASTRO ALARCON"]
[52163343,"RUTH MIREYA GALEANO ANGEL"]
[52166341,"HASBLEIDY BOHORQUEZ PUERTO"]
[52166594,"RUBBY MARKLEY DUARTE TARQUINO"]
[52169760,"DIANA SUSANA MONTILLA MURILLO      "]
[52171343,"LUZ MARINA GALINDO CARO"]
[52173293,"ALVAREZ GARNICA LUZ MERY"]
[52173437,"GOMEZ CALDAS INGRID LILIANA"]
[52174351,"MARY LUZ MORALES MORCOTE"]
[52175297,"VICTORIA ELVIRA NEUTA SANCHEZ      "]
[52177115,"MARELIA RODRIGUEZ TELLEZ"]
[52182238,"DEISY MAYERLY BRAVO ZAPATA"]
[52184967,"CLAUDIA ALEXANDRA GUZMAN "]
[52194109,"DULMA ANDREA CEDIEL PEREZ       "]
[52195235,"ALEXANDRA MARIN VALDERRAMA"]
[52198868,"CARDOZO TRIANA ZULLY ALEJANDRA"]
[52203518,"ANA HELENA CAMACHO BERNAL       "]
[52206214,"MARIA LUZ ANGELA AMADO RIVERA"]
[52206596,"ERIKA LISDEY MUÑOZ PINTO"]
[52206710,"GINA MARCELA RUBIO RODRIGUEZ"]
[52208664,"LILIANA JEANNETH CAÑOLA TOVAR"]
[52210443,"GOMEZ TOCARRUNCHO RUBY LILIANA"]
[52219313,"DIANA MILENA GOMEZ RINCON       "]
[52219430,"ANGELA ROCIO DEL PILAR PARRA SIGUA"]
[52219978,"LUZ MYRIAM RIAÑO BARRERA"]
[52221092,"ANA LUZ DELIA AVILA BUITRAGO      "]
[52221851,"DINED OBYRNE LOPEZ MURILLO      "]
[52223778,"LUZ NELLY ORTIZ MOYA"]
[52224849,"ROCIO LISET DURAN CAÑON"]
[52225852,"ANGELA MARIA MOYA CUESTA"]
[52227100,"LUZ MARY LOPEZ BERNAL"]
[52227579,"DIANA CRISTINA HIGINIO CUELLAR"]
[52227904,"ALCIRA LEONOR HERRERA GUALTEROS"]
[52229514,"MARYSOL GUEVARA ROMERO"]
[52232581,"YANETH VARGAS GUERRERO"]
[52233568,"CLARA HELENA RUIZ MARTINEZ "]
[52233907,"SANDRA JANNETH VALENCIA LONDOÑO"]
[52233940,"GEOVANNA PARRA MELO"]
[52249051,"ADRIANA MILENA RODRIGUEZ       "]
[52252727,"CLAUDIA PATRICIA HERRERA LOGREIRA"]
[52255349,"ARELYZ JOHANA QUIROGA MORENO      "]
[52255720,"PAULA ANDREA SILVA LEON"]
[52256139,"DIANA ERESBEY URBANO CASTRO"]
[52260935,"LESMES OLARTE MARIA ALIX"]
[52261768,"IVONNE ASTRID RAVE"]
[52262953,"ALVAREZ GUTIERREZ ASTRID "]
[52263411,"NANCY VARGAS PAJOY"]
[52264429,"PAOLA ANDREA MUÑOZ JURADO"]
[52265349,"GUTIERREZ VALENCIA PAOLA "]
[52266252,"ALEJANDRA CATALINA FIERRO VALBUENA"]
[52266273,"INGRID CAROLINA DUQUE NUÑEZ"]
[52268031,"LINA INES RICARDO MARRIAGA"]
[52269325,"HELLY MILENA MONTENEGRO ANGEL"]
[52271594,"ADRIANA GARCIA PAIPILLA"]
[52273020,"QUINTERO CAUCALI YAIRA MILENA"]
[52274400,"ANDREA FERNANDA FERNANDEZ PEREZ"]
[52274614,"ADRIANA PEÑA GARCIA"]
[52274975,"ANDREA BOCANUMENT GARZON       "]
[52275593,"MARISELA CARDENAS ROMERO"]
[52283801,"LAYS YESSENIA MOSQUERA CHAMORRO     "]
[52287212,"DISNEY ELINA SANCHEZ ALVARADO      "]
[52290242,"DEISY ROCIO ROMERO LIBERATO"]
[52306870,"GARZON GARZON MAGNOLIA "]
[52306993,"MARISOL MORENO VERA"]
[52319101,"GLORIA ESPERANZA SIERRA JIMENEZ"]
[52320625,"ROJAS HERNANDEZ SANDRA MILENA DE LA ALEGRIA"]
[52320691,"LUCENITH GARZON MILLAN"]
[52321203,"CLAUDIA ROCIO SANDOVAL VELOZA      "]
[52321424,"ISABEL PINEDA ACERO"]
[52324562,"GONZALEZ RAMIREZ LUZ YADIRA"]
[52340554,"NASHLY PEINADO MALAGON"]
[52344037,"ERIKA MARIA GONZALEZ GUERRA"]
[52346466,"CLAUDIA GIOVANA ARAMBULA CURREA"]
[52346828,"MAYERLY ALEXANDRA GARCIA POVEDA"]
[52347848,"PARRA GOMEZ SANDRA MILENA"]
[52348496,"ANDREA PAOLA GARCﾍA MORENO      "]
[52350080,"YUDY GOMEZ RENGIFO        "]
[52351058,"MARITZA DEL PILAR SANCHEZ RUBIANO"]
[52351676,"DIANA MILENA TORRES LINARES"]
[52352400,"GONGORA BERMUDEZ PATRICIA "]
[52360105,"OLGA CECILIA SANTOFIMIO DELGADO"]
[52362217,"ACUÑA ACUÑA LOURDES MARIA"]
[52364794,"CLAUDIA PAOLA MALDONADO MONTAﾑEZ     "]
[52369923,"ILBA YANETH MEZA CASTAﾑEDA      "]
[52371677,"YEIMY ROCIO MICAN MARTINEZ"]
[52373007,"DURLEY GAITAN HERNANDEZ"]
[52375429,"FLOR MIREYA BARRETO VASQUEZ"]
[52376574,"LUZ HELENA RAMIREZ HACHE       "]
[52381327,"ELIANA PAOLA CASTILLA PARRA"]
[52381763,"YADY XIOMARA CASTELLANOS RENDON     "]
[52383564,"LIZ JOHANA GARCIA HERNANDEZ"]
[52387168,"SANDRA JIMENA LOZANO CALDERON"]
[52388116,"ZULLIS MARIA CORDOBA CORDOBA      "]
[52409137,"CAROLINA VELANDIA FLOREZ"]
[52409157,"ANA MATILDE AVENDAﾑO AROSEMENA     "]
[52409588,"AIDA LUCIA CONTRERAS VILLAMIZAR"]
[52409833,"MARIA FERNANDA BERMEO FAJARDO"]
[52410381,"LAURA GABRIELA CURIEL AGUANCHA     "]
[52410450,"RODRIGUEZ VELANDIA TATIANA MARIA"]
[52410561,"DIANA CAROLINA MEJIA ZAPATA"]
[52414504,"ANGELICA AMINTA LOPEZ MORENO"]
[52416344,"DIANA SEHYDAT NOVOA MONTOYA      "]
[52420064,"ADRIANA MARIA PATIÑO CARRERA"]
[52420341,"MARÍA HELENA HOYOS MEJÍA"]
[52421200,"GINA PAOLA CASTRO JESSEN"]
[52421928,"ADRIANA MARCELA FLOREZ SUAREZ"]
[52422632,"AVENDAÑO PABON ROCIO DEL PILAR"]
[52424234,"CLAUDIA HERMINIA HURTADO TORRES"]
[52424617,"ZAYRA MERCEDES CASTILLO ACOSTA"]
[52424846,"DIANA GISELLE OSORIO ROZO       "]
[52425987,"DIANA ISABEL PEﾑA SANCHEZ       "]
[52426114,"PIEDAD ANGELA RIAÑO MENDIETA"]
[52428409,"ADRIANA PATRICIA GUEVARA FERNANDEZ"]
[52428461,"MARIA CLARA RODRIGUEZ GONZALEZ"]
[52428517,"ERIKA DEL PILAR QUINTERO VARELA"]
[52430619,"CLARA LILIANA MEJIA ORTIZ       "]
[52432215,"LUZ ROCIO CASAS GONZALEZ"]
[52432686,"JEHIMY ESPERANZA MARQUEZ BERNAL"]
[52434548,"RUTH MARINA VARGAS RINCON"]
[52436129,"MARIA DEL PILAR RODRIGUEZ MESA     "]
[52439487,"YANNETH HERNANDEZ FONSECA"]
[52439883,"BEJARANO HERNANDEZ MARTHA JANNETH"]
[52440793,"DIANA MILENA SALAZAR RONCANCIO     "]
[52441088,"DULFARY CALDERON SANCHEZ"]
[52447238,"LILIANA CASTILLO MOSQUERA      "]
[52449579,"LILIANA SASTOQUE BAUTISTA"]
[52449639,"ADELA ANDREA NIETO AGUDELO"]
[52451215,"HERRERA VILLAMIL MIRIAN CONSTANZA"]
[52454135,"MARGARITA MARIA CELIS SANDOVAL     "]
[52470669,"CLAUDIA ZULEMA LASTRA MARTINEZ"]
[52470684,"PILAR CONSUELO HERNANDEZ ORJUELA     "]
[52471541,"EPIAYU SANCHEZ MARCELA "]
[52471991,"KAROL ANDREA TRIANA RUIZ       "]
[52477154,"CATALINA JIMENEZ GARZON       "]
[52478681,"CAROL MARIYETH HERNANDEZ PATIÑO"]
[52479051,"SALAZAR BARRETO YENNY MARCELA"]
[52481446,"LUZ YADIRA RIVERA CARO       "]
[52483433,"CAROL JOHANA GUERRERO VASQUEZ"]
[52484382,"LUZ MARINA ARDILA VANEGAS"]
[52489642,"DIANA MILENA MENDIVELSO GARCIA"]
[52490475,"JANNETH ADRIANA CRIADO ROCHA"]
[52490849,"DOLLY FERNANDA SICHACA BELTRAN"]
[52491768,"CASTELLANOS VEGA INDIRA LILIANA"]
[52494320,"LILIAN ROCIO ORJUELA DAZA"]
[52494660,"ERIKA VANESSA QUIMBAYO BORDA"]
[52497098,"LUZ ANGELA VALENCIA LAVAO"]
[52499580,"JEIMMY SANDRA ROJAS MALAVER "]
[52500715,"DESIREE DIAZ PEÑA"]
[52501665,"VANEGAS DUQUE YENY ZORAIDA"]
[52504682,"ANGELA MILENA SUAREZ PULIDO"]
[52505276,"NINA MARIA GOMEZ ZAPATA"]
[52505797,"LUISA FERNANDA MARTINEZ ARIZA"]
[52506465,"CATALINA DEL PILAR GUZMAN CALDERON"]
[52514971,"DIANA CAROLINA PALACIOS REINA"]
[52515022,"MONICA CECILIA SIACHICA PALACIOS     "]
[52515408,"LINA MARIA ARENAS MARIQUE"]
[52517059,"ISNELIA ISABEL DIAZ NARVAEZ      "]
[52517103,"LUCY ANDREA NOVOA FARFAN       "]
[52517869,"DORA ALEJANDRA GAVIRIA SERNA"]
[52519464,"ADRIANA ISABEL TORRES ALONSO"]
[52522604,"ANA MILENA RIVEROS RAMOS"]
[52522726,"LILIANA MARCELA MUNAR RODRIGUEZ"]
[52524772,"MARIA ANGELICA VERA MARTINEZ"]
[52525102,"JACQUELINE GOMEZ IBATA"]
[52525790,"GIRALDO TORRES YEIMY HELENA"]
[52526920,"DORIS JOHANNA GUERRERO PEREZ"]
[52527885,"SIERRA PINTO ZULMA NATALIA"]
[52531478,"ZARINA SURELLA NARVAEZ BASTIDAS"]
[52532369,"VIVIANA  MANRIQUE ZULUAGA"]
[52533066,"JENNY CAROLINA HERRERA CAGUA"]
[52535689,"RUBY ANDREA FORERO DUEÑAS"]
[52536052,"ANA MARIA DEL PILAR RODRIGUEZ OYOLA    "]
[52537188,"LIZBETH RODRIGUEZ AGUDELO"]
[52538921,"ANDREA LUCIA RODRIGUEZ ORAMAS"]
[52539367,"ALEXANDRA VARGAS PINILLA"]
[52539634,"CLAUDIA LILIANA CIFUENTES AVENDAÑO"]
[52539645,"MARLEN VANESSA UMAﾑA PALOMEQUE     "]
[52539945,"HELENA MARITZA LOPEZ"]
[52540059,"ANGELA BEATRIZ GUTIERREZ CABRERA"]
[52541835,"CRISTINA MILENA PEREZ PRIETO      "]
[52542504,"RUTH YANETH ROA TORRES       "]
[52543090,"ADRIANA ROMERO WILCHES"]
[52543531,"KATERINE ADRIANA CRISTANCHO RIOS"]
[52556092,"VEBERLY CRISTINA VALENCIA LANCHEROS    "]
[52557133,"MARIN GRANADOS SANDRA YOLANDA"]
[52584712,"BERENICE VARGAS NIEVES"]
[52585694,"ESPITIA BARRETO MARIA ANTONIA"]
[52587919,"ADRIANA LUCIA AFANADOR VILA"]
[52619295,"NUBIA RAQUEL ROJAS SOCHE"]
[52620848,"ASTROS SOLANO LUZ BETTY"]
[52620954,"NATALIA ANGEL CABO"]
[52624177,"MONICA YANETH CORTES"]
[52634588,"CLAUDIA YAZMIN PARDO RODRIGUEZ     "]
[52666592,"ASTRID MILENA CASAS BELLO"]
[52690191,"PATRICIA NAVAS ROTHLISBERGER"]
[52690612,"MARIA FERNANDA POLANIA CHACON"]
[52694146,"ADRIANA MARCELA POVEDA CAPUTO"]
[52694781,"CAROLINA ORTEGA CONTRERAS"]
[52695982,"MARCELA TOVAR THOMAS"]
[52696792,"ROSA HELENA CABALLERO BARRETO"]
[52697551,"MARIA MAGDALENA OSORIO MEJIA"]
[52700963,"CAROLINA SOLANO CASTILLO"]
[52701444,"YENNY JOHANNA GONZALEZ BELTRAN     "]
[52702029,"NYDIA JACKELINE BECERRA LOPEZ"]
[52702796,"GLORIA PATRICIA PEDROZA BALLESTEROS    "]
[52703703,"SANDRA XIMENA ORTIZ MUÑOZ"]
[52704351,"ELIANA LUCIA OLIVARES SUAREZ"]
[52704474,"BLANCA RUBY LARA         "]
[52704609,"ELIANA CAROLINA DIAZ MORENO"]
[52707926,"CAROLINA REINA MARTINEZ"]
[52708528,"CESPEDES CORTES DIANA MARCELA"]
[52708813,"RAYZA ALEJANDRA REYES MARCIALES"]
[52709949,"LUZ MARY MARTINEZ GALINDO       "]
[52710865,"LIZ DIANA MUETE MATIZ"]
[52712625,"HEIDI MILENA CHAVEZ MARTINEZ"]
[52713474,"ELIZABETH ENRIQUEZ HERRERA"]
[52713535,"MARIA PAOLA BLANCO CETINA       "]
[52717265,"MARIA ANGELICA RAMIREZ CELIS"]
[52729476,"LILIANA PAOLA PEREA CRISTANCHO     "]
[52729721,"MAGDA RUTH MORA CAÑAS"]
[52730764,"VIVIAN NAYIBE CASTRO ROMERO"]
[52735085,"PAOLA ANDREA GRISALES CLAVIJO"]
[52736805,"MILLY JENNY GONZALEZ ALFONSO"]
[52738460,"ADRIANA ALVAREZ HERNANDEZ"]
[52739663,"JEIMY PATIÑO MORENO"]
[52742169,"SANDRA MILENA GARZON PEÑA"]
[52747720,"ADRIANA NATALY CALVO PEÑA"]
[52749505,"AREVALO NIAMPIRA LADY JOHANA"]
[52749903,"LUZ YAMILE AYA CORBA"]
[52754243,"COBOS ANGULO SANDRA MILENA"]
[52757316,"GIOVANNA MORALES AGUIRRE"]
[52761146,"JEIMMY CAROLINA CIFUENTES GARCIA"]
[52762445,"DIANA MORENO OROZCO        "]
[52763706,"DIANA MAGALY BARREIRO ORTEGON"]
[52764121,"PAOLA ANDREA JOYA RAMIREZ"]
[52765405,"LUZ NEIDY GAMEZ VARGAS"]
[52766369,"CARDOSO BRAVO LUZ ANGELA"]
[52766399,"ANNY JANETH ANGULO CORDOBA"]
[52770670,"MARITZA BOCANEGRA        "]
[52773041,"CLAUDIA NAYIBE TELLEZ REINA"]
[52778102,"DINA VANESSA VARGAS GARZON"]
[52778993,"TATIANA DEL PILAR DUEÑAS GUTIERREZ"]
[52779491,"INGRID PAOLA ROMERO NIÑO"]
[52782734,"ADRIANA MARIA UMBARILA CASTILLO"]
[52783813,"SANDRA MILENA MUÑOZ AREVALO"]
[52785797,"INGRID MARITZA MORA CASTRO"]
[52787440,"LADY JANNETH SOTO REYES       "]
[52789235,"ANA MARIA MORALES PARRA"]
[52789884,"TAMANAI OLARTE NIÑO"]
[52791914,"ESPITIA SANCHEZ LUISA FERNANDA"]
[52792495,"MARITZA MILENA NOGUERA SIMIJACA"]
[52793259,"LAURA MILENA CANIZALES HERRERA"]
[52795262,"ANA MARIA RAMIREZ RAMIREZ"]
[52796926,"EDITH JOHANNA FUENTES VIDAL"]
[52800536,"PAOLA ANDREA MEDINA PACHECO"]
[52801110,"ADRIANA MARIA GUERRERO TOVAR"]
[52801224,"OLGA LUCIA SOLANO DELGADILLO"]
[52803351,"ANGELICA MARIA CARDENAS BOTERO"]
[52803368,"JENNY CAROLINA LEON DIAZ"]
[52804120,"VIVIANA ARANGO VILLEGAS"]
[52807994,"ANGELA PATRICIA MORENO TRUJILLO"]
[52808105,"DOLY MARCELA LOPEZ CARDONA"]
[52809266,"MARILUZ MORA MARTINEZ       "]
[52812949,"JESSIKA JOAN MCLEAN HINESTROZA"]
[52814782,"NATHALIE PABON AYALA"]
[52815557,"JOHANA CAROLINA LLERAS RODRIGUEZ"]
[52815711,"JENNY ANDREA LOPEZ GARZON"]
[52816770,"KRISTELL LISETH QUIROGA MARIN"]
[52817478,"GOMEZ TOVAR SANDRA MILENA"]
[52818448,"LINA DELMAR MORENO TOVAR       "]
[52820571,"DIANA PAOLA MATIZ CASTILLO"]
[52821168,"LAVAO SANCHEZ SAUDITH FARIBE"]
[52821352,"LEIDY CAROL CORREA DIAZ"]
[52821824,"CAROLINA VIVAS VILLA        "]
[52822336,"ELBA BRIDGETH PEREZ CUBILLOS"]
[52823390,"AMAYA RODRIGUEZ CAROLINA "]
[52823661,"MICHELLE VARGAS GARCES"]
[52824958,"IVONNE YENEIR BELTRAN BOHORQUEZ"]
[52827628,"YANNY ALEXANDRA VANEGAS GOMEZ"]
[52828233,"LUISA FERNANDA GALARZA SOLANO"]
[52830255,"JENNY MIREYA CHAPARRO ORTIZ"]
[52830395,"MARITZA  ORTEGA SANABRIA"]
[52831343,"LEIDY CAROLINA LEON BOHORQUEZ"]
[52832043,"NANCY BRIGITTE RUIZ BUITRAGO"]
[52836036,"DAIYANA RODRIGUEZ MUSA"]
[52836458,"GLADYS ANDREA RODRIGUEZ GAITAN"]
[52838324,"LINA XIOMARA GONZALEZ RINCON"]
[52839095,"JENNIFER BENJUMEA MORENO"]
[52841135,"AMAYA MENDOZA LUCY MILENA"]
[52841488,"NOHORA CAROLINA TRIVIÑO MALDONADO"]
[52841597,"LAURA HEIDY MARTINEZ VANEGAS      "]
[52843456,"BUITRAGO AGUILAR GINA PAOLA"]
[52846092,"TATIANA GACHA GONZALEZ"]
[52846591,"MYRUST KEDIALA CABEZAS RINCON      "]
[52847156,"YINA ANDREA LOAIZA UMAÑA"]
[52848707,"IVETH LORENA SOLANO QUINTERO"]
[52849298,"SONIA LILIANA PARRA GARZON      "]
[52852649,"CARDONA RUIZ SANDRA CAROLINA"]
[52855278,"LILI JOHANNA MENDEZ ESPITIA      "]
[52855919,"LIZBETH NATALIA ZUÑIGA PINO"]
[52859278,"DIANA MARCELA ORTEGON NIETO"]
[52862249,"SANDRA MILENA MORELLO PEÑA"]
[52862359,"MARIA ALEJANDRA LOZANO ORTIZ"]
[52862617,"CATALINA GIL CERON"]
[52864705,"DANIELA  RODRIGUEZ MEJIA"]
[52866417,"PAMELA ROSERO GARCIA"]
[52866974,"NATALIA MARIA ESPITIA MONTERO"]
[52876343,"BIBIAN LORED GUARNIZO SALAZAR"]
[52882043,"ABDOWLAYE SMITH CAMPO       "]
[52887419,"VIVIAN ANDREA RUIZ PEREZ       "]
[52889648,"ANGELA MARITZA MARCHENA MENDOZA"]
[52896337,"DIANA YAMILE GRANADA BOHADA"]
[52900355,"LUZ KARINA ORDOÑEZ LASERNA"]
[52900749,"DIANA PATRICIA VARGAS SANCHEZ      "]
[52900955,"DEISY CLARIVEL ROMERO RIVERA"]
[52900994,"CUJER PINZON MILENA "]
[52901430,"LEIDY ROCIO VARGAS VILLARREAL "]
[52903864,"DIANA CAROLINA NARVAEZ NUﾑEZ      "]
[52904967,"ANGELA CRISTINA CARVAJAL TOVAR "]
[52907726,"YOLIMA ARIAS MORALES"]
[52911023,"BUITRAGO CERON YENNY PATRICIA"]
[52912762,"JENNY ALEXANDRA CAMARGO RUBIO      "]
[52915399,"SHIRLEY FABIOLA CATHERINE PRADO CAÑAS "]
[52916718,"CATALINA CARO GALVIS"]
[52919372,"NATHALI RODRIGUEZ ORDUZ"]
[52927136,"SANDRA YANETH MORENO CRUZ"]
[52927330,"ADRIANA DEL PILAR MARQUEZ ROJAS     "]
[52927876,"NATALIA  BRUGES LOMANTO"]
[52930265,"DIANA CAROLINA ZARATE PEREZ"]
[52930442,"CLAUDIA ALEXANDRA TRIANA LUGO"]
[52931949,"JULIE VIVIANA LLORENTE VALBUENA"]
[52933031,"SOLANYI ANDREA QUINTERO CAUCALI     "]
[52933037,"ZAMANDHA AURORA GELVEZ GARCIA"]
[52933667,"CAROL DAYAN MORENO VELA       "]
[52933988,"LADY ANDREA CORDOBA NAVARRO"]
[52935585,"LOREN MAGNOLIA IBARRA MORENO"]
[52935974,"DEISY PAOLA VASQUEZ MOJICA      "]
[52936432,"SILVIA IVONNE CHACON BARRIOS"]
[52951164,"JENNY PAOLA BUITRAGO BONILLA"]
[52951520,"ANDREA RODRIGUEZ CETINA"]
[52952647,"KAREM ANDREA GAMEZ UMBACIA"]
[52953064,"FAJARDO FONSECA| ODHETTE XIMENA"]
[52953594,"ANA DOLORES CASTRO VASQUEZ"]
[52954583,"CLARIBETH OVIEDO RAMIREZ       "]
[52956262,"YALY ANDREA CADENA GONZALEZ"]
[52959547,"GINNA PAOLA MARTINEZ BRICEÑO"]
[52959805,"JIMENEZ AVELLANEDA LINA ADELAIDA"]
[52960960,"YUVI ALEJANDRA VELANDIA HIDALGO"]
[52961915,"BELTRAN DUARTE OLGA BIBIANA"]
[52963559,"INGRID KARINA BETANCOURT ARIAS"]
[52964128,"ANGELICA MARIA DIAZ BURGOS"]
[52964235,"LINA MARIA GUILLEN DURAN"]
[52964942,"KATHERINE LOPEZ RAMIREZ"]
[52965942,"DIANA GORETTY OVIEDO MANRIQUE"]
[52965991,"NANCY MAGALY GUERRERO GUTIERREZ"]
[52966791,"DIANA PAOLA PEREZ ORAMAS"]
[52966841,"DEISY ANDREA MANOSALVA MARTINEZ"]
[52966991,"GLENDYS DEL CARMEN BADEL NAVARRO"]
[52971787,"CAROLINA SANCHEZ LATORRE       "]
[52975479,"NUBIA YAMILE PERAZA ARGUELLO"]
[52978442,"MARROQUIN FOREROR YUDY CONSTANZA"]
[52978654,"YURI JOHANNA GARCES MARTINEZ"]
[52979076,"ANGELA VIVIANA CASTILLO ALARCON"]
[52980445,"ADRIANA MARIA ALQUICHIDES OTAVO     "]
[52980691,"MARIA DELPILAR CRUZ PINZON"]
[52984688,"SANDRA LILIANA MARTINEZ CHAPARRO"]
[52989522,"ANGELA RODRIGUEZ MENDEZ"]
[52989732,"CATHERINE VASCO CORREA"]
[52992512,"HERRERA GARRIDO NADIA YELENA"]
[52993109,"YULY PAOLA LEGUIZAMON PIÑEROS"]
[52993626,"ADRIANA MARIA DEL CASTILLO CABEZAS    "]
[52996691,"JENNIFER TORRES SANCHEZ"]
[52997926,"MARIA XIMENA GUZMAN DEL CASTILLO"]
[52998401,"MARIA DEL ROSARIO PEREA GARCES"]
[53001026,"PINO ROQUE TATIANA EUGENIA"]
[53001487,"MARIA XIMENA ORTIZ CUARAN"]
[53002750,"JUDY ANDREA PIRATEQUE GARCIA"]
[53003154,"MARINELA GUEVARA FARFAN       "]
[53003242,"GARCIA PERDIGON JULIANA "]
[53004957,"GEINY LIZETH HERNANDEZ RUBIO"]
[53006354,"YURI MARITZA MORALES MATIAS"]
[53006730,"YOANA PAOLA LOPEZ RODRIGUEZ      "]
[53007661,"JENNIFER HERNANDEZ OVALLE"]
[53008268,"LAURA CONSTANZA DUEÑAS LEGUIZAMON"]
[53009230,"MARIA XIMENA RAMIREZ TOVAR      "]
[53009544,"LORENA PIEDAD CAMPOS CUESTA"]
[53010380,"NATALIA ANDREA OSORIO RESTREPO"]
[53012061,"CAROLINA QUINTERO AGAMEZ"]
[53012989,"SANDRA MILENA GOMEZ CANO"]
[53013142,"ANDREA ALEXANDRA BERNAL CORTES"]
[53014053,"AMARANTA CATALINA SALAZAR FERNANDEZ"]
[53015488,"CRISTINA DAZA RODRIGUEZ"]
[53016579,"JULIETH VIVIANA VILLARRAGA GARCIA     "]
[53029016,"KATRY LORENA ASPRILLA ROJAS"]
[53037019,"JULY SAMIRA FAJARDO FARFAN"]
[53037866,"MONTAÑO GONZALEZ SANDRA MILENA"]
[53038508,"PAOLA VIVIANA ORTIZ LOPEZ       "]
[53038737,"JENY VIBIANA ACOSTA TORRES"]
[53041139,"JEANNY CARDOZO LOAIZA"]
[53041793,"BRAVO MORA YAMILE ESPERANZA"]
[53042041,"OVIEDO FERNANDEZ TANIA ELIZABETH"]
[53043974,"MARTHA CATALINA CASTELBLANCO DUARTE    "]
[53044803,"LEIDY MARIANA PAUTT RIVEROS"]
[53046075,"YONAILA SANCHEZ PEREA       "]
[53050672,"PAOLA VIVIANA LOPEZ GONZALEZ"]
[53051333,"MARIA CATALINA CASTELLANOS ZAPATA"]
[53062761,"MARLY YECENIA MARTINEZ MORENO"]
[53067576,"DIANA CAROLINA ROA"]
[53068215,"ROJAS CARAMPAIMA SUSANA "]
[53069330,"ANDREA JULIANA VILLAMARIN MANRIQUE    "]
[53074920,"LUZ AMPARO SIERRA ROJAS"]
[53075919,"VICKY JOHANNA COGUA NOVA"]
[53076898,"RAQUEL ANDREA DEVIA HERNANDEZ"]
[53079694,"JENIFFER CONSTANZA VALENCIA OME"]
[53080146,"LUISA FERNANDA TANCO CRUZ"]
[53080691,"ANDREA CASALLAS RODRIGUEZ"]
[53081200,"CATHERINE ALVAREZ ESCOVAR      "]
[53082684,"ALEJANDRA VALENCIA POSADA"]
[53090333,"YULLY PAOLA PINZON ORTIZ"]
[53092019,"ANGELA VIVIANA VEGA BARRERA"]
[53096567,"JENNY ALEXANDRA REYES NIﾑO      "]
[53096687,"DIANA MARCELA PEDRAZA PATARROYO"]
[53097642,"DIANA CAROLINA GIRALDO MAYORGA"]
[53102990,"GUTIERREZ GARZON NYDIA EDITTH"]
[53106213,"LEYDI VIVIANA HEREDIA CASTAÑEDA"]
[53106571,"DIANA PATRICIA ARDILA RAMIREZ"]
[53107754,"ANGIE JOHANNA GRANADA CASTRO"]
[53115021,"CASTAÑEDA ACOSTA ELIANA LUPITA"]
[53115076,"LINA MARIA ECHEVERRI LOMBANA"]
[53116983,"ESCOBAR ESPINOSA JEIMY TATIANA"]
[53117057,"DIANA YINETH PUENTES TELLEZ"]
[53117730,"DIANA PAOLA DIAZ JIMENEZ"]
[53120422,"LUISA FERNANDA DIAGO GALINDO"]
[53120575,"KAREN JULIETH QUINTERO PARDO"]
[53120596,"ANGIE PAULINE GALINDO CARREÑO"]
[53120723,"CESPEDES GARCIA LAURA SOFIA"]
[53121385,"NATALI MOSSOS REYES"]
[53121609,"DIANA CAROLINA SILVA MORALES"]
[53121722,"SANDRA MILENA INAGAN CERON      "]
[53124071,"JULIE NATALIA PINTO ALDANA"]
[53124274,"VIVIANA MARCELA MOLINA MENJURA"]
[53124369,"GLORIA CATALINA ROSERO TOLEDO"]
[53125037,"NUR FANNERY VALENCIA MOSQUERA"]
[53125307,"GINA KATHERINE GOMEZ NIﾑO       "]
[53129226,"DANYA LOPEZ BOLAÑOS"]
[53129286,"MARIA EMIRGEN SINDIGUE PEREZ"]
[53140587,"SANDRA VIVIANA MARTINEZ MICAN"]
[53140639,"MONTOYA AMARILES SANDRA MILENA"]
[53140924,"YADIRA ESTHER CIENFUEGOS SILVERA"]
[53153188,"ANGELICA MARIA ARIAS ORTIZ"]
[53154301,"BETANCOURT APONTE NOHEMI LUCIA"]
[53154603,"MONICA PAOLA NOVOA ACEVEDO"]
[53154647,"YINA NATALIA POVEDA RODRIGUEZ"]
[53159645,"DIANA PAOLA GONZALEZ MURILLO"]
[53164674,"DAISSY TATIANA SANTOS YATE"]
[53165832,"SOFIA CAROLINA CAÑON VALBUENA"]
[53166405,"ANA MARIA RODRIGUEZ ALFONSO"]
[53167019,"MONTEALEGRE CASTRILLON SANDRA LILIANA "]
[53167252,"DIANA MARCELA LEON NUÑEZ"]
[53167395,"SONIA VERONICA MUﾑOZ CARDENAS      "]
[53176808,"MARIA JIMENA MUNERA ALVAREZ"]
[53907500,"CLAUDIA MILENA BASTIDAS UBATE"]
[53910610,"LOPEZ CANTE NYDIA MABEL"]
[53925244,"PARRAGA GOMEZ XIMENA ANDREA"]
[53930783,"LAURA PATRICIA ALDANA ALDANA      "]
[54250430,"CHAVEZ IBARGUEN MARIA CECILIA"]
[54259652,"ANA BEATRIZ ACEVEDO MORENO      "]
[55168291,"RAMIREZ VARGAS ROSA HELENA"]
[55174665,"CLAUDIA LILIANA CORTINA FIERRO"]
[55179129,"BERTHA LILIANA CHARRY DIAZ"]
[55301534,"GUISELLE TATIANA FONTALVO PATIﾑO     "]
[57463977,"DENIS MARIA BOVEA BORNACHERA      "]
[59660407,"ALEJANDRINA VERNAZA QUIÑONES"]
[59664358,"MARIA ROSARIO BANGUERA RIVADENEIRA    "]
[59670959,"EDITA VIRGINIA GRISALES MONTAﾑO     "]
[59676599,"MAURA SOLEDAD CORTES TENORIO      "]
[59683936,"ANYELA VIVIANA GUANGA MARQUINEZ     "]
[59684613,"CARMEN ADIELA VALVERDE ESCOBAR     "]
[59685354,"YADI VANESSA VALENCIA BANGUERA     "]
[59819368,"MARY YANETH YEPEZ CHAMORRO      "]
[59820120,"ARGOTY MORIANO LUCY LILIANA"]
[59827677,"VIVIANA ALEXANDRA CERON RODRIGUEZ"]
[60312916,"ILIANA PATRICIA LOPEZ FUENTES      "]
[60340764,"REINA ESPERANZA CORDERO VARGAS     "]
[63279486,"DORIS ZULEMA RODRIGUEZ CARRILLO     "]
[63281469,"SILVIA PATRICIA VALBUENA PALLARES     "]
[63308567,"CARDENAS LEON NANCY JEANET"]
[63318678,"JACKELINE CEPEDA SANTAMARIA      "]
[63330472,"ESPERANZA VALBUENA TORRES"]
[63341066,"NANCY SANCHEZ MENDEZ        "]
[63366158,"CAMPOS RINCON JAQUELINE "]
[63431027,"MARTHA CECILIA GUTIERREZ PORTILLA"]
[63486393,"ADRIANA CONSTANZA PINTO BARON"]
[63489334,"GIOVANNA MARCELA MARTINEZ PINZON     "]
[63493613,"MONICA ISABEL OVIEDO SUAREZ"]
[63509579,"FERRER CACERES MARTHA LUCIA"]
[63515844,"FLOR ANGELA GONZALEZ GAONA"]
[63538650,"LAURA JULIANA DIAZ STACHENKO"]
[63548689,"LADY LILIANA ARIZA GALVIS"]
[63560810,"LAURA YADIRA ACEVEDO LOPEZ      "]
[64569339,"ADRIANA MARGARITA PAYARES NAVARRO"]
[64586383,"VIVIANA MOSQUERA MANJARRES      "]
[64588916,"TANIA IRINA BUELVAS HERNANDEZ      "]
[64702351,"DINA PAULINA GUTIERREZ MUSKUS"]
[64721312,"GUEVARA PESTANA NINI JOHANNA"]
[64931361,"DELMIS JOSEFINA POLANCO MARTINEZ     "]
[65588590,"ARAGON OYUELA OMAIRA "]
[65630158,"MARYURY CATLEYA LONDOÑO LUNA"]
[65633450,"KARINA DEL MAR ORTIZ LOZANO      "]
[65710935,"OLGA LUCIA ARANGO RODRIGUEZ"]
[65711157,"GRACIELA MARIA SANCHEZ SANCHEZ     "]
[65716316,"ARELYS VALENCIA VALENCIA"]
[65716349,"ERIKA ANDREA MACIAS CARDENAS      "]
[65716988,"CABEZAS GAMBOA MELIDA ANDREA"]
[65731196,"CLARA ISABEL CUBILLOS MORENO"]
[65734241,"GUZMAN RODRIGUEZ SANDRA LILIANA"]
[65734439,"EDNA JANETH GOMEZ ORTIZ"]
[65738198,"LUZ MYRIAM AREVALO TRUJILLO"]
[65738375,"CLAUDIA MERCEDES GOMEZ MARTINEZ"]
[65739814,"DORIS NANCY ALVIS PALMA"]
[65747777,"MARIELA RODRIGEUEZ URIBE       "]
[65752792,"CLARA INES VARON GOMEZ"]
[65767422,"ALDANA TRUJILLO ANDREA LILIANA"]
[65767980,"CURE ROMERO LAMIA GEOVANNA"]
[65772999,"MARIA ACENETH CIFUENTES BERNAL"]
[65775334,"MARIANA CRISTINA CORREA JARAMILLO     "]
[65776884,"NATALIA ANDREA LARA HINCAPIE"]
[65778343,"LONDOÑO SANDRA MILENA"]
[65778996,"ERIKA MILENA BELTRAN COLMENARES"]
[65780219,"INGRID CAROLINE TORRES PERALTA     "]
[65780443,"CASTELBONDO BERNAL LILIANA "]
[65785209,"LILIANA MILENA HERNANDEZ ROJAS"]
[65828981,"GENNY MILENA PADILLA REINOSO      "]
[66812821,"MONICA CARDENAS MANCILLA"]
[66846459,"DELGADO DAZA TIZZIANA INES"]
[66847667,"MARIA PAULA VERNAZA DIAZ"]
[66849398,"DIANA TORRES SANCHEZ"]
[66944176,"SANDRA PATRICIA ASPRILLA CAICEDO     "]
[67023991,"LADY JHOVANNA CANCHIMBO VERNAZA     "]
[68287741,"MARIA JULIANA TINEO PARALES"]
[68288971,"OLGA CECILIA PUERTA OSORIO      "]
[68297252,"MARIA ALEJANDRA BERMUDEZ RODRIGUEZ"]
[70100980,"IDELFONSO HENAO SALAZAR "]
[70119693,"NELSON ROBERTO PLAZAS NIÑO"]
[70518594,"HECTOR SALAZAR CASTAÑEDA"]
[71526731,"CUBILLOS GARCIA JORGE HUMBERTO"]
[71595043,"LEONARDO ADOLFO MORALES MORALES     "]
[71770169,"JORGE JOAQUIN MARTINEZ MONROY"]
[71784604,"CARVAJAL RESTREPO DUVAN NORBERTO"]
[71976492,"NELSON BEJARANO CORDOBA       "]
[72096684,"EUSTORGIO RODADO FUENTES"]
[72140467,"JAVIER ENRIQUE GUZMAN CAMARGO"]
[72160208,"SANCHEZ ORJUELA WEINER "]
[72188440,"LUIS ALFONSO MARTINEZ CHIMENTY"]
[72198993,"ULIANOV JOSE FRANCO VANEGAS"]
[72211828,"RAUL ARNOLDO NUÑEZ GONZALEZ"]
[72231500,"ALBERTO ANDRES GOMEZ AMIN"]
[72250548,"FARID ELIAS AMIN DE LA HOZ"]
[72254094,"LEONARDO JOSE MEZA ROMERO       "]
[72344369,"JOSE DAVID ARIZA TOBIAS"]
[73087485,"ADOLFREDO CARABALLO ORTEGA      "]
[73110534,"JOSE ANTONIO SANCHEZ SANCHEZ"]
[73125823,"WILLIAM ALFONSO WIESNER LOPEZ      "]
[73140059,"ALBERTO ANTONIO LORA HERRERA"]
[73169296,"ALI SERRANO CERVANTES"]
[73192156,"JULIO CESAR CASSIANI MIRANDA"]
[73508141,"JAROL MANUEL SALAS CASSIANI"]
[74181239,"JAVIER BUSTAMANTE CARO "]
[74241116,"FABIAN OCTAVIO PINZON BELTRAN      "]
[74323074,"JAIRO MARTIN SOLER LIZARAZO"]
[74364933,"JAIRO ALFONSO MORALES GALINDO"]
[75075866,"HUGO FERNEY OSORIO ARENAS       "]
[75083263,"JORGE EDUARDO ALZATE TIBAQUIRA     "]
[75085648,"FEDERICO ZAPATA OSPINA       "]
[75097407,"ANDRES FELIPE VALENCIA LOPEZ"]
[76307738,"RODRIGO DE JESUS JARAMILLO SALGADO    "]
[76333077,"OSCAR HERNAN PARUMA PABON"]
[76357502,"FABIO NELSON ROJAS        "]
[77007974,"JOSE DUBAL SANCHEZ ESPINOSA"]
[77014405,"OMAR WILMER BARRERA MEJIA       "]
[77014951,"MIGUEL DE JESUS OSPINO RODRIGUEZ     "]
[77026171,"LUIS CARLOS MEZA PRETEL       "]
[77031989,"SABAS EMILIO DUQUE CORTES       "]
[77033267,"HOCHIMINH VANEGAS BERMUDEZ      "]
[77094257,"HERNAN FELIPE ARAUJO ARIZA"]
[77175826,"HAMILTON FUENTES "]
[77183787,"YESID AFRANIO AMARIS OSPINO"]
[78028692,"CARLOS ALBERTO REINSTAG HERRERA"]
[78035194,"JEFFERSON LUIS PUENTE BARON"]
[78115445,"ARTURO ALBERTO MERCADO SALCEDO"]
[78380769,"DIMAS ANTONIO ZABALA ZURITA"]
[78675680,"BORIS MARX DURANGO TORRENTE"]
[78690400,"HERMIDES RAQUEL GONZALEZ MERCADO"]
[78705882,"JOSE DANIEL ALVAREZ RUIZ       "]
[79002382,"JUAN PABLO HERNANDEZ BUSTOS"]
[79042996,"PEDRO PABLO GAMA RINCON       "]
[79045374,"OSCAR YESID BERMUDEZ BARRAGAN"]
[79048190,"FRANCO CARO HUMBERTO "]
[79055235,"RICHARD GABRIEL GASCA BUELVAS"]
[79058026,"HENRY OVIDIO FLOREZ MORA"]
[79059733,"OSCAR HERNAN MESA MESA"]
[79104365,"CARLOS HORACIO JIMENEZ BARRERO"]
[79106615,"CAMPO ELIAS HASTAMORIR GARZON"]
[79108540,"JOSE EDMUNDO BRAVO OBANDO"]
[79116441,"FERNANDO  LOPEZ GUTIERREZ"]
[79117136,"RAFAEL HERNAN PEREZ GRANADOS"]
[79118394,"LUIS HERNANDO OTALORA "]
[79118514,"HENRY RAFAEL TOSCANO SANCHEZ"]
[79119026,"RAFAEL MIGUEL ROBLES BARAHONA"]
[79121970,"GALINDO HERNANDEZ RUBEN DARIO"]
[79123190,"MAURICIO ANTONIO PAVA LINARES"]
[79123981,"EDIEL AGUIRRE HERRERA"]
[79126641,"JOSE FRANCISCO AMAYA ANGEL"]
[79129394,"RAMIREZ PULIDO RICHARD TULIO"]
[79131692,"LOPEZ BURGOS SILVINO "]
[79131851,"OMAR HERNANDEZ GARAY        "]
[79133267,"ANGEL HIPOLITO BEJARANO LOMBANA     "]
[79148730,"JAVIER FRANCISCO CORREDOR MAYORGA"]
[79149185,"ALEJANDRO JORGE FERNANDEZ HERNANDEZ    "]
[79149281,"JAIME IGUARAN SANCHEZ"]
[79149616,"FABIO ROMERO CAMPOS"]
[79151298,"GUSTAVO CASASBUENAS VIVAS"]
[79151900,"ISMAEL ENRIQUE URREGO VARON      "]
[79153989,"GOMEZ MANCERA RICARDO AUGUSTO"]
[79154418,"FERNANDO SAAVEDRA CALLEJAS"]
[79159760,"JOSE EDILBERTO RODRIGUEZ REYES"]
[79162997,"VICTOR MANUEL ROCHA GUATAVA"]
[79220949,"LUIS HERNANDO VARON RAMIREZ"]
[79231258,"DANIEL SANCHEZ DUARTE"]
[79236192,"HENRY BENAVIDES BECERRA"]
[79236245,"CARLOS JULIO DIAZ VARELA"]
[79243620,"ROY ALEXANDER MIGUEL ALFONSO RAFAEL ABADÍA DIAZ"]
[79245118,"PEDRO JULIO PEREZ SALINAS"]
[79245304,"CRISTANCHO ROMERO LUIS FELIPE"]
[79248833,"CRISTOBAL SILVA GONZALEZ"]
[79249850,"MONTOYA ARBOLEDA YANT ALEXIS"]
[79253715,"ROSEMBERT OVALLE MALDONADO"]
[79253904,"MANUEL ERNESTO VILLAMIL JARAMILLO"]
[79259363,"JORGE ADELMO MORENO LEON       "]
[79261868,"JOSE ARLES NOVA VILLANUEVA"]
[79266449,"EDILBERTO CAICEDO BARRANTES"]
[79268014,"OSWALDO MORALES MUNAR"]
[79274371,"FERNANDO BALLESTEROS VALENCIA "]
[79274955,"VALENCIA GARCIA WILLIAM RAMON"]
[79276236,"CASTILLO CENDALES JORGE ENRIQUE"]
[79276876,"GARCIA LONDOÑO JORGE ENRIQUE"]
[79279880,"AVILA CORONEL CARLOS JULIO "]
[79280802,"CESAR AUGUSTO FRANCO ROJAS"]
[79284960,"RENE GUARIN CORTES"]
[79285938,"LUIS ERNESTO VARGAS AROCA"]
[79287893,"CESAR JULIO GORDILLO NUÑEZ"]
[79289622,"NOLBERTO OLAYA SANTOS       "]
[79290740,"ERNESTO CARRIZOSA FERRER"]
[79290742,"NELSON ORLANDO PEREIRA SALINAS"]
[79292818,"CIFUENTES CERON MIGUEL ANGEL"]
[79293000,"ELIECID PEREZ CANO        "]
[79294087,"JUAN CARLOS LONDOﾑO VELEZ       "]
[79294769,"GRISALES CARDONA RICARDO ANTONIO"]
[79294895,"MARIO SANTIAGO RODRIGUEZ ARIAS"]
[79295225,"ERIC RESTREPO SOTO"]
[79297692,"CARLOS JOSE GONZALEZ BARCHA"]
[79298583,"DIAZ GAMBOA HECTOR HERNAN"]
[79301032,"MONROY PEREZ OSCAR WILLIAM"]
[79302075,"IVAN JAVIER GOMEZ MANCERA"]
[79306429,"MAURICIO  ABELLO RICO"]
[79307794,"JORGE LEONARDO ROBAYO RUIZ"]
[79314454,"DIEGO LUIS ANGULO MARTINEZ"]
[79315977,"ERNEY RAMIREZ VALENCIA"]
[79316075,"RAMIREZ ROBAYO RICARDO ALFONSO"]
[79316733,"CARMONA PERTUZ LUIS ALBERTO"]
[79321293,"ALEXANDER RUBIO GALVIS       "]
[79322776,"LUIS ALFONSO SANCHEZ PARRA"]
[79323575,"CASTILLO ESPEJO SANTIAGO "]
[79324848,"ALDANA MESA CESAR RICARDO"]
[79328668,"JORGE ORLANDO SABOGAL TORRES"]
[79329489,"RICARDO RUBIO ANGULO"]
[79330371,"NESTOR  VARGAS LOZANO"]
[79334151,"ALFONSO VARGAS ROMERO       "]
[79335453,"CASTELLANOS RODRIGUEZ WILLIAM "]
[79338749,"CARLOS ALBERTO DURAN AYALA      "]
[79341112,"HECTOR ENRIQUE DIAZ TORRES"]
[79344459,"GUILLERMO RAUL PUENTES SANCHEZ     "]
[79344520,"HERNAN GOMEZ ESPITIA"]
[79345796,"HARVEY MARINO BUSTOS ZARATE"]
[79345905,"FERNANDO BURGOS AVILA       "]
[79346095,"JOSE LUIS PEÑUELA FRANCO"]
[79353698,"NELSON JAIR PEﾑA GAMA        "]
[79354691,"GONZALEZ ARROYAVE JUAN CARLOS"]
[79355209,"ERNESTO FAJARDO VALDERRAMA      "]
[79358917,"JORGE ENRIQUE CAMPAZ GONZALEZ      "]
[79366059,"JAVIER ALFONSO FORERO NIﾑO      "]
[79369775,"EFRAIN MURILLO SILVA"]
[79374076,"ROBINSON PALACINO ZAMORA"]
[79379984,"EDGAR GUILLERMO GOMEZ DUQUE"]
[79386705,"LUIS GABRIEL ROMERO SILVA"]
[79387702,"ARCADIO ALDANA SANCHEZ"]
[79388533,"OSWALDO ALFREDO UREÑA ENRIQUEZ"]
[79389654,"ERNESTO PINEDA GUEVARA"]
[79394582,"CARLOS ALBERTO CARREﾑO CARVAJAL     "]
[79396707,"FAJARDO BENITEZ PABLO YESID"]
[79400363,"WILLIAM ERLANDI ROMERO ARBOLEDA"]
[79401060,"SERGIO ENRIQUE SOLIS UCROS      "]
[79401138,"PALACIO CADAVID WILLIAM DE JESUS"]
[79406214,"ROSEMBERG ROMERO RODRIGUEZ      "]
[79407987,"MARIO ARTURO PORRAS DIAZ"]
[79414548,"ALVARO HERNANDO GARZON HERNANDEZ     "]
[79414846,"LUIS GABRIEL HERNANDEZ "]
[79420389,"CESAR AUGUSTO GIRALDO CAJIAO"]
[79424513,"MARIO EDILBERTO TORRES DEL CORRAL"]
[79426863,"GERMAN CALDERON ESPAÑA"]
[79431484,"OSCAR EDUARDO ROBAYO DIAZ       "]
[79442095,"SERGIO AUGUSTO BELTRAN MARTIN"]
[79445851,"CORTES MONROY RAUL ALFONSO"]
[79446895,"JULIAN ANTONIO LOPEZ DIAZ"]
[79449525,"HENRY CHAPETA SANDOVAL"]
[79449966,"HENRI TENORIO SEGURA        "]
[79450987,"CARLOS ALBERTO CARREÑO MUÑOZ"]
[79451436,"ECHEVERRY BEJARANO ENRIQUE "]
[79455619,"DAVID ARMANDO BARRETO GOMEZ      "]
[79459170,"CAMILO HERNﾁNDEZ         "]
[79462194,"HELIODORO  MANRIQUE MANRIQUE"]
[79463217,"WILLIAM MOLANO RODRIGUEZ"]
[79463263,"YOVANNY BUITRAGO CACERES"]
[79467681,"FREDDY OSWALDO VARGAS SANTANA"]
[79468622,"FARIAS FONSECA JESUS ANTONIO"]
[79468650,"JOSE OBDULIO ESPEJO MUﾑOZ       "]
[79469200,"JOSE MARTIN CASTAﾑEDA RODRIGUEZ     "]
[79469619,"DIEGO LUIS RODRIGUEZ NARANJO"]
[79470719,"HENRY EDMUNDO ACERO BARON"]
[79471157,"HAROLD MONTEALEGRE ACEVEDO"]
[79473524,"MANUEL FRANCISCO CONTRERAS HEREDIA"]
[79473632,"MARTIN ADOLFO FIGUEROA PARRA      "]
[79473642,"MIGUEL ANGEL SUAREZ GALVIS"]
[79484177,"JAMES WILSON ORTEGATE PEREZ"]
[79484600,"JOHN GUSTAVO MOSQUERA"]
[79485689,"SIGIFREDO NEIRA VALBUENA "]
[79485748,"LUIS ENRIQUE TAPIERO YATE"]
[79488282,"LUIS ALFREDO RODRIGUEZ FONSECA"]
[79488945,"JHON JAIME CIFUENTES TRUJILLO"]
[79489519,"JUAN CARLOS RIVEROS MORALES"]
[79489636,"ZABULON DE JESUS CORDOBA DEDIEGO     "]
[79490776,"JUAN CARLOS REY GONZALEZ"]
[79491967,"FERNANDO FLOREZ MORA"]
[79496838,"AGUIRRE AYALA HANS "]
[79497023,"JESUS MARIA BEJARANO PATARROYO"]
[79504954,"CAMILO ERNESTO CARVAJALINO MARTA"]
[79505117,"BENAVIDES CASTRO LEONARDO "]
[79507073,"JHON JAIRO GIRALDO PEREZ"]
[79508859,"BUITRAGO MELO JOSE JAVIER"]
[79509118,"JOSE FILIBERTO ARDILA MORENO"]
[79511262,"HENRY FERNANDO ANGULO CABEZAS      "]
[79520801,"JOSE FERNEY CORTES LOPEZ"]
[79525567,"HENRY HUMBERTO VANEGAS RODRIGUEZ     "]
[79529934,"MIGUEL ANGEL MORENO PORRAS"]
[79530385,"GARCIA CASTELLANOS NELSON JAVIER"]
[79534884,"JUAN CARLOS RODRIGUEZ SIERRA      "]
[79534980,"LUIS ANDRES MONTAÑO OSORIO"]
[79535141,"CARLOS FABIAN RINCON ORTIZ"]
[79538860,"MAURICIO RODRIGUEZ TELLEZ"]
[79539010,"LEONARDO ALFONSO CAMARGO MOLINA"]
[79539525,"CARVAJAL GONZALEZ MALVEN JOSE"]
[79539709,"JAVIER RODOLFO QUITIAN QUINTERO"]
[79540657,"JORGE HERRERA PINILLA"]
[79540786,"LUIS MAURICIO VILLAMIL MOLINA"]
[79545273,"BALAGUERA MORA OSCAR GIOVANNY"]
[79547733,"LUIS CARLOS SIERRA PALACIO      "]
[79548075,"JORGE ENRIQUE POSADA LARA"]
[79557679,"ARTURO REINA VASQUEZ"]
[79557728,"ARIZA FERNANDEZ JOSE ERNESTO"]
[79566821,"ALVARO FRANCISCO HERRERA SEQUERA"]
[79568538,"JAIRO FERNANDO SUAREZ MARQUEZ      "]
[79568653,"RODRIGO LOZANO VILA"]
[79569185,"JAIME ALBERTO CLAVIJO AUZA"]
[79570473,"EDGAR JAVIER HERRERA ISAZA"]
[79574159,"ARMANDO RINCON BERNAL       "]
[79575206,"ENCISO RODRIGUEZ JAIRO ALFONSO"]
[79575750,"JOHN JAIRO ARCINIEGAS LEAL"]
[79577619,"GILBERTO ACOSTA PARRA"]
[79578468,"LIZARAZO ORTEGA SERGIO ERICK"]
[79579908,"ALBERTO BECERRA HERNANDEZ      "]
[79583636,"JAIRO EULISES JIMENEZ SUAREZ"]
[79583781,"JUAN CARLOS JIMENEZ SUAREZ"]
[79583911,"CARLOS EDUARDO CASTILLO VANEGAS"]
[79584644,"HUGO HORACIO GALVEZ ACOSTA      "]
[79590308,"VICTOR EDILSON JIMENEZ "]
[79592485,"BERNARDO MOLINA OTALORA"]
[79592851,"CARLOS FERNANDO MONTEALEGRE CASTRO"]
[79593115,"ARIEL RAMIRO POLANIA MEDINA"]
[79596080,"CARLOS GIOVANNI ARANGO MALAGON"]
[79597810,"HERNANDEZ RUIZ MAURICIO "]
[79599122,"EVANS JAVIER ORTIZ AVILA"]
[79600387,"OSWALDO HERNAN SUAREZ SANCHEZ"]
[79601714,"ALAN ALEXANDER ZABALA MACIAS"]
[79602165,"LUIS ALEJANDRO MEDINA FLORIAN"]
[79602350,"GERMAN ELIECER GOMEZ ESLAVA"]
[79602958,"TERRY HENRY| ZABALA MACIAS"]
[79609296,"CARLOS HERNANDO RIVERA       "]
[79611058,"MILTON CESAR ALMEIDA BERNAL"]
[79618383,"FRANCISCO EDUARDO CASTILLO HERNANDEZ    "]
[79619290,"BARATO PACHON DUVAN ERNESTO"]
[79620658,"DE DIOS RAMOS HENRY "]
[79620913,"ARNULFO FERNANDO REYES BELTRAN     "]
[79626225,"JORGE ALEJANDRO CHEMAS DOMINGUEZ     "]
[79626483,"CARLOS ALFONSO QUINTERO MENA"]
[79627411,"ALVARO MAURICIO LUGO ROMERO"]
[79628434,"CAMILO ELIAS LIZARAZO OLAYA"]
[79628872,"JUAN SEBASTIAN HERNANDEZ ACOSTA"]
[79631945,"LEIVER PEREA MOSQUERA"]
[79632494,"ELZON FERNEY DELGADO MORALES      "]
[79633314,"CASTRO RICARDO "]
[79633658,"JOSE LIBARDO CASTAÑEDA SERRANO"]
[79634457,"ROBERT CALDERON GOMEZ"]
[79641076,"HUERTAS GOMEZ LUIS ALVARO"]
[79643436,"JOHN ALBERTO ROA GALVIS"]
[79643553,"JHONNY MARLON CARDENAS AREVALO"]
[79645638,"HECTOR JAMES VILLAMIL SANDOVAL"]
[79646039,"CAPERA RODRIGUEZ WILSON "]
[79646571,"GEORGE SMITH ZAMBRANO GUTIERREZ"]
[79651762,"CARLOS ENRIQUE AVILA VARGAS      "]
[79653211,"JOSE LUIS NOGUERA PEREZ"]
[79654783,"LUIS HERNANDO SANCHEZ CASTAÑEDA"]
[79656355,"GIOVANNI HUERFANO RODRIGUEZ"]
[79661279,"JHON JAIRO ACUÑA PEREZ"]
[79661966,"CASTRO SANCHEZ JOSE ALEXANDER"]
[79667893,"ORLANDO NUMPAQUE GAMBASICA"]
[79669699,"NELSON ALBERTO COBOS HERNANDEZ"]
[79671159,"OMAR JACKSON ORTEGA "]
[79671283,"MARTIN MURILLO ROMULO ARIEL"]
[79671897,"ANDRES FELIPE YANES QUINTERO"]
[79687103,"OFFRAY VLADIMIR LUNA CARDENAS"]
[79688617,"GERARDO SARMIENTO CHACON"]
[79691737,"SANTIAGO LEOPOLDO NIÑO ORTIZ"]
[79693566,"ALVARO GUILLERMO VARGAS COLORADO"]
[79694258,"OMAR ARTURO CALDERON ZAQUE"]
[79695094,"MARTIN ERNESTO PEREZ TRUJILLO"]
[79696733,"CARLOS EFRAIN SUAREZ MARTINEZ"]
[79698478,"CATOLICO ANGARITA EDGAR "]
[79699515,"JOVANNI ANIBAL MOJICA "]
[79703410,"MORENO ARBELAEZ EDWARD ALBERTO"]
[79703771,"WILLIAM SUAREZ PATIÑO       "]
[79708074,"PEDRO MESIAS ROJAS SALCEDO"]
[79709588,"MILTON GUZMAN CAÑAS "]
[79709663,"IVAN DARIO VARGAS MENDOZA"]
[79710700,"NIXON AFRANIO GUTIERREZ GAONA      "]
[79710825,"GOMEZ CUBILLOS WILBER ORLANDO"]
[79711398,"GERMAN RAUL CHAPARRO"]
[79713488,"EDGAR MAURICIO GOMEZ MEDINA      "]
[79714119,"MARCO ANDREI GUACANEME BOADA"]
[79714770,"FREDY ALBERTO BELLO BELLO"]
[79718543,"RODRIGO ERNESTO CARRASCAL ENRIQUEZ"]
[79719561,"FRANCISCO ENRIQUE PINEDA AVILA     "]
[79722263,"CESAR ISAAC WEINSTEIN NISENBON"]
[79724107,"ANDRES ORLANDO GOMEZ LOPEZ"]
[79729383,"ANDRES MAURICIO BARBOSA PALACIOS     "]
[79729905,"ENRIQUE CALDERON PAVA       "]
[79730517,"CHRISTIAM SOTO NUÑEZ"]
[79730902,"GHEINER SAUL CARDENAS MANZANARES"]
[79733402,"ANDRES MAURICIO SARMIENTO MASMELA"]
[79735186,"MILTHON MAURICIO ROJAS MORA"]
[79736630,"GUSTAVO ALEJANDRO BOHORQUEZ GARCIA    "]
[79736936,"FRANKLIN OCHOA CASTILLO       "]
[79740064,"JEREZ REYES JOSE ALBERTO"]
[79741108,"ALEXIS LARA MOSQUERA"]
[79741453,"JAVIER  BAUTISTA PERDOMO"]
[79741855,"DANIEL LEONARDO RAMIREZ VARGAS "]
[79742512,"VALENCIA MUÑOZ VLADIMIR BATURIN"]
[79743921,"CARRASCO HENRIQUEZ JAIRO ENRIQUE"]
[79748451,"JUAN CARLOS SANABRIA MARTINEZ      "]
[79748674,"CASTRO ESCORCIA EDGAR JUNIOR"]
[79748975,"FIDEL ERNESTO PALACIOS DIAZ"]
[79750106,"FREDY GIOVANI COBOS RIAÑO"]
[79750444,"JOHAN SAID PALACINO ZAMORA"]
[79752397,"FRANCISCO JAVIER GARCIA TORRES     "]
[79754821,"JOSE RAUL MORENO "]
[79757062,"CARLOS ALBERTO HERRERA JIMENEZ"]
[79757228,"JORGE ELIECER LOZANO OSPINA"]
[79763655,"CORENA ANGARITA JORGE LUIS"]
[79772432,"JOHN FREDY MELGAREJO CANTOR"]
[79778208,"DAVID EDUARDO MURCIA URBANO      "]
[79781563,"ESTRADA ALVAREZ MAURICIO "]
[79782094,"HEREDIA DIAZ LUIS EDUARDO"]
[79785654,"ERNESTO GORDILLO TRIANA"]
[79785988,"SERGIO ANDRES HINCAPIE ARBELAEZ"]
[79787078,"CARLOS ALBERTO RUIZ ORTIZ"]
[79787756,"LUIS GIOVANNI RODRIGUEZ CASTILLO     "]
[79790196,"JORGE ALEJANDRO VILLANUEVA BUSTOS"]
[79791000,"JAVIER BERMUDEZ HUERTAS"]
[79791616,"REYLBECK LEONARDO MERCADO VACCA"]
[79794306,"FRANZ VADITH GOMEZ REYES"]
[79795597,"EDWIN ANTONIO FORERO CASTELLANOS"]
[79795899,"DANIEL ROLANDO COSSIO DIAZ"]
[79796541,"JOHN ALEXANDER PARRA ARDILA      "]
[79797802,"CESAR AUGUSTO GARCIA VARGAS      "]
[79799727,"VLADIMIR ALEXANDER GARZON LEON     "]
[79801561,"FRANCISCO BERNATE OCHOA"]
[79802120,"JAIRO HERNAN LOSADA CARDONA"]
[79808921,"ALBA MARIN EDINSON GERMAN"]
[79809365,"CARLOS FREDDY SIERRA USECHE      "]
[79810572,"LEONARDO JOSE MONTEJO PACHECO"]
[79811421,"EDWIN FERNANDO PACHON RODRIGUEZ"]
[79813258,"ROLANDO MEDINA MEJIA"]
[79814056,"BERNARDO ALFONSO DUQUE FORERO"]
[79820269,"AREVALO VILLALOBOS PEDRO FREDY"]
[79820492,"MAYORGA CANGREJO WILSON EDUARDO"]
[79825062,"BRICEÑO CASTRO FRANKS ALEXIS EMILIO"]
[79826483,"JOHN JAIRO QUIROGA CASALLAS      "]
[79828109,"CARLOS EDUARDO VARGAS IZQUIERDO"]
[79829053,"BELTRAN BELTRAN SANTOS ALONSO"]
[79834611,"HECTOR ELPIDIO CORREDOR IGUA"]
[79836489,"BARRIOS BOCANEGRA JOSE FERNANDO"]
[79837902,"YIMMY ALBERTO CORREDOR CHIGUASUQUE"]
[79839553,"CELY SANCHEZ WILLIAM ALEXANDER"]
[79840792,"JUAN CARLOS PADILLA SIERRA      "]
[79843093,"RAUL TOLOSA GONZALEZ"]
[79844535,"GONZALEZ GOMEZ SANTIAGO "]
[79844898,"JAIME ALBERTO ROJAS LARA"]
[79849091,"HUGO ARMANDO SALINAS RODRIGUEZ"]
[79850518,"EDWIN VARELA          "]
[79850886,"CASTAÑEDA HERNANDEZ HECTOR EDUARDO"]
[79852436,"OLMAN YAIR VASQUEZ MEJIA"]
[79853493,"JORGE ENRIQUE TORRES BULLA"]
[79854144,"ALVARO LEANDRO JIMENEZ TUNJANO"]
[79855806,"JORGE OSWALDO MARTINEZ COJO"]
[79857024,"FABIO ORLANDO TORRES MALDONADO"]
[79857396,"DAIRO OSWALDO RUIZ RODRIGUEZ      "]
[79858998,"JOSE GREGORIO REY AMADOR"]
[79860661,"ASCENCIO MOZO LUIS LEONARDO"]
[79862015,"CARLOS ANDRES RIVILLAS RAMOS"]
[79863177,"JULIAN RODRIGO MORA SARMIENTO      "]
[79863503,"GIOVANNI RICARDO ANGEL GARCIA      "]
[79864450,"GUSTAVO ALBERTO FORERO RAMIREZ"]
[79867327,"LUIS CARLOS RODRIGUEZ "]
[79867722,"MILTON ALEJANDRO BELLO YOPASA"]
[79869824,"ELIUTH GAMBOA MELO        "]
[79873234,"MAURO ANTONIO CORREDOR SANCHEZ     "]
[79875172,"EFREN ALEXANDER TELLEZ RICO"]
[79876544,"JOHN ALEJANDRO RODRIGUEZ BOHORQUEZ"]
[79880759,"VICTOR ALFONSO ANGARITA"]
[79881344,"ROBERTO ANDRES IDARRAGA FRANCO"]
[79882399,"JOSE GREGORIO MOLINARES ESTRADA"]
[79883649,"GERMAN MAURICIO TORRES PINEDA"]
[79884757,"GUEPENDO OLARTE YILBER "]
[79885243,"DELGADO FORERO GABRIEL "]
[79889133,"AREVALO REINA CARLOS ALIRIO"]
[79889548,"CARDOZO VARGAS EDGAR HERNAN"]
[79893316,"ESTEBAN DE JESUS HERNANDEZ BARRAGAN"]
[79893346,"JUAN CARLOS PRIETO CUENCA       "]
[79894605,"JHON ALEXANDER TIBADUIZA CASTAÑEDA"]
[79899124,"CARLOS EMILIO PAEZ GAMBA"]
[79900091,"BOYACA ROMERO JHON FREDY"]
[79901620,"WILLIAM ENRIQUE PARADA RIVERA"]
[79904441,"JAROL DAVID MERIZALDE ACOSTA"]
[79906133,"HAROLD YESID RAMOS ROLDAN"]
[79907894,"CHRISTIAN MAURICIO ERNESTO VALCARCEL JIMENEZ"]
[79907919,"HERBERT WILLY ARCINIEGAS RODRIGUEZ"]
[79908099,"WILSON ALFONSO RAMIREZ MORALES"]
[79908304,"HENRY ALEXANDER BARRERA GOMEZ"]
[79908369,"HAROLD YEZID RODRIGUEZ HERRERA"]
[79908925,"TORRES LEON WILLDER HUMBERTO"]
[79909163,"WILSON PAEZ CORTES"]
[79910559,"LAURENCIO QUINTERO SANCHEZ      "]
[79911769,"EDGAR BAUTISTA GAMBA"]
[79911776,"RODRIGO ANTONIO ROJAS TOLOSA"]
[79915158,"GUERRA CONTRERAS JAIME ERNESTO"]
[79916578,"SERVULO ISAAC ECHEVERRY WACHTER"]
[79917378,"RAMIRO ARMANDO LOZANO ZAMBRANO     "]
[79920331,"CARLOS ANDRES BENAVIDES REYES"]
[79923464,"FABIAN LEONARDO GARZON CONTRERAS     "]
[79925163,"EDGAR ANDRES BALANTA DAGUA      "]
[79937933,"GARCIA VARGAS HERNANDO ELIAS"]
[79938170,"IVAN JAVIER MONROY JINETE"]
[79938858,"LEONARDO ENRIQUE CARVAJALINO RODRIGUEZ"]
[79939794,"GERMAN ALBERTO FRANCO LARA"]
[79941706,"OSCAR ANDRES RIVEROS MOYANO"]
[79946099,"LUIS ORLANDO FORERO GARNICA"]
[79946716,"JOHN WILSON CANO AVILA"]
[79946879,"ANDRES MAURICIO VARGAS RINCON"]
[79948491,"ALVARO NIKOLAY GUACANEME IBAGON"]
[79949616,"JUAN PABLO GUAYACAN HERRERA"]
[79950650,"JHONN HARBEY PEﾑA AMADOR       "]
[79951825,"JOSE JIMMY SALCEDO HERNANDEZ"]
[79952194,"JAIRO ENRIQUE LEON LEON"]
[79953156,"YEBRAIL FERNANDO VARGAS BAYONA"]
[79954393,"MISAEL ORLANDO RUBIANO VELANDIA"]
[79955443,"ALEXANDER AGUSTIN MOJICA CANCELADO"]
[79955994,"BAQUERO GARCIA JAIME ENRIQUE LEON"]
[79956103,"RAUL VIDALES BOHORQUEZ"]
[79956189,"CRYSTIAN ENRIQUE HERNANDEZ CAMPOS"]
[79956339,"JUAN CARLOS CALLEJAS GOMEZ"]
[79956389,"JULIO CESAR MORENO PERDOMO"]
[79957750,"CARLOS ANIBAL LOZANO LOZANO"]
[79959232,"JUAN FELIPE HERNANDEZ MARQUEZ      "]
[79959852,"NELSON FABIAN GUERRERO MARTINEZ"]
[79961174,"GONZALEZ PLAZAS SANTIAGO ALFONSO"]
[79961309,"ALDEMAR CANON CORTES"]
[79964726,"CASTAÑEDA LINARES CRISTIAN DARIO"]
[79965825,"JORGE IGNACIO TORO OVIEDO"]
[79968354,"COBOS ROJAS HERNAN ALEXIS"]
[79968466,"CARRILLO LOPEZ OSCAR ARMANDO"]
[79969650,"CARLOS ALBERTO LOPEZ RODRIGUEZ"]
[79970181,"HECTOR MAURICIO BOHORQUEZ RAMIREZ"]
[79970965,"PEDRO ALCIDES NAVARRETE CLAVIJO     "]
[79974942,"BRIÑEZ MARIN CARLOS ALBERTO"]
[79976473,"JOAN MANUEL ANGULO OLIVEROS"]
[79979855,"GERMAN PLAZAS GARNICA"]
[79980097,"JORGE FELIPE GONZALEZ MORENO"]
[79980180,"JUAN PABLO COTAMO JAIMES       "]
[79980394,"NICOLAS AUGUSTO CAÑON MURILLO"]
[79981034,"CAMILO DEVIA NEIRA"]
[79982472,"PABLO EMILIO LUNA GUTIERREZ"]
[79986521,"SAMUEL MOLANO"]
[79988469,"GUSTAVO ADOLFO FORERO CARRILLO"]
[79995503,"LENIZ VARGAS ZAMORA        "]
[79995572,"ARBELAEZ ANGEL HECTOR FABIAN "]
[79996298,"ANDERSSON CARDENAS ARANGO      "]
[79998293,"JOHN FREDY CASTILLO "]
[80002413,"COLOMBIAN CONSULTING GROUP INTERNATIONAL SAS"]
[80004017,"JAIRO HUMBERTO QUIQUE GOMEZ"]
[80006643,"JULIO ADRIAN PAEZ LOAIZA"]
[80008322,"DIEGO ANDRES ROJAS DUARTE"]
[80008412,"ESTACION DE SERVICIOS CARRERA 50 SAS"]
[80008973,"RUBEN DARIO CARRILLO CAICEDO"]
[80010305,"ORACLE COLOMBIA LTDA"]
[80013510,"REDES Y DESARROLLO DE SISTEMAS REDESIS LTDA"]
[80016532,"JHANN ALEXANDER OBANDO PULIDO"]
[80020531,"ALEXANDER GUERRERO VERJEL"]
[80023224,"GERMAN ALONSO AMADO NIÑO"]
[80023746,"JAIR ALFONSO VACA LUQUE"]
[80025321,"WILLIAM ELIAS SANABRIA ROMERO"]
[80025679,"DIEGO FERNANDO CARRILLO ACUÑA"]
[80026782,"FRAENDSHID POVEDA CASTILLO"]
[80030902,"HARDY DEIMONT NIÑO VELASQUEZ"]
[80032090,"MAURICIO ALEXIS RIVEROS QUINTERO"]
[80035222,"JOHAN ANDRES AVENDAÑO ARIAS"]
[80035569,"JAVIER HERNANDO GALINDO MORENO"]
[80036869,"DIEGO FERNANDO GOMEZ GARCIA      "]
[80037159,"HERNAN QUIÑONEZ PINZON"]
[80038330,"JAVIER ALEJANDRO VELEZ PALOMA"]
[80038359,"JUAN ANDRES MARTINEZ MARTINEZ"]
[80038558,"FELIPE GABRIEL GONZALEZ PLAZAS"]
[80038839,"EDGAR CAMILO ALVAREZ BENITEZ      "]
[80039964,"ALVAREZ PENAGOS FREDY RUBEN"]
[80040178,"JOSE CAMILO CUBILLOS CADENA"]
[80040972,"BAYONA BECERRA CARLOS ANDRES"]
[80041060,"FREDY OSWALDO IMBACHI RONCANCIO     "]
[80041124,"JOHN ALEJANDRO HERMOSO FORERO"]
[80041762,"CARLOS ANDRES GARCIA ROJAS"]
[80049021,"EDGAR ALONSO TRUJILLO CORTES"]
[80050753,"CARLOS ANDRES NIÑO RINCON"]
[80052137,"LUIS ALFREDO CORTES ARBOLEDA"]
[80054061,"GEOLANGER MAURICIO RODRIGUEZ AMAYA"]
[80054946,"ANDRES  SALAMANCA PRIETO"]
[80057260,"EDGAR ANDRES GOMEZ PIÑEROS"]
[80058434,"FELIX ROBERTO PEÑA BOGOYA"]
[80059731,"JESUS DAVID HERNANDEZ DURAN      "]
[80061073,"ENVER JULIAN LOPEZ ANGEL"]
[80061423,"DIEGO EDINSON ROLDAN SOLANO"]
[80063293,"LEONARD GERMAN TORRES RODRIGUEZ"]
[80066478,"ACOSTA RIAÑO EDUARD RAUL"]
[80068443,"MILTON JAVIER BARRAGAN CIFUENTES"]
[80068624,"JOVANNI ALEXANDER CANTERO LEITON"]
[80069155,"CESAR OSWALDO MENDOZA LEON      "]
[80071318,"JOHN CESAR GUACHETA BENAVIDES"]
[80071472,"LEONARDO ANDRES BUENO CASTELLANOS"]
[80071592,"GUILLERMO ALEXANDER VASQUEZ RODRIGUEZ"]
[80071755,"JORGE MARIO VARGAS GONZALEZ"]
[80072434,"DIEGO ALEXANDER GONZALEZ GOMEZ     "]
[80073670,"NICOLAS  PELAEZ MARIN"]
[80074365,"GUILLERMO HERNANDO QUINTANA ALVARADO"]
[80074464,"JUAN PABLO MONGE CASTAÑEDA"]
[80074923,"WILLIAM ALEJANDRO SANDOVAL GUTIERREZ"]
[80075386,"BECERRA CUERVO SERGIO "]
[80075661,"HECTOR FERNANDO LEMUS DURAN"]
[80075680,"JAIME ALBERTO BARRERA MARTINEZ     "]
[80076013,"ANDERSON MANUEL VARGAS CORONEL"]
[80076750,"DIEGO MAURICIO HILARION NIÑO"]
[80083124,"JUAN SEBASTIAN ORTIZ MARTINEZ "]
[80083767,"FREDY ALEXANDER RAMIREZ OTALVARO"]
[80084732,"MANUEL JOSE MEDINA MENDOZA"]
[80085188,"OSCAR DAVID PULECIO DIAZ"]
[80091293,"CARLOS ANDRES PULIDO CONTRERAS"]
[80092371,"LUIS FERNANDO LUGO RAMIREZ"]
[80093192,"DAVID LEONARDO GONZALES MARTINEZ"]
[80093752,"EDUIN RENE GOMEZ PENAGOS"]
[80094064,"JHON HAROL DIAZ OROZCO       "]
[80094934,"CAMILO ANDRES BARACALDO CARDENAS"]
[80095101,"FABIAN ONOFRE RODRIGUEZ GARCIA"]
[80095444,"MARQUEZ GOMEZ YESID EDUARDO"]
[80097268,"WILLIAM DAVID MATEUS CAMACHO"]
[80098782,"ANDRES MAURICIO FLORIAN LABRADOR "]
[80098952,"JOSE HUMBERTO RINCON RIAﾑO      "]
[80099433,"MAGDANIEL LIZARAZO MARIO FRANCISCO"]
[80100574,"CARLOS ANDRES PINZON MUÑOZ"]
[80100681,"PEDRAZA JIMENEZ RODRIGO "]
[80101863,"JHONATTAN ALFONSO AREVALO CORONEL"]
[80102125,"ALIZALDE RODRIGUEZ DANIEL ALEJANDRO"]
[80109117,"BORRAEZ SEGURA FELIPE OSWALDO"]
[80109302,"RUBEN CAMILO AGAMEZ ANGEL       "]
[80110048,"EDWIN YESID SARMIENTO GUTIERREZ     "]
[80110521,"WILLIAM JAVIER AMOROCHO GARCIA"]
[80111868,"JUAN MANUEL VELASCO CEPEDA"]
[80111916,"JUAN CARLOS MARTINEZ VASQUEZ      "]
[80112297,"JOSE DARIO ANTEQUERA GUZMAN"]
[80115634,"WILLIAM ALEJANDRO JIMENEZ MENDEZ"]
[80115902,"ISMAEL ANDRES CASTIBLANCO REYES"]
[80117292,"OSWALDO GOMEZ VEGA"]
[80119146,"CAMILO ANDRES HIGINIO CUELLAR      "]
[80121343,"MIGUEL HERNANDO ZARATE PACHECO     "]
[80122492,"CESAR AUGUSTO RUBIO JIMENEZ"]
[80122860,"JULIAN LEONARDO MENDOZA SALAZAR"]
[80124681,"ADONAY HUMBERTO AMAYA HERNANDEZ     "]
[80125822,"WOLFRANG LIZANDRO PULIDO AVENDAÑO"]
[80126862,"FABIAN HUMBERTO RODRIGUEZ ROMERO     "]
[80130658,"DANIEL ARMANDO FUENTES TOVAR      "]
[80135836,"GABRIEL ENRIQUE PEREZ DUSSAN"]
[80136718,"MAURICIO BETANCOURT ROMERO"]
[80136784,"CAMILO ANDRES SUAREZ ESPINOSA      "]
[80141722,"FREDY ANDRES USAQUEN AGUIRRE"]
[80148261,"BUENAVENTURA ROMERO JOHN BRANFORT"]
[80151229,"ALEX GUZMAN          "]
[80151371,"FABIAN MAURICIO LOSADA FLOREZ"]
[80154531,"JAIRO ANDRES LOPEZ CRUZ       "]
[80155835,"CELY MUÑOZ MANUEL HERNANDO"]
[80156704,"MORALES CASTRO NELSON FERNEY"]
[80158088,"LUIS EDUARDO PERICO ROJAS"]
[80160530,"IVAN DAVID SANDOVAL MEDINA      "]
[80161124,"DIEGO ENRIQUE RODRIGUEZ DELGADO"]
[80166075,"LUIS GUSTAVO MORENO RIVERA      "]
[80167123,"JHON ALEXANDER PINEDA CASTRO      "]
[80167407,"EDWIN ARTURO SALCEDO MOREANO"]
[80170623,"ALVAREZ NUÑEZ EMERSON "]
[80174092,"GUEVARA CUENCA JORGE ERNESTO"]
[80174819,"CARMONA RODRIGUEZ RICARDO "]
[80175296,"CAMILO ANDRES MARTINEZ PINEDA"]
[80175593,"ANDERSON ESMITH PULIDO BERMUDEZ     "]
[80175741,"GRANADOS LAVERDE JOHN ALEXANDER"]
[80177594,"DAVID MAURICIO OCHOA ARIAS"]
[80177899,"GARCIA MANRIQUE LUIS FELIPE"]
[80180743,"FELIX ARMANDO MELO TORRES       "]
[80183277,"HERNAN DAVID CERVERA PABON"]
[80184175,"HECTOR ANDRES MORENO VASQUEZ"]
[80187039,"JUAN PABLO MANTILLA CHAPARRO      "]
[80187755,"LEWIS RUIZ GALVIS"]
[80188308,"MARCEL ANDRES GIRALDO IBAÑEZ"]
[80190564,"OSCAR ANDRES HERRERA RODRIGUEZ"]
[80192973,"LUIS MANUEL HOYOS CASTRO       "]
[80193322,"JOSE MARIO ROJAS HURTADO       "]
[80197126,"JUAN PABLO RUBIO SGUERRA       "]
[80197203,"CESAR AUGUSTO RAMIREZ ARISTIZABAL"]
[80197442,"ARMANDO REYES VILLAMIL"]
[80199283,"RIVERA CRUZ WILLIAM ALFREDO"]
[80200489,"RAFAEL RENE POVEDA CAMARGO"]
[80201161,"BARRERO CANTOR CARLOS ALBERTO"]
[80202726,"ALEJANDRO ZAPATA VILLALOBOS"]
[80204068,"JONNY ALEXANDER LIBERATO HERNANDEZ"]
[80204522,"CARLOS MARIO RESTREPO QUINTANA"]
[80204620,"FUENTES BONILLA OSCAR MAURICIO"]
[80204707,"IVAN CAMILO LEON ROJAS"]
[80205230,"JOHN ALEXANDER SOLANO CAICEDO      "]
[80205771,"JUAN PABLO LINARES VARGAS"]
[80206754,"FRANCO CELIS JEAN PAUL"]
[80209182,"GARCIA SANCHEZ JOSE ANGEL"]
[80210455,"CHARLES MAURICIO MELO VILLA      "]
[80210682,"MARIO ANDRES SANDOVAL RISCANEVO     "]
[80213830,"GUSTAVO ADOLFO AGUDELO RODAS"]
[80213841,"JORGE ANDRES GONZALEZ CETINA"]
[80215247,"SERGIO DANIEL SORIANO MATEUS      "]
[80216079,"BERNARDO ALFREDO PRIETO RUIZ"]
[80217520,"MARTIN CASTELLANOS WILSON "]
[80218438,"JUAN PABLO GUZMAN GUACANEME      "]
[80219221,"IGNACIO ANDRES VALENCIA CARVAJAL"]
[80219532,"BENAVIDES CARRILLO GIOVANNY ALEXANDER"]
[80220090,"CARLOS GIOVANI CARRILLO ACOSTA     "]
[80224913,"EDGAR DAVID GUEVARA MAYORGA"]
[80225464,"JULIAN ANDRES VARGAS FONSECA      "]
[80227794,"DANIEL FELIPE TORRES GARCIA"]
[80228295,"ALONSO RODRIGUEZ PERDOMO"]
[80228686,"MAX FELIPE RODRIGUEZ MARTINEZ"]
[80230703,"ALEXANDER CUBILLOS PARADA      "]
[80230848,"FREDDY ARMANDO GARZON SANABRIA"]
[80231395,"FREDY ANDRES OSORIO RAMIREZ"]
[80232086,"LOZANO OSCAR "]
[80232902,"CASTRO MONJE JAIME ENRIQUE"]
[80234459,"DANIEL CAMPO ROMERO        "]
[80238468,"HECTOR LEONARDO ROMERO SIERRA"]
[80239681,"CAMILO ANDRES CARDENAS CRUZ"]
[80242886,"CARLOS ANDRES GARZON PRIETO"]
[80243462,"WILMER ALBERTO MURILLO PEREA      "]
[80244205,"LUIS HERNANDO BONILLA MORENO"]
[80246169,"OMAR ANDRES RODRIGUEZ ROJAS"]
[80246635,"SANTIAGO  PARDO MORA"]
[80250487,"ALVARO ALEXANDER CAMPO SANABRIA"]
[80250620,"OMAR FRANCISCO MONTENEGRO VASQUEZ     "]
[80251690,"JAIRO ORLANDO GARCIA ROA"]
[80252096,"JHON JAIRO RIAÑOS CAMACHO"]
[80252687,"JESUS ANTONIO MONTES MARTINEZ"]
[80255566,"DISNEY POVEDA BUSTOS"]
[80257610,"GUTIERREZ PAEZ JORGE ARMANDO"]
[80258191,"PEDRO ALONSO VILLAMIL CASTRO"]
[80259762,"ESPITIA MUÑOZ WILMER "]
[80263835,"PEDRO LUIS RUIZ AGUIRRE       "]
[80270494,"HECTOR JULIO VALBUENA COCA"]
[80272454,"CARLOS JAVIER SANTAMARIA OVALLE"]
[80274996,"HAILERMAN VARELA VELASQUEZ"]
[80276374,"DANILO ALFREDO MORRIS MONCADA      "]
[80310010,"GUILLERMO RUIZ TRUJILLO       "]
[80352192,"RICARDO ARTURO PEÑUELA ROMERO"]
[80353256,"GARAY PEREZ OMAR IVAN"]
[80367056,"JOSE VICENTE NIETO BONILLA"]
[80398110,"OMAR JAIME GUTIERREZ LEMUS"]
[80420018,"FUENTES ROA ROBERT "]
[80422017,"JUAN MIGUEL MENDEZ RUIZ"]
[80423149,"FREDY ENRIQUE MEDINA QUINTERO"]
[80423653,"MIGUEL ANTONIO RUEDA SAENZ"]
[80425268,"CARLOS ALBERTO NIﾑO TORRES      "]
[80425797,"DIRON ENRIQUE VEGA VELEZ       "]
[80438184,"EDWIN MENDOZA AYALA"]
[80441151,"RUBERTH DIAZ MEDINA"]
[80441726,"ALEXANDER BONILLA PALENCIA      "]
[80489049,"HUGO GEOVANNY HILARION GARZON"]
[80489742,"WILMAR DIAZ ZAPATA"]
[80505514,"LEONEL HERNANDO NIETO BERNAL"]
[80505850,"CARLOS MAURICIO VARGAS CALDERON"]
[80544723,"CARLOS ANDRES TORRES RODRIGUEZ"]
[80545721,"RONALD GERARDO VANEGAS HERRERA     "]
[80547349,"CARLOS ARTURO LOPEZ OSPINA"]
[80726674,"DANIEL ALZATE MORA"]
[80726857,"CARLOS CAMILO HERNANDEZ BRITO"]
[80727859,"GALEANO LEMUS JOSE REINERIO"]
[80728490,"ANGEL MARIA MENDEZ BOGOTA       "]
[80729206,"DIEGO FERNANDO MERCHAN CANTE"]
[80734772,"JHON SANTOS GARAVITO BELLO      "]
[80735751,"LEONARDO HELMUT TAPIERO ORTIZ"]
[80736306,"ANDRES GIOVANNY BERNAL RIOS      "]
[80736359,"DUMAR ILICH RUBIANO JIMENEZ"]
[80736902,"RICHARD ALEXANDER DUQUE CASTRO"]
[80737140,"OMAR ALEJANDRO PEﾑA GOMEZ       "]
[80737804,"GUERRERO ALFONSO MIGUEL ANGEL"]
[80737998,"JOSE VICENTE ZABALA PRECIADO"]
[80738321,"DANIEL ORLANDO SANCHEZ ACOSTA      "]
[80739005,"ALEJO SUESCA EFRAIN "]
[80740350,"HECTOR WILMAR OLARTE CANCINO      "]
[80750753,"CARLOS ANDRES RINCON NIÑO"]
[80757990,"JUAN FERNANDO QUEJADA SANCHEZ"]
[80759633,"JAVIER ALFONSO SALAZAR MEDRANO     "]
[80762005,"EDWARD YESID ROA LOZANO"]
[80765448,"ANDRES CAMILO SABOGAL SUESCUN      "]
[80769101,"RAUL GUSTAVO GONZALEZ OCHOA"]
[80769385,"JOHNNY DAVID DELGADILLO PEREZ"]
[80769651,"ACOSTA VALLEJO MAURICIO ANDRES"]
[80769750,"JOSEPH FELIPE PULIDO"]
[80770191,"BRAJAM ALBERTO RODRIGUEZ CELIS     "]
[80770904,"CARLOS GUILLERMO FAJARDO SEGURA"]
[80773214,"EDWIN HARLEY CASTRO ROMERO      "]
[80773882,"CESAR AUGUSTO TAFUR TRUJILLO      "]
[80774750,"VICTOR ALFONSO MELO BARRERA"]
[80775203,"CASTRO BELTRAN JUAN CAMILO"]
[80777976,"ANDRES CAICEDO CANTE"]
[80778920,"JEISON ORLANDO PINILLA ALZATE"]
[80792473,"BEJARANO BAYONA JUAN CARLOS"]
[80792580,"CAMILO ANDRES BUSTOS PARRA"]
[80796324,"ALMANZA ALFONSO GUSTAVO ADOLFO"]
[80797275,"ANDRES CAMILO REYNOSA CARRERO"]
[80798630,"WILLIAM ANDRES PENAGOS SUAREZ      "]
[80802925,"RICHARD ALFONSO HURTADO PELAEZ"]
[80804555,"CRISTHIAN YESID SUAREZ CARDENAS"]
[80807404,"JORGE ENRIQUE GROSSO PEREZ"]
[80807857,"FERLEY DE JESUS TORRES HINESTROZA     "]
[80808087,"WILLIAM STEAK VERA MARTINEZ      "]
[80808736,"JUAN CARLOS PINEDA RIAÑO"]
[80808737,"OSCAR ARIAS RODRIGUEZ       "]
[80809677,"WILLIAM ROJAS OQUENDO       "]
[80813622,"CARLOS EDUARDO LOPEZ DURAN      "]
[80814438,"RODRIGUEZ GAITAN WILLIANS FERNANDO"]
[80814904,"FRANCISCO ALBERTO ROJAS UNDAGAMA"]
[80814908,"ANDRES OCTAVIO RODRIGUEZ REYES"]
[80816126,"OSCAR DALEL NADJAR CRUZ"]
[80817237,"CHRISTIAN FERNADO CARO BENITEZ"]
[80817666,"JUAN PABLO CARVAJAL CASTRO      "]
[80818173,"GERMAN ANDRES MAHECHA SUAREZ"]
[80820466,"ESTEBAN PIﾑEROS MOSQUERA       "]
[80821682,"DAVID RICARDO MONTOYA VERGARA"]
[80824944,"JORGE ALEJANDRO REINA ROJAS      "]
[80825570,"NICOLAS SARMIENTO RAMIREZ      "]
[80827902,"IVAN ANDRES FONSECA PEÑA"]
[80829005,"LUIS GUILLERMO LOPEZ CRUZ       "]
[80830047,"JHON EDWIN ORTIZ VARGAS"]
[80830997,"WILLIAN JAVIER INDABURO CENDALES     "]
[80831299,"CARLOS ANDRES MOSQUERA MENA      "]
[80831921,"ANDRES SANTANA SANTANA"]
[80832925,"JHON EDWARD ARRECHEA MINA       "]
[80842765,"JORGE GERMAN ESTACIO RODRIGUEZ"]
[80843013,"HUGO MAURICIO LOPEZ PINILLA      "]
[80845485,"ORTIZ CARDENAS ERICK ARTURO"]
[80850340,"RENAN ROJAS ESGUERRA"]
[80850669,"ALAN REYES USCATEGUI"]
[80850729,"ANDRES FELIPE LIZARRALDE CARDENAS"]
[80851123,"PABLO FRANCISCO PARDO VELASCO"]
[80851304,"ANTONIO JOSE COGOLLO RODRIGUEZ     "]
[80851413,"JHONATAN ALFONSO MOSQUERA CACERES     "]
[80852072,"PEDRO JOSE PINEDA ANGARITA      "]
[80852396,"NESTOR ROJAS IBAﾑEZ        "]
[80852650,"FIERRO MORA JOHAN FABIAN"]
[80853415,"JUAN DAVID JARAMILLO GALLEGO"]
[80854693,"JOSE RICARDO TAUTIVA GARZON"]
[80856755,"JUAN CARLOS MORA DIAZ"]
[80857472,"OSCAR ALEJANDRO MONSALVE MARQUEZ"]
[80857647,"BAUTISTA PEÑA LUIS ALBERTO"]
[80859098,"ANDERSON ALBEY ACOSTA TORRES"]
[80859383,"CAMILO DIAZ TOVAR"]
[80860013,"RODRIGUEZ GOMEZ WILMAN ESNEY"]
[80863743,"DAVID GONZALO CACERES CARDENAS     "]
[80871527,"IVAN FELIPE URIBE OSPINA"]
[80872248,"DANIEL FRANCISCO JIMENEZ FANDIÑO"]
[80872559,"CRISTIAN FRANCISCO PULIDO ACUÑA"]
[80874453,"EDWIN GONZALEZ MALAVER"]
[80875299,"SANTIAGO CAMPUZANO GARCES"]
[80876157,"SEBASTIAN PAVIA VENEGAS"]
[80876378,"SANTIAGO MEJIA NARVAEZ"]
[80881351,"ALEJANDRO MARTINEZ OVALLE      "]
[80881698,"DAVID ARTURO PARRA VILLATE"]
[80882565,"WILLIAM ALEXANDER BARBOSA FUENTES"]
[80882849,"JOSE RODOLFO CASADIEGO MERCHAN     "]
[80895621,"JOFRE ANCIZAR MANCHOLA MARTINEZ"]
[80901733,"DIDIER ANDRES DUCUARA MORA"]
[80902427,"DAVID ALEJANDRO GUERRERO GUEVARA"]
[80903222,"YEISON OSWALDO ROBAYO ARIAS      "]
[80904123,"VICTOR RAFAEL BERTEL SUAREZ"]
[80912037,"GIOVANNI AUGUSTO BENAVIDES AYALA     "]
[80912692,"MARIO ASDRUBAL RODRIGUEZ SANCHEZ     "]
[80912948,"JULIAN EMIR PARRA GARZON"]
[80913260,"JUAN SEBASTIAN RIVERA GALVIS"]
[80913445,"JORGE ENRIQUE ROJAS ROJAS"]
[80926076,"JUAN CAMILO GIL SAENZ        "]
[80927011,"OSCAR ANDRES CABRA BOBADILLA"]
[80927344,"CAMILO ESTEBAN POVEDA CASTIBLANCO"]
[80927861,"FREDDY CAMILO GOMEZ CASTRO"]
[80931430,"JHONATHAN ORTIZ         "]
[80932416,"JOHN FREDY SILVA TENORIO"]
[81717348,"JUAN DAVID JARAMILLO POLANCO"]
[81717435,"ANDRES FELIPE RAMIREZ JARAMILLO"]
[81717436,"JUAN CAMILO RAMIREZ JARAMILLO"]
[82030046,"JUAN CARLOS MURILLO SINTUA"]
[82260325,"JORGE OLAXIS MOSQUERA MOSQUERA     "]
[82362162,"BLADIMIR PALACIOS COSSIO       "]
[82382616,"HENRY CORDOBA MURILLO       "]
[82383211,"KENNY LUANGO MOSQUERA"]
[82384056,"JOSE CAMILO MOSQUERA MOSQUERA      "]
[83001847,"INDUSTRIAL DE EXTINTORES LTDA. - INDUEXT LTDA. "]
[83008443,"CERTICÁMARA S.A."]
[83008593,"CORPORACIÓN PARA LA PROMOCIÓN COMUNITARIA Y ASOCIACIÓN DE MUJERES DE LA CUMBRE AMUPROC"]
[83009519,"AIRECO SAS"]
[83077644,"HOSPITAL CENTRO ORIENTE EMPRESA SOCIAL DEL ESTADO II NIVEL"]
[84081075,"DONNYS YADIN PINTO USTATE"]
[84452305,"LEONARDO ENRIQUE PEREZ CAMARGO"]
[85439939,"EDDIS ALBERTO URREA MUÑOZ"]
[85457268,"VICTOR EDUARDO MEDINA JHONSON"]
[85470347,"BLADIMIR RINCON RINCON"]
[85473362,"JOHAN MARCELL MARTINEZ WHISGMAN"]
[85474812,"ALBERTO DEL CARMEN TESILLO MANJARRES"]
[86000036,"IMPORTADORA FOTOMORIZ"]
[86000733,"CAJA COLOMBIANA DE SUBISIDIO FAMILIAR COLSUBSIDIO"]
[86000759,"COMUNICAN S. A. PERIODICO EL ESPECTADOR"]
[86007466,"FUNDACION COMITE DE SOLIDARIDAD CON LOS PRESOS POLITICOS "]
[86046382,"JULIAN FABRIZZIO HUERFANO ARDILA"]
[86050436,"FUNDACION UNIVERSITARIA INPAHU"]
[86062803,"JORGE ARMANDO ACOSTA ROMERO      "]
[86074094,"CAMILO ANDRES RODRIGUEZ PARRADO"]
[86078117,"MORALES SIERRA YESID CAMILO"]
[87064125,"DIEGO ALEXANDER ANGULO MARTINEZ"]
[87431663,"FRANCISCO JAVIER ANGULO ESTACIO"]
[87572764,"EDIER MONTILLA MEZA"]
[87940566,"OSCAR GIOVANNI VENTE ANGULO      "]
[88031606,"CAMILO ANDRES CARRILLO CARRILLO"]
[88135825,"CAMARGO DURAN WILMAN ALONSO"]
[88159975,"LUIS ANDRES OCAMPO VALERO       "]
[88197396,"FRANKLIN GALVIS RIASCOS"]
[88201593,"HUGO ALEXANDER REYNA DUARTE"]
[88220281,"JOHNATAN JAVIER NIETO BLANCO"]
[88228328,"VALENCIA SUAREZ WILMAR JOSE "]
[88252633,"VICTOR MANUEL GAVIRIA DIAZ"]
[89999906,"SECRETARIA DE EDUCACION"]
[91010217,"JOSE WILSON ZARATE CORTES"]
[91010518,"ORLANDO HUMBERTO SIERRA ORDOÑEZ"]
[91010874,"LUIS EDUARDO PARRA RODRIGUEZ"]
[91017790,"SERGIO ANDRES ARDILA BELTRAN"]
[91232304,"GERMAN ORTIZ RUEDA"]
[91270353,"MAURICIO HERNANDEZ CACERES"]
[91276835,"JAVIER FERNANDO TRUJILLO PINTO"]
[91277386,"ARNULFO GARCIA "]
[91286521,"JORGE CAMILO CLARO PACHECO      "]
[91428530,"RAFAEL RIOS ARIAS        "]
[91429799,"BLANDON ARDILA LUIS ANGEL"]
[91431560,"MARTIN ENRIQUE RANGEL "]
[91473301,"GERARDO BERNAL GAMBOA"]
[91529718,"SANTIAGO ALFONSO BURBANO RODRIGUEZ"]
[91531097,"HENRY TENORIO CAICEDO"]
[92514776,"ARGELIO RAMIRO PACHECO PEREZ"]
[92546511,"ERICKC DAVID RUIZ ACOSTA"]
[92549855,"WILFREDO JUNIOR SIERRA ARROYO      "]
[92549878,"ALEXANDER PATIﾑO REYES       "]
[92642179,"ALEX ALBERTO ARRIETA VILLALBA      "]
[93118919,"ALFONSO CASTAÑEDA BUSTAMANTE"]
[93119524,"HECTOR VERA SANCHEZ"]
[93128124,"RODRIGO ALBERTO RODRIGUEZ RODRIGUEZ"]
[93132317,"IVAN DARIO PAVA AVILA"]
[93201893,"JUAN DE JESUS LOZANO FAJARDO"]
[93235402,"JORGE SUGUSTO OCAMPO MARIN      "]
[93236968,"WILLIAM EDUARDO AREVALO GONZALEZ"]
[93239445,"EDWIN FABIAN TAPIAS RODRIGUEZ"]
[93239520,"ANDRES LEONARDO RUBIO CALDERON"]
[93287050,"JORGE AUGUSTO SANDOVAL RAMIREZ"]
[93288310,"SORIANO VASQUEZ DIEGO FERNANDO"]
[93289536,"ALONSO ALZATE CRUZ"]
[93290781,"EDUARDO NAVARRO TELLEZ"]
[93292449,"HERNAN JARAMILLO LEON"]
[93295695,"JUAN CARLOS MARTINEZ HORTA"]
[93296655,"GOMEZ AGUDELO WILMAR HERNANDO"]
[93299178,"JASON JARAMILLO GUTIERREZ"]
[93300299,"CAMILO ANDRES VALLEJO OSORIO"]
[93335582,"BELTRAN DIAZ JOSE FREDDY "]
[93356172,"CARLOS EDUARDO ESPINOSA TRIANA"]
[93361427,"OSWALDO ADOLFO VARON RUIZ"]
[93363556,"GUSTAVO ALFREDO ROJAS ORTIZ"]
[93365991,"CHALA PEDRAZA FREDY ENRIQUE"]
[93371170,"JORGE ALBERTO LONDONO LUGO      "]
[93375004,"JAIRO ALBERTO ACOSTA PAVA "]
[93376913,"JOSE HANS BARRETO GONZALEZ      "]
[93377944,"DAVID ANDRES GRAJALES MARIN "]
[93382151,"GUZMAN MALAMBO LUIS ANDRES"]
[93384095,"MILTON EBERT VALENCIA VARON"]
[93388495,"HELMER WILLIAM GALEANO VILLABON"]
[93392193,"ALFONSO HERNAN SILVA CALDERON"]
[93402262,"CARLOS ALBERTO OSORIO CIFUENTES"]
[93405405,"JAVIER ENRIQUE LOPEZ RIVERA"]
[93407804,"ALEXIS GARCIA HERNANDEZ"]
[93411774,"MORENO DELGADO OSCAR JAVIER"]
[93415067,"NELSON RODRIGUEZ YATE"]
[93415353,"JOSE ANDRES PALACIO PIEDRAHITA"]
[93445349,"AGUJA GUZMAN MIGUEL ANGEL"]
[93452512,"HUGO FERNEY TRIANA MONTES"]
[94301899,"WILTON GARCIA RIASCOS"]
[94380666,"BEJARANO SANCHEZ WILLINGTON "]
[94401320,"EDWIN AMED CAMACHO AGUALIMPIA"]
[94439807,"EDWIN FERNANDO TORRES URBANO"]
[94445295,"JOHN RICHAR MINOTTA CASQUETE"]
[94445897,"EDWIN  CAICEDO MARINEZ"]
[94455605,"GUSTAVO ADOLFO GONZALEZ GIRON"]
[94460645,"DARIO ORLANDO BECERRA ERAZO"]
[94497355,"JOHN HENRY ARBOLEDA QUIﾑONEZ      "]
[94500188,"HECTOR GABRIEL RONDON OLAVE"]
[94504174,"CESAR AUGUSTO RODRIGUEZ PIEDRAHITA"]
[94506861,"JAIME ALBERTO QUINTERO ROSALES"]
[94507824,"AIMER ANDRES MORENO RAMIREZ      "]
[94535648,"FELIPE ALBERTO HOYOS NUNEZ      "]
[96191347,"CHRISTIAN JOEL SANCHEZ SARMIENTO"]
[98386801,"GUSTAVO ADOLFO DE LOS RIOS DELGADO "]
[98390569,"CUELLAR MELO ERNESTO CAMILO"]
[98393418,"JAIRO ANDRES ROSERO GRANJA"]
[98399475,"JOSE FERNANDO BERMEO NOGUERA"]
[98427613,"HECTOR RODRIGO TELLO TENORIO"]
[98430620,"LUIS HERMINGTON NAZARENO PRECIADO"]
[98431610,"YUDY ENRIQUE QUIÑONES OROBIO"]
[98528424,"CARLOS HUMBERTO GONZALEZ "]
[98563217,"MARTIN EMILIO RODRIGUEZ COLORADO     "]
[192549218,"NELSON ORLANDO ESPITIA CAMARGO"]
[194059668,"PEDRO JOSE OJEDA GONZALEZ"]
[796720777,"JILBER ORLANDO BLANCO FORERO"]
[800005972,"ORBIDENTAL SAS"]
[800007880,"ASOCIACIÓN DE VECINOS DE LAS GRANJAS DE SAN PABLO - ASOVEG"]
[800015583,"COLSOF S.A."]
[800024130,"COLOMBIAN CONSULTING GROUP INTERNATIONAL S A  "]
[800039398,"INGEAL S.A."]
[800059311,"KRESTOM RM SA"]
[800071819,"SELCOMP INGENIERIA LTDA"]
[800082471,"ASOCIACION MEDIO AMBIENTE Y DESARROLLO EN AMERICA LATINA ENDA AMERICA LATINA "]
[800084124,"ESTACION DE SERVICIO MOBIL CRA 50 LTDA"]
[800086042,"INACAR S.A.          "]
[800093388,"CONSERJES INMOBILIARIOS LTDA      "]
[800103052,"ORACLE COLOMBIA LIMITADA       "]
[800105847,"PROCOLDEXT LIMITADA"]
[800109177,"POLITICA & MEDIOS INVESTIGACIONES LTDA"]
[800116995,"FUNDACION CULTURAL TEATRO EXPERIMENTAL FONTIBON "]
[800119030,"MANUFACTURAS Y COMERCIALIZADORA BOSTONIA SAS."]
[800122127,"CORPORACIÓN VIVA LA CIUDADANIA"]
[800127961,"ASOCIACIÓN DEFNSA DE NIÑAS Y NIÑOS INTERNACIONAL DNI COLOMBIA"]
[800134773,"SOLINOFF CORPORATION S.A. ? SOLINOFF CORP S.A."]
[800135100,"REPRESENTACIONES REDES Y DESARROLLO DE SISTEMAS RE"]
[800136770,"LLANOBOLSA SA"]
[800150861,"INSTITUTO NACIONAL DE MEDICINA LEGAL Y CIENCIAS FORENSES"]
[800159776,"PABONI DE COLOMBIA LTDA"]
[800165862,"CONSEJO SUPERIOR DE LA JUDICATURA"]
[800166902,"COMPAÑIA GENERAL DISTRIBUIDORA FAESCO LTDA."]
[800167121,"CORPORACIÓN PARA LA PROMOCIÓN COMUNITARIA Y EL DESARROLLO CREARJUGANDO"]
[800187567,"FISCALIA GENERAL DE LA NACION -CUERPO TECNICO DE INVESTIGACION"]
[800197239,"TWITY SA"]
[800200968,"COMERCIAL MCL SAS"]
[800205294,"PROMOTORA DE SERVICIOS PARA EL DESARROLLO PROSEDER"]
[800205782,"AGROBURSATIL"]
[800209890,"COMERCIALIZADORA VINARTA SAS"]
[800215592,"THOMAS GREG EXPRES SA"]
[800215845,"ASOCIACION PARA LA PROMOCION SOCIAL ALTERNATIVA MINGA"]
[800216303,"HOSPITAL SAN BLAS II NIVEL EMPRESA SOCIAL DEL ESTADO"]
[800216473,"HOSPITAL DE USAQUEN I NIVEL EMPRESA SOCIAL DEL ESTADO"]
[800219712,"ASOCIACION PARA EL DESARROLLO Y LA PARTICIPACION A"]
[800222028,"INTERAMERICANA DE POSTALES SAS"]
[800225235,"S.F. INTERNATIONAL S A S."]
[800240660,"SERVISOFT S A          "]
[800249083,"EXPRECAR'S SAS"]
[800900668,"COMERCIAL MCL LTDA."]
[802000558,"CORREDORES DE VALORES AGROPECUARIOS S.A. - CORAGR"]
[804000353,"COOPERATIVA DE VIGILANCIA Y SERVICIOS DE BUCARAMAN"]
[804006897,"SODECOL SAS"]
[804009217,"COMPUTER CENTER LTDA"]
[805000867,"CORREAGRO S.A          "]
[805023598,"COMFINAGRO"]
[811021363,"UNIPLES SA          "]
[816007544,"TRANS ARAMA S.A.S"]
[830001113,"IMPRENTA NACIONAL DE COLOMBIA"]
[830001338,"SUMIMAS S A S          "]
[830005448,"LUCKY GLOBAL ELEVATORS S.A."]
[830008297,"INMOBILIARIA RUBÉN QUIROGA Y CIA LTDA"]
[830012587,"CANAL CAPITAL"]
[830012817,"CORPORACIÓN PARA LA PROMOCIÓN COMUNITARIA Y ASOCIACIÓN JUVENIL CLUB CULTUTAL SIGLO XXI"]
[830013740,"OFICIAR SAS"]
[830014669,"CORPORACION PARA LA PAZ Y LOS DERECHOS HUMANOS -REDEPAZ"]
[830016561,"CORPORACIÓN NUEVO ARCO IRIS"]
[830016890,"PCT LTDA"]
[830017209,"NEWNET S.A."]
[830018406,"CORPORACION SOCIAL PARA EL DESARROLLO DE LOS GRUPOS ETNICOS Y CULTURALES MULTIETNIAS"]
[830018476,"INDUSTRIAL DE EXTINTORES LTDA      "]
[830020164,"CORPORACION IDENTIDAD CULTURAL     "]
[830023178,"GRAN IMAGEN E.U.         "]
[830024885,"CORPORACIÓN EXCELENCIA EN LA JUSTICIA"]
[830026014,"SOFTMANAGEMENT S A"]
[830034128,"SEEL S A"]
[830036940,"MODERLINE SAS"]
[830037850,"SISCOMPUTO LTDA SERVICIOS Y SISTEMAS DE COMPUTO "]
[830039013,"MOTTA & RODRIGUEZ ARQUITECTOS ASOCIADOS LIMITADA "]
[830039799,"AGRORED"]
[830039811,"DB SYSTEM LTDA"]
[830042184,"COMSEG TELECOMUNICACIONES SEGURAS SAS"]
[830045040,"AQSERV SAS"]
[830047431,"COMPETENCIA PLUS LIMITADA"]
[830048457,"SEAQ SERVICIOS CIA LIMITADA"]
[830053223,"LIMPAL COLOMBIA"]
[830053669,"SOLUTION COPY LTDA"]
[830055049,"BVQI COLOMBIA LTDA."]
[830060238,"MULTIPLES TECNOLOGIAS APLICADAS DE COLOMBIA SAS. MTA DE COLOMBIA"]
[830061646,"CORPORACION PARA LA DEFENSA Y PROMOCION PARA LOS D"]
[830063234,"MONITOR MEDIOS COMUNICACION LTDA"]
[830065552,"TECNI REPUESTOS INDUSTRIALES LTDA     "]
[830078349,"INDUSTRIAS DIDÁCTICAS URANIA LTDA"]
[830078517,"ALFA Y OMEGA COMUNICACIONES SAS"]
[830078531,"KELTCO LTDA"]
[830080652,"SOLUCIONES INTEGRALES DE OFICINA SAS"]
[830085746,"ITS SOLUCIONES ESTRATEGICAS LTDA"]
[830085929,"CORPORACION DE ORIENTACION E INTEGRACION CIUDADANA - CORPORACION ORIENTAR"]
[830086808,"CASA DE LA CULTURA DE ARABIA"]
[830088907,"PULXAR CONSULTING LTDA"]
[830089648,"CORPORACION TOPOFILIA"]
[830093396,"CORPORACION COMUNITARIA CUYECA A OBSUN"]
[830093579,"COMUNICACIONES E INFORMATICA SAS"]
[830094283,"MERCADO Y BOLSA S A        "]
[830094293,"MERCADO Y BOLSA S.A"]
[830094781,"PRO AIRE S.A.S"]
[830095192,"AIRECO SAS          "]
[830098369,"COOPERATIVA BURSATIL LTDA"]
[830099750,"CGO COLOMBIAN GENERAL OUTSOURCING LTDA"]
[830099766,"ARANDA SOFTWARE ANDINA S A S      "]
[830100241,"DISTRIBUIDORA DE GENERICOS DE COLOMBIA LIMITADA SIGLA DIGECOL LTDA"]
[830102177,"GRUPO INMOBILIARIO CRECER LTDA"]
[830104316,"CORPORACIÓN MADRES EN ACCIÓN BARRIOS ALTOS DE LA QUINTA - COMABAQUINTA"]
[830104395,"CAMIONAUTOS SAS"]
[830105077,"CORPORACION PARA LA PROMOCION Y FOMENTO DE DERECHOS VITALES - \"GESTION Y DERECHOS VITALES\""]
[830105708,"SILLAS Y ACCESORIOS LTDA       "]
[830110815,"CORPORACION TIERRA SOS"]
[830112162,"MONROY GUZMAN E HIJOS S.A.S."]
[830117701,"TRANSPORTES ESPECIALES F.S.G S.A.S"]
[830119276,"INVERSIONES SARA DE COLOMBIA SAS"]
[830121083,"FUNDACION PARA LA RECONCILIACIÓN"]
[830122370,"SYSTEM NET INGENIERIA LTDA"]
[830122983,"ESRI COLOMBIA S.A.S"]
[830129626,"SATCOM COLOMBIA"]
[830130072,"DISTRIBUCIONES & COMUNICACIONES SAS"]
[830131794,"SOCIEDAD DE COMERCIALIZACION INTERNACIONAL ANDINA DE EQUIPOS, SUMINISTROS Y SERVICIOS SAS CI ANDIEQUIP SAS EN REORGANIZACION"]
[830141264,"DISTRICOM ASOCIADOS \" S A S\"."]
[830141357,"TAXIS YA S.A"]
[830145023,"GESCOM LTDA"]
[830145947,"CORPORACION PARA LA INVESTIGACIÓN E INNOVACIÓN EDUCATIVA Y EL DESARROLLO COMUNITARIO - BITACORA"]
[830500329,"NEMESIS S.A"]
[830511165,"MARTIN BERMUDEZ ASOCIADOS S A"]
[860000368,"IMPORTADORA FOTOMORIZ S.A.      "]
[860001022,"CASA EDITORIAL EL TIEMPO S. A."]
[860001307,"DISTRIBUIDORA NISSAN S.A"]
[860004871,"COMPAÑIA COMERCIAL CURACAO DE COLOMBIA S.A."]
[860005068,"CONGREGACION DE RELIGIOSOS TERCIARIOS CAPUCHINOS DE NUESTRA SEÑORA DE LOS DOLORES"]
[860007336,"CAJA COLOMBIANA DE SUBSIDIO FAMILIAR - COLSUBSIDIO"]
[860007590,"COMUNICAN S.A."]
[860015685,"UNIVERSIDAD LA GRAN COLOMBIA"]
[860020370,"HOGARES CLUB MICHIN"]
[860024301,"INSTITUTO COLOMBIANO PARA LA EVALUACIÓN DE LA EDUCACIÓN- ICFES"]
[860025639,"MELCO DE COLOMBIA LIMITADA"]
[860026058,"UNIVERSIDAD EAN"]
[860030197,"JARDIN BOTANICO JOSE CELESTINO MUTIS"]
[860034714,"PROCALCULO PROSIS S.A."]
[860041284,"CORPORACION COLOMBIANA DE TEATRO CCT"]
[860042209,"LEGIS EDITORES S.A."]
[860042703,"JULIO E. RODRIGUEZ E HIJOS LTDA."]
[860061099,"INSTITUTO DISTRITAL DE RECREACION Y DEPORTE IDRD"]
[860061145,"FUNDACION TEATRO NACIONAL"]
[860066942,"CAJA DE COMPENSACION FAMILIAR COMPENSAR"]
[860067479,"SERVIASEO"]
[860070301,"CRUZ ROJA COLOMBIANA SECCIONAL CUNDINAMARCA Y BOGO"]
[860071250,"BMC BOLSA MERCANTIL DE COLOMBIA S.A.    "]
[860403835,"MANTENIMIENTO DE ELEVADORES Y CIA LIMITADA"]
[860404222,"JOTAVE Y COMPAÑIA LIMITADA"]
[860506170,"INSTITUTO DISTRITAL DEL PATRIMONIO CULTURAL"]
[860514568,"SEGURIDAD CENTRAL LIMITADA"]
[860516847,"JUAN GAVIRIA RESTREPO & CIA S.A."]
[860517395,"FUMIGADORES DE COLOMBIA FUMICOL LTDA"]
[860518574,"CONTROL SISTEMAS COMUNICACIONES CSC LTDA"]
[860531851,"FUNDACION ALMA"]
[860536019,"FUNDACION AFRO COLOMBIANA PARA EL DESARROLLO LA SOLIDARIDAD Y LA INTEGRACION HUMANA FUNDECH"]
[860536029,"EDITORIAL LA UNIDAD S. A. EL NUEVO SIGLO"]
[890804378,"DATAPOINT DE COLOMBIA SAS"]
[890903407,"SEGUROS GENERALES SURAMERICANA S.A."]
[891500316,"JARDINE LLOYD THOMPSON VALENCIA & IRAGORRI CORREDORES DE SEGUROS S A"]
[891501783,"GAMMA INGENIEROS S.A."]
[899999061,"FONDO DE DESARROLLO LOCAL CIUDAD BOLIVAR"]
[899999063,"UNIVERSIDAD NACIONAL DE COLOMBIA"]
[899999115,"EMPRESA DE TELECOMUNICACIONES DE BOGOTA SA ESP"]
[899999124,"UNIVERSIDAD PEDAGOGICA NACIONAL"]
[899999143,"SERVICIO AEREO A TERRITORIOS NACIONALES SA - SATENA"]
[899999230,"UNIVERSIDAD DISTRITAL FRANCISCO JOSE DE CALDAS"]
[899999239,"INSTITUTO COLOMBIANO DE BIENESTAR FAMILIAR - ICBF"]
[899999333,"INSTITUTO DISTRITAL PARA LA PROTECCION DE LA NIÑEZ Y DE LA JUVENTUD"]
[899999961,"FONDO DE DESARROLLO LOCAL DE LOS MARTIRES"]
[900029747,"LA ORGANIZACION DE LA COMUNIDAD RAIZAL CON RESIDENCIA FUERA DEL ARCHIPIELAGO DE SAN ANDRES PROVIDENCIA Y SANTA CATALINA - ORFA -."]
[900034347,"PROXEL COLOMBIA LTDA"]
[900034395,"BLACK HAT ARCHETYPE"]
[900041173,"MANUFACTURAS LA FE EU"]
[900042483,"CORPORACIÓN COMUNITARIA DE APOYO A LA SOCIEDAD "]
[900062917,"SERVICIOS POSTALES NACIONALES"]
[900065433,"ASEIA ASESORES EN EXCELENCIA INTEGRAL S A PODRA US"]
[900068834,"FABRICARTON SAS"]
[900091695,"PROYECTOS SEMANA SA"]
[900092433,"SANTOFIMIO GAMBOA & ASOCIADOS LTDA SG & ASOCIADOS LTDA"]
[900092569,"PROYECTOS PHI SA"]
[900095075,"THREE SQUARE LTDA"]
[900098064,"ASOCIACION DE CABILDOS INDIGENAS \"ASCAI\""]
[900107634,"UNIFY LTDA"]
[900118932,"SECURITY TECH CONTROL SAS"]
[900122396,"INVERSIONES ALENA S.A.S."]
[900127054,"INSTITUTO DISTRITAL DE PARTICIPACION Y ACCION COMUNAL \" IDPAC \"."]
[900127768,"UNIDAD ADMINISTRATIVA ESPECIAL DE CATASTRO DISTRITAL"]
[900129038,"ICOMAGER SAS"]
[900131147,"MATERIALES Y PRODUCTOS MAYPROSEK LIMITADA"]
[900152688,"CONSTRUC CITY LTDA"]
[900159739,"FUNDACION GENERACION COLOMBIA"]
[900175565,"FUNDACIÓN ESCUELA POPULAR DE ARTES Y OFICIOS- EPAO"]
[900194987,"VICARTECHZ LIMITADA"]
[900204675,"CORPORACIÓN AMBIENTAL CHILCOS"]
[900205315,"INDUCALDERAS Y CIA LTDA"]
[900210800,"ANDES SERVICIO DE CERTIFICACION DIGITAL S.A ANDES SCD S.A"]
[900211268,"ING LTDA."]
[900228799,"EDITORIAL CONTEXTO JURIDICO LTDA"]
[900231022,"D D AIRE ACONDICIONADO LTDA"]
[900260985,"QUALITY ENTERPRISE LTDA"]
[900266091,"FUNDACION TERRE DES HOMMES"]
[900270534,"CORPORACIÓN PARTNERS COLOMBIA"]
[900276997,"CYSNUS SAS"]
[900280663,"SOLUCIONES ANCLA LTDA"]
[900281089,"ALPUNTO SOLUCIONES SAS"]
[900281709,"FUNDACION RELATOS Y SABERES POR UNA PEDAGOGIA DE LA MEMORIA - R&S"]
[900295510,"ADVANCED SUPPORT S.A."]
[900300970,"INDUHOTEL SAS"]
[900310768,"TESCORP LIMITADA"]
[900317501,"DOTACIONES SAGAL"]
[900329128,"PEDRO ALFONSO HERNANDEZ ABOGADOS CONSULTORES SAS"]
[900331536,"CORPORACION CARTOGRAFIA SUR"]
[900333228,"AGR SOLUCIONES SAS"]
[900337226,"FUNDACION CULTURAL MANIGUA"]
[900339959,"COLOMBIANA DE SERVICIOS INMOBILIARIOS SAS"]
[900340597,"CONSERAUTO JR S A S        "]
[900343311,"EVOLUCIONEMOS SAS"]
[900356829,"CORPORACION MOVIMIENTO ROCK POR LOS DERECHOS HUMANOS DE CIUDAD BOLIVAR"]
[900379030,"C&P LICITACIONES Y CONSULTORIA SAS"]
[900381761,"INGENIERIA E INFRAESTRUCTURA DE COLOMBIA SAS "]
[900383010,"CORPORACION FEMM"]
[900413030,"INSTITUTO DISTRITAL DE ARTES"]
[900452327,"2WAYCOMM SAS"]
[900575091,"UNION TEMPORAL DISTRISOCIAL"]
[900580731,"CONSORCIO N & M         "]
[900580804,"CONSORCIO G & A"]
[900583487,"LEITO INVERSIONES S A S       "]
[900586941,"ACOSTA IRREÑO & ASOCIADOS S A S"]
[900627060,"ALL TECNOLOGICAL SERVICES ATS SAS"]
[900659754,"CONSORCIO ALIANZA"]
[900686710,"UNION TEMPORAL SR"]
[900720054,"UT TRANS SG BOGOTA        "]
[900730690,"UNION TEMPORAL QBE SEGUROS S.A. - LA PREVISORA S.A"]
[900762896,"UNION TEMPORAL CAPITALIÑOS DISTRITAL -2014"]
[900803833,"UNION TEMPORAL TEXTICZATY       "]
[900812916,"UNION TEMPORAL ZATY & ROSDI      "]
[900813055,"UNION TEMPORAL RS         "]
[900849327,"UT CAPITALIﾑOS DISTRITAL - 2015     "]
[1000002117,"MARIN OSPINA PAOLA MILENA"]
[1000002118,"KARLA TATHYANNA MARIN OSPINA"]
[1000330073,"BRANDON STIVEN VEGA SALAZAR"]
[1000577432,"PIEDAD LORENA CASTILLO VIVANCO"]
[1001063734,"HIGUERA CUERVO MARYURY EYEYTH"]
[1004609102,"YISMAR SALAS ARAUJO"]
[1004636571,"IVAN RODOLFO VALENCIA CORREA      "]
[1004897186,"LIGIA VICTORIA RODRIGUEZ TORRADO"]
[1005329951,"MAYRA CONSTANZA CUELLAR SANCHEZ"]
[1006201844,"CLEIDI TATIANA MONTAÑO RENTERÍA"]
[1006594243,"MIGUEL ALBEIRO RIVERA FORERO"]
[1007801723,"LIGIA MILENA MANRIQUE ALONSO      "]
[1010160891,"SERGIO FERNANDO MUÑOZ MARTINEZ"]
[1010164003,"SANDRA PATRICIA CASTRO MARROQUIN"]
[1010164214,"SANTIAGO  QUINTERO PINTO "]
[1010165002,"GALIA LENA ALVAREZ HERNANDEZ"]
[1010166912,"VIVIAN ALEXANDRA MARTINEZ GUEVARA"]
[1010167042,"JENNY KATHERINE DIAZ BARRETO      "]
[1010167100,"DIANA ALEJANDRA PARRA OSORIO"]
[1010168023,"PAULA PALOMA GONZALEZ CONTRERA"]
[1010168404,"DIANA MILENA TORRES MOSQUERA"]
[1010169390,"GIOVANA XIMENA ROJAS MORA"]
[1010170645,"ANDRES EDUARDO ACUÑA BOHORQUEZ"]
[1010171229,"MARIA CATERINA VILLA DE LIGUORI"]
[1010172639,"FERNANDEZ PATIÑO SANDRA MILENA"]
[1010173339,"FRANCISCO JAVIER CAMARGO RAMOS"]
[1010173514,"CLAUDIA VIVIANA VILLALOBOS FAGUA"]
[1010173521,"ROBERTO JOSE RODRIGUEZ CARRERA"]
[1010174344,"ANDREA HENAO CLAVIJO"]
[1010174766,"JUAN GUILLERMO CANO SCHUTZ"]
[1010175679,"GINA PAOLA BENAVIDES GALINDO"]
[1010175941,"DIANA ALEJANDRA MELO VANEGAS"]
[1010176412,"LAURA CAROLINA VELASQUEZ GIL"]
[1010178141,"LAURA CAMILA MARTINEZ JIMENEZ"]
[1010179853,"MARIA YACQUELIN VILLAMIL NAVIA"]
[1010181366,"ADRIANA MILENA PERILLA MEDINA"]
[1010181876,"DAVID ANDRES SEGURA ORTIZ"]
[1010182692,"DANIEL ALEJANDRO ASPRILLA BENITEZ"]
[1010182750,"ANA MARÍA VALENCIA SANDOVAL"]
[1010183055,"AGUDELO PEREZ CLAUDIA JENEIREE"]
[1010183358,"JUAN CAMILO LOAIZA ORTIZ       "]
[1010183502,"JUAN FELIPE ACOSTA NIÑO"]
[1010185344,"DIANA MARCELA PERNETT PORTACIO"]
[1010185777,"JHON ALEXANDER MORENO CARDENAS"]
[1010185986,"ANYELA PATRICIA PEREA LASSO      "]
[1010186035,"OMAR DANIEL ORTIZ ORTIZ"]
[1010186990,"PAOLA OSPINA CASTAÑEDA"]
[1010188572,"FREDY ORLANDO ROMERO GUATAQUI      "]
[1010188621,"LINA MERCEDES GUZMAN MOJICA      "]
[1010190483,"LILIANA MARCELA CASTIBLANCO NOREÑA"]
[1010192941,"CASTRO FONSECA JONATHAN FREDY"]
[1010193240,"DIAZ LONDOÑO JONNATHAN ALEXANDER"]
[1010194059,"DIANA CRISTINA CORREDOR GIL"]
[1010196629,"ANDRES FELIPE OVIEDO CIFUENTES     "]
[1010196637,"KATHERINNE MORENO AGUDELO"]
[1010199602,"ADRIANA MILENA GARZON GONZALEZ"]
[1010199844,"JULIO ANDREY CORRALES QUIMBAYO"]
[1010200695,"CARLOS ANDRES PARRA MORENO"]
[1010201302,"CAMILA BARAJAS SALEJ        "]
[1010203298,"FABIAN MAURICIO OME HERNANDEZ      "]
[1010203982,"SALAZAR RIVEROS SARA ELIZABETH"]
[1010204802,"CARDENAS PUERTA OSCAR ANTONIO"]
[1010206360,"LIZETH DANIELA ALVAREZ MADROﾑERO     "]
[1010206653,"INGRID JARBLEY NEIRA PARRA"]
[1010207279,"CORTES GUZMAN LEONEL EDUARDO"]
[1010212858,"SINDY JOHANA MOSQUERA SAUCEDO"]
[1010221187,"DERLY NATALIA RODRIGUEZ RODRIGUEZ     "]
[1010223353,"JENNY CONSTANZA GIRALDO BAUTISTA"]
[1010239028,"MARIA PAULA ORTIZ RAMIREZ"]
[1010239029,"LAURA VANESSA PATIÑO OCAMPO"]
[1012334757,"LAURA VICTORIA MORENO SUAREZ"]
[1012340334,"LAURA MARCELA NIÑO MORENO"]
[1012343497,"LUIS ALBERTO SUAREZ MOYA       "]
[1012347519,"JULIETH JESENIA JIMENEZ       "]
[1012347528,"GERMAN ANDRES BUSTOS BELTRAN"]
[1012351486,"JUAN CAMILO ESTEVEZ CARDENAS"]
[1012353297,"DIANA PATRICIA GARCES LOPEZ      "]
[1012355197,"BARRETO TAFUR STEFANNY "]
[1012357007,"INGRID STEFANIE SIERRA NIETO"]
[1012359786,"BELTRAN GUERRERO RAFAEL RICARDO"]
[1012373776,"ELIANA MURILLO CORDOBA"]
[1012375275,"STEPHANIE PAOLA BAUTISTA GARCIA     "]
[1012385713,"JULIETH ANDREA GARCIA DUQUE"]
[1012392649,"YOAN SEBASTIAN QUIROGA CONTRERAS"]
[1012394592,"DAVID CASTAÑO CHIGUASUQUE"]
[1012394685,"SERGIO ALBERTO CARRILLO LOPEZ"]
[1012423844,"STEVEN ANDRES VACA VERGARA"]
[1013579712,"JAVIER OSWALDO QUIROGA MONTENEGRO"]
[1013581981,"FLOREZ PARRA NADIESDA LILIANA"]
[1013587823,"EDISON LINARES MUÑOZ"]
[1013589902,"JEIMMY MARISOL DIAZ MUÑOZ"]
[1013590213,"DORYS LEONOR HURTADO COPETE"]
[1013593250,"JORGE ENRIQUE RODRIGUEZ PEÑON"]
[1013594963,"LUIS ANTHONY TRANCHITA PINZON      "]
[1013596609,"MARIO ELKIN ROMERO GAVILAN      "]
[1013599026,"SINDY TATIANA CORONADO OSPINA "]
[1013600376,"RODRIGO ALFONSO QUINTERO SANCHEZ"]
[1013601135,"JUAN RICARDO VIRVIESCAS ANGARITA     "]
[1013605200,"CATHERINE RONCANCIO ACOSTA      "]
[1013605489,"BIBIANA GARCES BRECEﾑO       "]
[1013611781,"BARBOSA PELAYO MAYERLYNE "]
[1013611819,"ELIANA YINETH ASPRILLA MOSQUERA"]
[1013613926,"HERNANDEZ SASTOQUE JESSICA MELANIE"]
[1013615522,"ROJAS GUTIERREZ SERGIO RICARDO"]
[1013619911,"GERMAN GERARDO GUTIERREZ PEREZ"]
[1013621371,"LOREYDY VIVIANA DAZA CABALLERO"]
[1013624677,"ANGEL DAVID DIAZ CARDENAS"]
[1013628847,"YIDY YULEIMI PUENTES LOPEZ      "]
[1013639011,"VIVIAN LIZETH MORALES BERNAL      "]
[1013640741,"ANDRES CAMILO CAMARGO CAMARGO      "]
[1013642520,"LAURA CELMIRA GOMEZ VILLARREAL "]
[1013645052,"KAREN LISETH VAQUIRO CUELLAR"]
[1013648042,"JISEL VANESA SIERRA TORRES"]
[1013650923,"FANOR HERNAN QUINTERO ATARA      "]
[1013657171,"JOHANNA PAOLA AVENDAÑO GARCIA"]
[1013658154,"YUDELIS LESCANO PALACIOS       "]
[1013673626,"SANTIAGO ANDRES PATIÑO HERNANDEZ"]
[1014178356,"EDGAR JHONNATAM BELEﾑO GARCIA      "]
[1014178790,"JERLIN YENEL MOJICA GOMEZ       "]
[1014179949,"JAIME ANDRES TABORDA ZAPATA"]
[1014181872,"ANDRES FELIPE MENCO MARTINEZ"]
[1014182543,"CRISTHIAN CAMILO GORDILLO SAAVEDRA"]
[1014183952,"ANDERSON ALFREDO VENEGAS BERNAL"]
[1014185465,"ANIBAL ANDRES ARAGONES ARROYAVE"]
[1014188114,"DIEGO ANDRES MORENO MORENO"]
[1014189698,"KARL HEINZ SKINNER MALDONADO"]
[1014192535,"HERNANDEZ HERRERA INGRID TATIANA"]
[1014192866,"CAMILA QUINTANA BARBOSA"]
[1014195676,"MAGDA LICETH OSPINA MALDONADO      "]
[1014196681,"FREDY DAVID MORILLO GUZMAN"]
[1014196816,"IVONNE ANDREA ARDILA PINZON"]
[1014197763,"MARIA FERNANDA MARTINEZ LEON"]
[1014198122,"ANGELICA MARIA SEGURA BONELL"]
[1014199317,"ANDRES GOMEZ CASTRO"]
[1014201344,"JULIETH ANDREA PAEZ SOTO"]
[1014201984,"LAURA ANDREA RICO GALVIS"]
[1014205233,"ANGIE PATRICIA SALAS CARRANZA"]
[1014212835,"MIGUEL ANGEL PEREZ COLORADO"]
[1014213363,"JESSICA PAOLA LEON SUAREZ"]
[1014214500,"PAOLA ANDREA ARCHILA DIAZ"]
[1014217511,"LUIS EDUARDO GOMEZ NARVAEZ"]
[1014219762,"NAYARA TORRES RANGEL"]
[1014221152,"JENNY PAOLA CORTES BELTRAN"]
[1014221587,"LAURA VANESSA AVENDAÑO RODRIGUEZ"]
[1014221894,"HERNANDEZ MARTINEZ LADY JOHANA"]
[1014223220,"ANYULY  CAMACHO MARTINEZ"]
[1014224610,"MURILLO MOJICA OSCAR FERNANDO"]
[1014226485,"ROBINSON MAURICIO GIRALDO GIRALDO"]
[1014230598,"ALFONSO MORENO BUITRAGO"]
[1014230808,"VICTOR FELIPE SOCHA CAICEDO      "]
[1014231092,"JOSE NOE MARTINEZ DUQUE       "]
[1014234645,"YURANY KATHERIN BUITRAGO RIOS"]
[1014236370,"BISMARCK ALFREDO CAICEDO MENDEZ"]
[1014239037,"PAOLA ANDREA FLOREZ ORTEGA"]
[1014245708,"CEPEDA MATIZ LAURA ANYULIET"]
[1014247939,"DELGADO CAMELO JORGE ANDRES"]
[1014253375,"DANIEL RICARDO LEON GARZON"]
[1014260928,"NATALIA BETANCOURT SIERRA"]
[1014264746,"LEYSSY GOHANA CABEZAS NARVAEZ      "]
[1014267212,"MICHAELL ALEXANDER BARRETO CASTAÑEDA"]
[1014270308,"LUIS CAMILO PEREZ DUARTE"]
[1015392657,"JULIETH PAOLA MATEUS MENDOZA"]
[1015393325,"INGRY JOHANA POVEDA AVILA"]
[1015394079,"LINDA LORENA SARMIENTO LOPEZ"]
[1015394212,"HENRY MAURICIO ROJAS PINEDA"]
[1015394525,"DIEGO HERNAN DAZA HURTADO"]
[1015394879,"JUAN PABLO CELIS DUARTE"]
[1015395398,"LILIANA MARGARITA ESPINOSA JIMENEZ"]
[1015396778,"JOHN FREDY FORERO ORTEGA       "]
[1015399734,"ANA MARIA OLAYA RUIZ"]
[1015400969,"CHRISTIAN ENRIQUE ORTEGA LOAIZA"]
[1015402841,"KAREN LORENA OBANDO SANCHEZ      "]
[1015402942,"JAVIER ALEJANDRO ZUÑIGA ROJAS"]
[1015405006,"CARDENAS FORERO DAVID LEONARDO"]
[1015405532,"GRETEL STELLA MEDRANO MORA"]
[1015407314,"LIZETH ALEXANDRA RAMIREZ VILLAMIZAR"]
[1015408110,"LAURA SOFIA LEMOS SERNA"]
[1015410679,"JULIE ANDREA MEDINA FORERO      "]
[1015412340,"JAVIER CAMILO PEÑA ROMERO"]
[1015413207,"NATHALY GALEANO ARIAS"]
[1015414080,"KAREN VIVIANA PEREZ RIVEROS"]
[1015415749,"MARIA FERNANDA TORRES AREVALO"]
[1015418006,"JENNY CAROLINA RENDON MUﾑETON      "]
[1015422244,"MARIA ISABEL MANZANO OBANDO"]
[1015423218,"DIEGO ALEJANDRO GOMEZ GOMEZ"]
[1015428376,"LUISA FERNANDA RINCON BERNAL"]
[1015432223,"ANA MARIA LIZCANO NARVAEZ"]
[1015434189,"FERNANDEZ PABON YESIKA PATRICIA"]
[1015434270,"CAMILO ERNESTO RAMIREZ CHAVES"]
[1015437824,"RAUL LEONARDO HERNANDEZ FERNANDEZ     "]
[1015440310,"DANIEL ENRIQUE PATIÑO GONZALEZ"]
[1015440375,"DAYANA INES ESGUERRA RAMOS"]
[1015446298,"GRANADA CASTAÑO JUAN FELIPE"]
[1015450194,"LEIDY JOHANNA BENITEZ ROCHA"]
[1015993439,"AVILA HERNANDEZ DANIEL FELIPE"]
[1015994477,"PERDOMO GOMEZ TATIANA ELIZABETH"]
[1015998608,"ADRIANA CAROLINA ESCOBAR GONZALEZ"]
[1015999291,"CAMILO ANDRES RINCON GONZALEZ"]
[1015999358,"LUZ MARY SUAREZ CAÑON"]
[1016005617,"CALVO SALAMANCA CAMILO ANDRES"]
[1016007723,"GOMEZ CRUZ LAURA "]
[1016009028,"CESPEDES CARRILLO JUAN SEBASTIAN"]
[1016009101,"ALBARRACIN MARQUEZ CRISTIAN ANDRES"]
[1016010146,"ADRIANA PATRICIA DE LA TORRE TRUJILLO"]
[1016010816,"DIANA NATALI HERNANDEZ FORERO      "]
[1016017388,"GUARIN MALDONADO SARA LUCIA"]
[1016018360,"RUBEN FABIAN VEGA ACEVEDO"]
[1016019438,"CRISTIAN ALFONSO PEÑALOZA HERNANDEZ"]
[1016020169,"ALVARO JAIVER PEREZ NIETO       "]
[1016022302,"KAREN JOHANNA FORERO HERNADEZ"]
[1016022672,"KAREN DANIELA CORREA OSPINA      "]
[1016024002,"DIANA CAROLINA SAVEEDRA VASQUEZ"]
[1016036449,"KIMBERLLY LEANDRA CRUZ TOVAR"]
[1016039375,"JEISON FABIAN AGREDO TOVAR"]
[1016042486,"LUISA FERNANDA RAMIREZ PULIDO"]
[1016048660,"CARLOS YESID GORDILLO PITRE"]
[1016050680,"ALEXANDER NARVAEZ FORERO"]
[1016051975,"WILLIAM STEVENS CASTILLO VARGAS     "]
[1016053664,"DENISS VELASQUEZ BARRERA"]
[1016070199,"HIMELDA VIVIANA CAMACHO BUITRAGO"]
[1018404005,"SANDRA MILENA CASTAÑEDA RODRIGUEZ"]
[1018404197,"DIANA MILENA POSADA POSADA"]
[1018406320,"ANDRES FELIPE LOPEZ REYES"]
[1018406768,"SUAYAN LIZET BARON MELGAREJO"]
[1018407461,"DIEGO FERNANDO MARTINEZ GOMEZ"]
[1018408855,"DIANA MARCELA BAUTISTA VARGAS      "]
[1018409019,"NIXIA ALEJANDRA VARGAS ROBLES"]
[1018409419,"CHANAGA JEREZ LIZETH XIMENA"]
[1018409541,"DAVID HERNESTO GUEVARA RINCON"]
[1018410060,"LINA PAOLA DE LAS MERCEDES RAMIREZ NIEVES   "]
[1018410690,"HUGO ARMANDO CASTELLANOS MORALES"]
[1018411334,"LILYAM BEATRIZ RODRIGUEZ ALVAREZ"]
[1018411571,"YESSICA FERNANDA OSORIO CHAPETA"]
[1018412053,"JOHANNA MARCELA RODRIGUEZ CABALLERO"]
[1018412327,"ADRIANA ROMERO SANCHEZ"]
[1018412409,"FRANCO GARCIA HERNANDO "]
[1018413982,"OSCAR JOSE BERARDINELLI RODRIGUEZ"]
[1018414039,"MARIA LIZETH RONDON CASTELLANOS"]
[1018415117,"HERNAN JAVIER MURILLO GARCIA"]
[1018415826,"CARRANZA RAMIREZ CRISTIAN ANDRES"]
[1018416391,"MARIA FERNANDA MARTINEZ SARMIENTO "]
[1018418343,"LAURA CAMILA PACHON PINZON"]
[1018418468,"LAURA NATALIA DIAZ BOHORQUEZ"]
[1018419441,"XIMENA DEL PILAR SALAMANCA MESA"]
[1018420687,"CINDY MARCELA VALENCIA BONILLA"]
[1018421215,"ALEJANDRA PATRICIA SERRANO GUZMAN"]
[1018421257,"LEIDY LILIANA OROZCO CETINA"]
[1018425081,"LEIDY YINETH MORA BUITRAGO"]
[1018426101,"ELIANA FERNANDA VALENCIA APONTE"]
[1018426724,"ARTETA DAVILA JOSE JOAQUIN"]
[1018427515,"VALENTINA RESTREPO OSPINA"]
[1018429146,"LEYLA ANDREA GOMEZ ALARCON"]
[1018429406,"MICHAEL ESTICFEN AGUILERA MARTINEZ"]
[1018430419,"LOPEZ CALDERON VIVIANA PATRICIA"]
[1018431074,"VIVIANA PATRICIA ALBARRACIN QUINTERO"]
[1018431923,"MARIA JOSE PEREZ HOYOS"]
[1018432075,"FRANCISCO PIZARRO RIVERA"]
[1018432078,"CAROL YOBANA CAMARGO TRONCOSO"]
[1018432749,"GOMEZ ROMERO LAURA NATALIA"]
[1018434374,"MARIA CAMILA MONROY MUÑOZ"]
[1018436286,"DIANA GABRIELA SOLANO BELEÑO"]
[1018437623,"RAMIREZ DUCUARA SERGIO ANDRES"]
[1018437719,"RAFAEL ANTONIO MURILLO GOMEZ"]
[1018440955,"LUISA FERNANDA LOPEZ GUEVARA"]
[1018441673,"DIEGO MAURICIO REY JIMENEZ"]
[1018441968,"CESPEDES VALENCIA RAFAEL RICARDO"]
[1018442345,"LAURA LISSETH SIERRA SAENZ      "]
[1018442407,"MARIA CATALINA MORENO LOPEZ"]
[1018444104,"LUZ AMANDA GUZMAN MOJICA"]
[1018444550,"HARRICSON STEVAN HERRERA LOZANO     "]
[1018445607,"ANDREA MARCELA ALVAREZ CHAPARRO"]
[1018445710,"HOYOS BAQUERO JUAN CAMILO"]
[1018449764,"JOSE NICOLAS TAUTIVA CONTRERAS"]
[1018450076,"HERLINDA COROMOTO MORA RIAÑO"]
[1018452104,"DAVID MAURICIO ZACIPA ORDOÑEZ"]
[1018452411,"STEVEN ARNALDO WHITAKER POLO      "]
[1018453282,"LINA CAROLINA ROMERO CARDENAS"]
[1018455125,"ERAZO CAICEDO LEXLY JULIETH"]
[1018458900,"JHON JAIRO DIAZ AVENDAÑO"]
[1018461623,"NELSON JULIAN VELASQUEZ PERDOMO"]
[1018462251,"ANGIE STEFANN PEREZ BARBOSA"]
[1018464867,"ANDREA NATALIA MORENO SALAZAR"]
[1018465393,"LLOYD EMMANUEL VALENCIA CAPACHO"]
[1018467122,"JUAN FELIPE RODRIGUEZ MAURY"]
[1018486310,"DANIEL ESNEIDER BUITRAGO ZULUAGA     "]
[1018487819,"ANGIE LORENA GONZALEZ RUIZ      "]
[1018490026,"DEYSI MAYERLI TAVERA ACEVEDO"]
[1019009069,"NESTOR DARIO SAAVEDRA CASTELLANOS     "]
[1019016734,"DIANA CAROLINA MARTINEZ "]
[1019017326,"ALVARO ELIAS BOHORQUEZ HENAO"]
[1019018379,"JORGE ALBERTO MANTILLA BARRETO"]
[1019020591,"FABIAN ALONSO MORA GOMEZ"]
[1019022288,"JORGE ANDRES SERRANO JAIMES      "]
[1019030146,"EDWIN ORLANDO LEON MONTERO"]
[1019031064,"JENIFFERS CATERINE MARTINEZ MOLINA"]
[1019031695,"KAREN TOVAR BELTRAN"]
[1019033686,"EDGAR ALBERTO LEON MEDINA"]
[1019040214,"SLENDY CONTRERAS AMADO"]
[1019040592,"OSCAR ANDRES SANTAMARIA GUARIN     "]
[1019041266,"JULIANA CORONADO NEIRA"]
[1019046672,"LUIS CARLOS PARRA GOMEZ"]
[1019046772,"SARA LUCIA RODRIGUEZ GOYENECHE"]
[1019050531,"WRY JISSELLA MEDINA CRUZ"]
[1019054335,"XIMENA ALEXANDRA GUZMAN ROMERO"]
[1019068637,"LAURA ESTEFANIA MEDINA RUIZ"]
[1019071319,"JEISON ANDRES PLAZAS ROMERO"]
[1019073587,"GERMAN ANDRES BARRETO PARRA"]
[1019074165,"WILMER RIVEROS DURAN"]
[1019075685,"CATOLICO OCAMPO LAURA STHEPANIA"]
[1020712754,"INGRID LILIANA CRISTANCHO BALAGUERA    "]
[1020713605,"CAMILO ESTEBAN SANCHEZ QUINTERO"]
[1020714460,"MORENO ORDUÑA VIVIANA PAOLA"]
[1020716443,"JAVIER FERNANDO OSPINA ROJAS"]
[1020720174,"HECTOR MANUEL MEDINA RENDON"]
[1020720462,"FABIO ADNRES ROJAS ESPINDOLA"]
[1020720624,"FELIPE ALEJANDRO MARIÑO CIFUENTES"]
[1020720944,"LAURA JIMENEZ CORTES"]
[1020722456,"JUAN GABRIEL MONTOYA LLANO      "]
[1020723650,"JULIE ANDREA ORTIZ GODOY"]
[1020727581,"NATHALIA CRISTHINA FORERO SAAVEDRA"]
[1020735114,"LORENA PAOLA BERNAL GRANADOS      "]
[1020738537,"DAYANI TORRES DIAZ"]
[1020738887,"YURI FERNANDA BLANCO ARDILA      "]
[1020739395,"ANDRES GIOVANNI BARRIOS BERNAL"]
[1020742415,"NOOR ESTEVEZ TORRENTS"]
[1020743258,"MARIA PAULA TORO ESPITIA"]
[1020744925,"ANDRES FELIPE CLAVIJO PRIETO"]
[1020748001,"CARLOS EDUARDO AVELLANEDA SUAREZ"]
[1020748026,"LAURA MARIA GUEVARA AGUDELO"]
[1020748028,"LAURA MARIA GUEVARA AGUDELO"]
[1020750089,"DIEGO FERNANDO MEJIA VARGAS"]
[1020751077,"PAULA DANIELA REINA MARTINEZ"]
[1020751205,"FABIAN LEONARDO LUNA FILIZZOLA"]
[1020757194,"JOSE CARLOS CHAPARRO FIRACATIVE"]
[1020758960,"JUAN DAVID VILLALBA CRUZ       "]
[1020761595,"IRENE SALOME BURBANO DELGADILLO"]
[1020766315,"NATALIA GUTIERREZ TRUJILLO"]
[1020766472,"ANA GABRIELA MOJICA LONDOÑO"]
[1020767525,"DANIELA PACHON LAVERDE"]
[1020767911,"FABIAN AGUSTO RINCON CAMELO      "]
[1020770227,"SANTIAGO SILVA SCHLESINGER"]
[1020779496,"LAURA CAMILA GOMEZ ALVARADO"]
[1020781134,"DANIEL HERNANDO ORTIZ QUINTERO"]
[1020782787,"LEONARDO CASTRILLON GUATAVA      "]
[1020784047,"JOSUE DAVID HERNANDEZ BONILLA"]
[1022325849,"ANDREA JOHANNA MEDINA SANCHEZ"]
[1022326681,"CRISTIAN CAMILO BELLO PEDRAZA      "]
[1022328927,"SEBASTIAN RODRIGUEZ MALDONADO"]
[1022331826,"JOSE OMAR FORERO GUZMAN       "]
[1022332511,"JENNY PAOLA ZAPATA ROJAS"]
[1022333071,"MONICA ANDREA CADENA RODRIGUEZ"]
[1022333541,"FAUSTO JULIAN HERNANDEZ GONZALEZ     "]
[1022336945,"FREDY RINCON VALLEJO"]
[1022341132,"JEFREY DARIO GOMEZ GALVAN       "]
[1022341288,"CARDENAS ARIAS KAREN LORENA"]
[1022342872,"FABIAN DAVID PAREDES ESPITIA"]
[1022349212,"DULIANA CAMACHO MARTINEZ"]
[1022352461,"RAUL ALEJANDRO DELGADO MONTENEGRO"]
[1022352530,"FREDY ALEXANDER ROMERO GONZALEZ"]
[1022352594,"DIAZ RODRIGUEZ DIEGO ANDRES"]
[1022352722,"ARTURO SUAREZ ACERO        "]
[1022356381,"JEYSON ANDRES GUZMAN BAHAMON"]
[1022356590,"PAULA ALEJANDRA BARBOSA RODRIGUEZ     "]
[1022358506,"MICHAEL XAVIER CASTRO RAAD      "]
[1022364482,"NORIDA TATIANA NAVARRETE SOLER"]
[1022366036,"LAURA MILENA VISBAL CORTES"]
[1022373334,"LUZ VERONICA PABON SUAREZ       "]
[1022379204,"VALERIA  MUÑETON TAMAYO"]
[1022380802,"LAURA ALEJANDRA CUERVO VEGA      "]
[1022383540,"LEIDY MARCELA ROJAS ESCOBAR"]
[1022385001,"OSORIO OSORIO SINDY VANESSA"]
[1022390141,"MARIA CAMILA PRIETO MORENO      "]
[1022392303,"JHONNY ALEXANDER CRISTO LOMBANA"]
[1022392740,"MIGUEL ANGEL VARGAS MEDINA"]
[1022402898,"JULIAN DAVID RONCANCIO AGUIRRE"]
[1022417770,"ALISSON DANIELA CAICEDO SERNA"]
[1022923163,"MILTON YESID SARMIENTO BOGOTA"]
[1022930421,"DIANA LORENA MONTAÑO RIASCO"]
[1022932417,"ALEXANDER COLORADO ZUﾑIGA      "]
[1022933141,"RONAL ESNEIDER CASTIBLANCO MACA"]
[1022935415,"WILMER BAEZ PIﾑA         "]
[1022939780,"ESTEBAN FABIAN ROJAS ORDOÑEZ"]
[1022947312,"KARINA TORRES CARABALI"]
[1022950072,"JENNY VIVIANA SASTOQUE LOPEZ"]
[1022952920,"CAMILO ANDRES FORERO DUEﾑAS      "]
[1022958112,"JORDAN LEANDRO DIAZ SOTO"]
[1022967264,"INGRY TATIANA SASTOQUE LOPEZ"]
[1022970922,"MURILLO COBA YULI YERALDIN"]
[1022972034,"EDNA LIZBETH BATTA MORENO"]
[1022983392,"MATILDE ASTRID ZAMBRANO HUESO      "]
[1022986711,"MIGUEL ANGEL SANCHEZ SANCHEZ"]
[1022994134,"JESSICA TATIANA GOMEZ CORONADO     "]
[1022995991,"ANGIE KARINA DIAZ HERNANDEZ"]
[1023861991,"CINDY JUNARI SABOGAL GARZON"]
[1023863486,"LOPEZ AGUIRRE VICTOR ALFONSO"]
[1023864105,"LUIS EDUARDO CASTELLANOS ORTIZ     "]
[1023865191,"MAURICIO ORLANDO RINCON HERNANDEZ"]
[1023865930,"HUERTAS RODRIGUEZ NATALY "]
[1023866379,"OSCAR ALEXANDER MONTIEL SANDOVAL"]
[1023867042,"JUAN PABLO VARGAS HEREDIA       "]
[1023868728,"DARWIN ANDRES PACHON BONILLA"]
[1023872143,"HANS WALTER CABRA HERNANDEZ"]
[1023872503,"EDWARD ALEXANDER BERMUDEZ MARTINEZ"]
[1023875155,"MARIA FERNANDA CAMARGO JIMENEZ"]
[1023875427,"CABALLERO ACUÑA TATIANA "]
[1023875468,"HERNAN RODRIGUEZ VARGAS"]
[1023876017,"DICCI JASVEIDI MARTINEZ VELASCO"]
[1023877293,"CRISTIAN CAMILO MORENO GARRIDO"]
[1023877804,"FABIAN RICARDO TOLOZA BARAJAS      "]
[1023878815,"MALORY ROCIO BRICEÑO ROJAS"]
[1023878884,"LAURA CAROLINA OROZCO RODRIGUEZ"]
[1023882069,"YERSON ANDRES MOJICA COGOLLOS"]
[1023882745,"RODRIGO ALEXANDER SOTO SEGURA"]
[1023885354,"JENNY PAOLA MARTINEZ CELY"]
[1023890669,"JOHAN ANDRES MORENO GARRIDO"]
[1023891553,"ANGEL PEÑUELA LIGDA YESENIA"]
[1023896660,"ANDRES CAMILO NIETO RAMIREZ"]
[1023898418,"MARYURIS SHIRLEY MORENO VARGAS     "]
[1023898859,"SANDRA HELEANNE RIASCOS RIVAS"]
[1023904391,"LINA MARIA CASTAÑO MONCADA"]
[1023908777,"JOHN ANDERSON MORENO PAREJA"]
[1023919573,"JULIE MARIA MEJIA GOMEZ       "]
[1023920785,"SERGIO STIVEN VARGAS CASTELLANOS"]
[1023931310,"BAYRON ALEXANDER RODRIGUEZ ESPITIA    "]
[1023939687,"SANDRA MILENA GONZALEZ FORERO"]
[1023945992,"ANGIE XIOMARA GONZALEZ LEAL"]
[1023950199,"JHOJARY PALACIOS HERRON"]
[1023950534,"ANDRES FELIPE DUQUE PAEZ"]
[1024463953,"JULY LORENA PORTELA AVILES"]
[1024469853,"VIVIANA GOMEZ VARGAS        "]
[1024470208,"OCTAVIO JOSE FERREIRA TABARES"]
[1024490516,"JOSE INAEL RODRIGUEZ RODRIGUEZ"]
[1024491362,"ROBINSON DAMIAN RIVAS PACHECO      "]
[1024494196,"NELSON ERNESTO RICO PEDREROS"]
[1024494580,"EVER JULIAN MOYA ZAMUDIO"]
[1024495693,"LAURA XIMENA MORENO CUERVO"]
[1024496445,"JUAN CAMILO BERNAL VALBUENA      "]
[1024502914,"YESICA PAOLA TENORIO MERA"]
[1024503938,"LADY DAYAN VILLANUEVA MORALES      "]
[1024507743,"CAICEDO VASQUEZ DANY RENE"]
[1024507920,"FERNEY MORENO CAMACHO       "]
[1024514437,"JONATHAN JAVIER RODRIGUEZ VACA"]
[1024523273,"CAMELO MUÑOZ DAVID LEONARDO"]
[1024546308,"SANDY LORENA CALDERON MARTINEZ"]
[1024554160,"RUIZ LOAIZA YESICA MARIANA"]
[1024560954,"CARLOS JOHANN RODRIGUEZ GUTIERREZ     "]
[1024567695,"KAREN TATIANA GONZALEZ LADINO"]
[1026250398,"JOHANNA MORALES RIZO"]
[1026251218,"LUZ HEIDI QUIROGA GARCIA"]
[1026252280,"LINA ALEJANDRA BARCO MENDEZ"]
[1026254031,"JENNY LILIAN DIAZ ESPITIA       "]
[1026254272,"JULIANA BURGOS SANCHEZ"]
[1026255696,"MARTHA LILIANA AREVALO ACEVEDO     "]
[1026256195,"LILIANA PATRICIA HERNANDEZ HURTADO"]
[1026256803,"LUNA MENDOZA YULY FERNANDA"]
[1026257372,"JULIAN CAMILO ORJUELA CASTRO      "]
[1026257944,"ANDRES FELIPE CONDE PINZON"]
[1026259361,"DIEGO ARTURO PINTO MILLAN"]
[1026259769,"LUIS EDUARDO MORALES MALDONADO"]
[1026259975,"ANA CAROLINA LOPEZ GALVAN       "]
[1026260261,"NATALIA RIVERA QUINTERO"]
[1026263043,"CYNDY TATIANA GARCIA GARCIA      "]
[1026268281,"JONATHAN ROBERTO HIGUERA HENRIQUEZ    "]
[1026268663,"LUZ STHEPHANIE DIAZ TRUJILLO"]
[1026269010,"JUAN SEBASTIAN BALLESTAS MURCIA"]
[1026269412,"JHOAN DE JESUS NADJAR CRUZ"]
[1026269732,"LINDA KATHERINE QUIROGA NIETO"]
[1026269949,"CRISTIAN DAVID PARDO MARTINEZ"]
[1026270024,"LESTER EDUARDO TAMAYO LOPEZ"]
[1026270588,"LINA KATERINE CAMPOS HERNANDEZ"]
[1026270791,"DAVID CASTRO PEÑA"]
[1026271108,"CAMPO CORRALES EDUARDO JOSE"]
[1026271334,"LIZETH ISABOTH CORTES ESPITIA"]
[1026272207,"PAULA ANDREA BELTRAN RODRIGUEZ"]
[1026272241,"BELTRAN VASQUEZ PAOLA ANDREA"]
[1026273234,"DAVID ALEJANDRO MONTEJO ROA"]
[1026273713,"ANGIE PAOLA OSPINA VELANDIA"]
[1026274489,"ZASHA XIOMARA MEDINA GOMEZ"]
[1026279282,"PINZON HERNANDEZ SHANNEN NICOLE"]
[1026279721,"DAVID LEONARDO RODRIGUEZ QUIJANO"]
[1026281494,"MAYERLY ASTRID GARZON MORA"]
[1026282081,"DANIEL FELIPE AVILA BEJARANO"]
[1026283127,"JULIAN CAMILO LOPEZ PINEDA"]
[1026283300,"ANGIE CAROLINA VALENCIA AYALA"]
[1026286290,"LINA MARCELA HERNANDEZ VALENCIA"]
[1026286867,"JUAN SEBASTIAN JIMENEZ CASTRO"]
[1026287553,"JUAN DAVID GUZMAN ORTIZ       "]
[1026288131,"WUYNI LORENA MORENO IBARGUEN      "]
[1026288167,"MARIA FERNANDA CANTOR ORTIZ"]
[1026294005,"DIANA MARCELA CORTES ESPITIA"]
[1026304464,"TOMAS  BARRERO RAMIREZ"]
[1026553693,"LAURA  PAMPLONA SALAZAR"]
[1026555660,"ANA SOFIA BULLA GARZON"]
[1026557384,"JOSE LEONARDO VASQUEZ CARRILLO     "]
[1026558359,"JESSICA STEPHANIA PINZON HERNANDEZ"]
[1026559384,"JENNY CATHERINE RICAURTE MALDONADO    "]
[1026563369,"ANGELA MARIA ROJAS TRIANA"]
[1026563784,"KEVIN EDUARDO JAMAICA GONZALEZ"]
[1026565342,"ANA MARIA VARGAS CAMARGO"]
[1026566918,"HURTADO COPETE MAITE YERALDINE"]
[1026567882,"JULIAN ANDRES VASQUEZ GARCIA"]
[1026569429,"JUAN SEBASTIAN AYERBE BOLIVAR"]
[1026575913,"KATTY AGREDA RAMIREZ"]
[1030522721,"CHAVES TARAZONA CRISTIAN CAMILO"]
[1030523596,"DIANA YURANI BAﾑOS PINZON       "]
[1030525718,"JOSE GABRIEL OSORIO ALVAREZ"]
[1030531841,"DIEGO ANDRES BELTRAN MARIN"]
[1030534079,"ANYELINE ARENAS LARA"]
[1030534699,"ANGELO GIOVANY GRAVIER SANTANA"]
[1030536903,"ROSA GHINNETH SANDOVAL ROJAS"]
[1030541713,"ACOSTA BOHORQUEZ ANDRES FELIPE"]
[1030541820,"PAOLA ANDREA CAMACHO VANEGAS"]
[1030542514,"KAREN JOHANA ROCHA BELLO"]
[1030543667,"CRISTIAN HARVEY RAMIREZ QUINTERO "]
[1030543723,"MANUEL MAURICIO MEZA SANABRIA"]
[1030545287,"KATHERINE GUZMAN ALARCON"]
[1030545998,"DIEGO FELIPE TORRES CARDENAS"]
[1030547668,"INTI CAMILO VILLEGAS PRADO      "]
[1030551811,"CLAVIJO RAMOS SANDRA ESPERANZA"]
[1030557993,"HERNAN DAVID BONET MARTINEZ"]
[1030558668,"ACOSTA SUAREZ LUBIETH CONSTANZA"]
[1030559585,"DEISY JAZMIN GARZON VARGAS      "]
[1030563621,"FABIAN LOPEZ UMAÑA"]
[1030564427,"ERICA FERNANDA VANEGAS CALDERON     "]
[1030565068,"SEBASTIAN OSORIO JIMENEZ"]
[1030567679,"DIANA MARCELA JIMENEZ SALAMANCA"]
[1030568706,"MARIA ANGELICA ORJUELA BARON"]
[1030568768,"GERMAN ANDRES CARO LAGOS"]
[1030569854,"NADYA CATALINA SANCHEZ CARDOZO"]
[1030572276,"LIZETH CATALINA CAICEDO SERNA"]
[1030576516,"NELLY YENDY ARRECHEA RIASCOS"]
[1030578382,"HECTOR LEONARDO LOPEZ AVILA"]
[1030581261,"ANGIE MARCELA RUIZ PRIETO       "]
[1030583359,"WILLIAM FERNANDO ZAMBRANO PRIETO"]
[1030584266,"CAMELO MUÑOZ JHON EDWARD"]
[1030592721,"JUAN PABLO FULA SOTELO"]
[1030599185,"JUAN CARLOS HOYOS ROBAYO"]
[1030602538,"ANGIE PAOLA TORRES SERRATO"]
[1030603688,"JIMMY ALEJANDRO BELLO ACERO"]
[1030610614,"ANA MARIA RODRIGUEZ COMAS"]
[1030617185,"CARLOS ARIEL VALENCIA MOSQUERA"]
[1030622530,"DANIEL FELIPE VASQUEZ MURCIA"]
[1030622753,"GONZALEZ GARZON PAOLA ANDREA"]
[1030624761,"MERLIN ANGELYNE CASTRO GONZALEZ"]
[1030628279,"CASTRO RUBIANO CRISTIAN CAMILO"]
[1030634413,"LAIDY NIYIRETH PALENCIA PALENCIA"]
[1030642638,"RUBY LORENA CRUZ CRUZ"]
[1030642728,"MIGUEL ANGEL RODRIGUEZ GARZON      "]
[1030646496,"ANDREA YURARY RIVERA GALINDO"]
[1031037474,"PABLO JOSE VILLAMIL JARAMILLO"]
[1031121034,"LUZ VIVIANA APONTE CRUZ"]
[1031122242,"IVAN GABRIEL FUENTES SANCHEZ"]
[1031123038,"ALEX ANDRES VELA MACHADO"]
[1031123595,"CARLOS ANDRES HERNANDEZ NOVOA      "]
[1031125654,"CHRISTHIAN GIOVANNY VALENCIA MOLINA"]
[1031129307,"MILDRED PAOLA BOHORQUEZ BELTRAN"]
[1031133112,"KAREN VIVIANA OSORIO PALACIOS"]
[1031134149,"LEIDY JHOANA ZAMBRANO GUEVARA      "]
[1031136358,"NAIRON MIGUEL RINCON SUAREZ"]
[1031137474,"PABLO JOSE VILLAMIL JARAMILLO"]
[1031139918,"DANIELLE NATHALY PEÑA GARCIA"]
[1031142676,"ANGIE LIZETH RODRIGUEZ FAJARDO"]
[1031142979,"KELLY JOHANNA ALEGRIA NAVARRO"]
[1031144651,"CARMEN EMILIA PEDRAZA GAONA      "]
[1031147540,"YENNY ANDREA PENAGOS CELY"]
[1031147678,"LIEVANO VALLECILLA LORENA ALEJANDRA"]
[1031155176,"DANIEL ALEJANDRO RUBIANO SOSA"]
[1032356294,"HUGO ALBERTO ARDILA SANCHEZ"]
[1032356909,"ALEXANDRA GRAJALES ANZOLA"]
[1032358430,"CAMILO ANDRES FORERO HERNANDEZ     "]
[1032360623,"OSCAR STEVEN LOPEZ AVILA"]
[1032360626,"HAROLD LOPEZ AVILA"]
[1032360697,"ANDREA MARCELA RODRIGUEZ ARANGO"]
[1032361089,"CAMILA ALEJANDRA HOYOS PULIDO"]
[1032362915,"CESAR AUGUSTO TAPIERO        "]
[1032363145,"JAIRO HERNANDO PUENTES FERNANDEZ"]
[1032367179,"YIBETH FAISURY SALAZAR ABRIL"]
[1032368337,"LUIS ANGEL SALAZAR LARA "]
[1032369651,"MONICA JULIANA PACHECO ORJUELA     "]
[1032370963,"SERGIO ANDRES TORRES VIDAL      "]
[1032372023,"JESUS DAVID DÍAZ CAMPOS"]
[1032372326,"EDWIN FABIAN RODRIGUEZ APARICIO"]
[1032372411,"CESPEDES RUIZ JAILDER "]
[1032372423,"DIANA FERNANDA PACHECO MARTINEZ"]
[1032373181,"DIEGO FERNANDO MARIÑO NIÑO"]
[1032373832,"CAMILA ANDREA LOZANO CORTES"]
[1032374686,"CLAUDIA LILIANA ROMERO CAMELO"]
[1032375186,"ELIANA DEL PILAR GONZALEZ DAGUA"]
[1032377186,"LOPEZ DUQUE WENNDY ALEXANDRA"]
[1032379295,"AREVALO PAEZ LIZET IRENE"]
[1032380954,"MARIA DEL MAR PIZARRO GARCIA"]
[1032382293,"MAGDA BOLENA ROJAS BALLESTEROS"]
[1032383750,"JOSE ORLANDO FUENTES ORTEGA"]
[1032387168,"LEIDY JOHANNA PRADA CARVAJAL"]
[1032388010,"BLANCA ANDREA RODRIGUEZ ROJAS"]
[1032388020,"EDGAR ANDRES GALVIS ARCE"]
[1032389169,"JUAN DAVID CUADROS GARZON       "]
[1032389567,"ANDRES FELIPE GONGORA SANCHEZ"]
[1032389792,"JAMES ANDRES NEUQUE PATARROYO"]
[1032390608,"ALVARO DANIEL PARDO CASTILLO      "]
[1032393554,"JHONATAN WALDURRAGA GOMEZ"]
[1032393628,"JENNER ALONSO TOBAR TORRES"]
[1032394884,"MAURY ELIANA VALENCIA GUTIERREZ     "]
[1032395339,"CLAUDIA VIVIANA OSPINA VASQUEZ     "]
[1032396768,"MIGUEL ANGEL PEREZ QUIROGA"]
[1032400228,"KEISON LEMUS GAMBOA"]
[1032401149,"LINA ESMERALDA BELTRAN VILLAMIL"]
[1032402402,"JEISSON FERNEY ZUBIETA DIAZ"]
[1032402701,"ANDREA MARIA LICONA ARAGON      "]
[1032402719,"ANA PAOLA SANCHEZ ARAGON"]
[1032403121,"INDIRA HERNANDEZ BERNAL       "]
[1032404038,"MARIO SNEIDER ANGEL PEÑUELA"]
[1032404491,"HUGO ALBERTO ZAMORA CONTRERAS"]
[1032406285,"EYDI VIVIANA RAMIREZ GOMEZ"]
[1032411446,"MAYRA KATHERINE SERPA SEPULVEDA     "]
[1032411967,"MONTAÑA CARVAJAL VIVIANA CAROLINA"]
[1032412742,"LAURA VIVIANA FLOREZ RODRIGUEZ"]
[1032412934,"ANDRES FELIPE BUITRAGO CERON "]
[1032413424,"MARIA CAMILA SANDOVAL RODRIGUEZ"]
[1032413875,"YULI MARCELA LOPEZ CIFUENTES"]
[1032415184,"YULIANA MOLANO FRANCO"]
[1032421112,"ANDRES MAURICIO SALAZAR CADENA"]
[1032422080,"JENNY PAOLA PORRAS CAJAMARCA"]
[1032423292,"DAVID MARINO SANCHEZ VIGOYA"]
[1032424383,"GUERRA ACOSTA JAVIER ANDRES"]
[1032424570,"BOHORQUEZ MUÑOZ LUIS CARLOS"]
[1032424983,"ANGELICA MARIA BALLESTEROS SARAY"]
[1032427075,"LUIS MIGUEL DAZA OLARTE"]
[1032430304,"PABLO GERMAN BARON MARIN       "]
[1032430326,"JENNYFER CAROLAIN MEJIA HERNANDEZ"]
[1032433601,"TATIANA ANDREA BONILLA SEGURA      "]
[1032434007,"JUAN DAVID CAMACHO SANTOYO"]
[1032434537,"JUAN SABASTIAN CASTRO GAONA"]
[1032434692,"MARILY TRIVIÑO AVELLA"]
[1032434828,"ISIS CATALINA BERNAL CEPEDA"]
[1032438360,"GUERTHY YERED GUTIERREZ AMAZO      "]
[1032440570,"ERIKA MILENA PEDRAZA MATEUS      "]
[1032443118,"ADRIANA LUCIA ROBLES BALLESTEROS"]
[1032444544,"KAREN NATHALY SIILVA CAMACHO"]
[1032446276,"MICHAEL CAﾑON MUﾑOZ        "]
[1032447008,"MARICARMEN MOVIL GAMEZ       "]
[1032447094,"ALBEIRO GONZALEZ GAMBA"]
[1032449532,"MARIA CAMILA PARRA PATIÑO"]
[1032450647,"MARIA CAMILA BARRERA LOPEZ"]
[1032450682,"DANIEL RICARDO OLMOS MUﾑOZ      "]
[1032451525,"MONICA ALEJANDRA BELTRAN RODRIGUEZ"]
[1032455158,"YENIFER ANDREA CHIQUIZA NIVIA"]
[1032458323,"DONKA ATANASSOVA IAKIMOVA"]
[1032473323,"MABEL GERALDINE HERRERA MANCILLA"]
[1032486516,"ANGELA PATRICIA FITATA VELASQUEZ"]
[1032492161,"ANGGIE LORENA SAAVEDRA ROJAS"]
[1033683556,"ORTIZ BERNAL VIVIANA "]
[1033687010,"DIANA LORENA BOCANUMENT GARZON     "]
[1033687264,"LILIANA PAOLA GUTIERREZ RODRIGUEZ"]
[1033687940,"LIZETH ANDREA ROZO RAMIREZ      "]
[1033692369,"ANGELICA VIVIANA RODRIGUEZ ABREU"]
[1033698561,"ADOLFO FRANCO CAICEDO"]
[1033704514,"HURTADO GUERRERO WISTON GENARO"]
[1033709445,"JULIAN FERNANDO BARRERO ROMERO     "]
[1033715442,"MICHAEL ENRIQUE NARANJO MARTINEZ     "]
[1033719075,"YURY MARCELA TAPIERO GARCIA"]
[1033723699,"JHON FREDY TAVERA CUERVO"]
[1033724627,"JEIMMY CAMILA PARRA ARCHILA"]
[1033726914,"GERMAN DAVID SUAREZ CANTILLO"]
[1033730568,"JORGE ANDRES MORA MICAN"]
[1033732704,"ANGIE PAOLA REINA VARGAS"]
[1033736279,"JOHAN ANDRES RAMIREZ HERNANDEZ"]
[1033736942,"CRISTIAN CAMILO CLAVIJO RODRIGUEZ"]
[1033751596,"JESSICA ALEJANDRA OROZCO CORREA"]
[1033752426,"BRAYAN ESTIVEN ESTUPIﾑAN MEJIA     "]
[1033764265,"YILVER ESNEIDER JOVEL HERNANDEZ"]
[1033764886,"ELIZABETH MARTINEZ RINCON      "]
[1033769482,"EDUAR JAMIR LOZANO VERA "]
[1033789929,"JUAN DAVID RODRIGUEZ FAJARDO"]
[1035415884,"OSWALDO JUAN ZAPATA QUIJANO"]
[1036622676,"KATERIN PACHECO REYES"]
[1037570314,"CARLOS ALFONSO ORTIZ LANCHEROS"]
[1042417351,"FRANCISCO GUILLERMO PEREZ MARTINEZ"]
[1047392346,"YIRA ALEXANDRA MORANTE GOMEZ"]
[1047394728,"VILDRIS PAJARO MURILLO       "]
[1049617645,"LEANDRO ANDRES SANCHEZ TRIVIÑO"]
[1049619313,"LIZZETE ANDREA SANCHEZ BERNAL"]
[1049629773,"DANNY VERONICA CORTES PEÑA"]
[1052378238,"MARTHA ELENA TORRES TORRES"]
[1052378967,"ADOLFO ANDRES MARQUEZ PENAGOS"]
[1052384815,"ANA MILENA NIÑO CASTRO"]
[1052390817,"TANIA CAMILA ALEXANDRA BARBOSA SOLANO    "]
[1053328862,"MIGUEL ANTONIO BALLESTEROS RODRIGUEZ"]
[1053780423,"ARCILA DIAZ GUILLERMO ALBERTO"]
[1053793613,"FRANCI NATHALY DIAZ SOTO"]
[1053804795,"DANIELA DE LOS ANGELES VARGAS CANO"]
[1053821627,"JUAN FELIPE MARTINEZ CERON      "]
[1053824743,"SERGIO PELAEZ SIERRA"]
[1053829550,"BRYANT TORRES GUTIERREZ "]
[1054548115,"ANGELA CRISTINA ROSAS HENAO"]
[1057579523,"JAVIER  PRIETO TRISTANCHO"]
[1061694713,"SANDRA LORENA MORENO VILLARREAL"]
[1061699133,"MARTHA LUCIA AGREDO CERON       "]
[1061710714,"RIGOBERTO TOMBE TROCHEZ       "]
[1061717835,"DILIA MELISSA MUÑOZ RODRIGUEZ"]
[1061735487,"YENNY FARLEY VARGAS PUSCUE      "]
[1061758259,"KELLY JHOANA QUILQUE VIVAS      "]
[1064427260,"MARIA CARMENZA USSA TUNUBALA"]
[1065569446,"HERNANDO JOSE DANGOND OSORIO"]
[1065578059,"JAIRO ANTONIO QUIROZ HURTADO"]
[1065578160,"FRANCISCO ORLANDO HERRERA TORRES"]
[1065578743,"JAIME ANDRES GONZALEZ MEJIA"]
[1065584990,"ADALGIZA MARIA VILLAZON JULIO"]
[1065590760,"EDWIIN ENRIQUE MINDIOLA PACHECO     "]
[1065614571,"PEDRO RAFAEL PUMAREJO JIMENEZ"]
[1065617321,"GREGORIO GERMAN MARULANDA MARTINEZ"]
[1065642375,"ANDRES GUILLERMO MAESTRE ARAUJO"]
[1065661542,"MARIA JULIANA BUSTOS OROZCO"]
[1065810592,"JOHN KEVIN FALLA GUZMAN"]
[1067837744,"DORA EMILIA PARRA ROBLEDO"]
[1067842949,"GUTIERREZ SAENZ LUZ THERLIZ"]
[1067862182,"FERNAN RODRIGUEZ MONTES"]
[1067864421,"HANDRY MARCELA SOTO SOTO"]
[1069480769,"CLAUDIA TERESA ROMERO NADER"]
[1069717042,"PEDRO ANTONIO MICAN GARCIA"]
[1069718053,"CARLOS EDUARDO ESPITIA CUECA"]
[1069718929,"ROJAS MAYORGA YURIETH PAOLA"]
[1069721012,"FIERRO MORALES GLORIA ESPERANZA"]
[1069728016,"PALACIO GONZALEZ SINDY CATHERINE"]
[1069749636,"PAEZ FORERO YIRA CATALINA"]
[1070592591,"GONZALEZ GONZALEZ YENNY FERNANDA"]
[1070918829,"DAVID EDUARDO ARANA GALVIS"]
[1070962848,"CINDY PAOLA GUTIERREZ MEJIA      "]
[1070963992,"PINILLA MOLINA JULIETH KATHERINE"]
[1070970180,"SEBASTIAN BELLO ALFARO"]
[1071162742,"AYALA ALAYON JHON JAIRO"]
[1071163928,"PEDRO LUIS BEDOYA DUARTE"]
[1072523033,"ANGELICA VERBEL LOPEZ"]
[1072638755,"MARIA FERNANDA HURTADO CAYCEDO"]
[1072650783,"MARIA NATALIA VERONICA MURILLO GARCIA "]
[1072655141,"JUAN MANUEL NUÑEZ LOPEZ"]
[1073156298,"LIZETH JAHIRA GONZALEZ VARGAS"]
[1073233274,"JOSE LUIS REY GALEANO        "]
[1073237441,"LAURA VIVIANA TAPIA GOMEZ"]
[1073240471,"LEIDY XIOMARA PENAGOS GUTIERREZ"]
[1073502781,"CHIBCHA ROMERO FABIAN MAURICIO"]
[1073509252,"JEISSON DANIEL POSADA PEÑ"]
[1073671140,"MARCO FIDEL PEDROZA HUERTAS"]
[1073671396,"ASTRID CAROLINA HERRERA DIAZ"]
[1074712067,"YUBER FERLEY ANDRADE CARDOBA      "]
[1075221430,"JUAN MANUEL MENDEZ CUARTAS"]
[1075222721,"ANDRES FELIPE MARTINEZ NUÑEZ"]
[1075239325,"JULIAN ANDRES MEDINA BRAVO"]
[1075659882,"ESCOBAR TRUJILLO SHARON LIZETH"]
[1075662186,"HERNAN DARIO GUTIERREZ VELASQUEZ     "]
[1075666375,"EDITH ANDREA SALGADO CASTILLO"]
[1076622504,"DIANA MARIA BOTIA MOSQUERA"]
[1076653361,"ANGELA PATRICIA TORRES GARCIA"]
[1077420238,"IRMA ZARINY LOZANO ASPRILLA"]
[1077426104,"WATSON STIVEN MORENO ROMAﾑA      "]
[1077426895,"CARLOS ALBERTO OQUI CARAMPAIMA"]
[1078176297,"HERNANDO QUERAGAMA MAMUNDIA"]
[1078366736,"FORERO VELASQUEZ LEIDY ESTELLA"]
[1078580226,"ZENAIDA ANDREA BADILLO BUENDIA"]
[1082851053,"CARLOS ESTEBAN VIVEROS PAEZ      "]
[1082855695,"JONATHAN EDGARDO ATENCIA BARRANCO"]
[1082857071,"LINA PAOLA SALCEDO RAMIREZ      "]
[1082858582,"LIA PATRICIA GUTIERREZ ALVARADO     "]
[1082861525,"MAIRA ALEJANDRA PAREJO BOVEA      "]
[1082870739,"STEPHANIE CAROLINA CASTRO CABARCAS"]
[1082907890,"SANDRA MILENA RADA FERNANDEZ      "]
[1082925446,"ROYSER OCTAVIO BARANDICA OROZCO"]
[1083020707,"ROSA NATHALY LAY DE LEON       "]
[1084729451,"GISSELLI PATRICIA PEÑA NAVARRO"]
[1085277666,"LUIS CAMILO MAMIAN BENAVIDES"]
[1085915883,"CAMILO ANDRES GAMARRA RODRIGUEZ"]
[1087110887,"MARIA LUZMILA BARREIRO "]
[1087120452,"GARCIA VALENCIA YESIKA "]
[1087127098,"LUCIA DEL SOCORRO CASTRO ARBOLEDA"]
[1087184984,"VICKY DANIELA CORTES TENORIO"]
[1089000568,"MARIA RUVIELA AGUIRRE CIFUENTES"]
[1089513164,"DAVID JAIR ANGULO CABEZAS       "]
[1094892409,"DIANA CAROLINA ACUﾑA QUINTERO      "]
[1094902299,"OROZCO MARIN NATALIA ANDREA"]
[1095807932,"LIZETH FERNANDA ACELAS PRADA"]
[1096033567,"JOHANNA MARCELA ESCOBAR MARTINEZ"]
[1096185621,"KAREN VANESSA CASTRO ZULUAGA"]
[1098407621,"MABEL ROCIO BRAVO LEON"]
[1098609052,"JUAN CAMILO GALVIS VILLALBA"]
[1098615606,"MARIA CATALINA SABOGAL PEREZ"]
[1098619088,"DAVILA ACEVEDO MARY ANDREA"]
[1098625529,"JOHANNA CAROLINA CAÑAS LEAL"]
[1098634802,"CARMEN YAZMIN SANABRIA LAMUS"]
[1098637458,"YESMILE MARYORY LASERNA CACERES     "]
[1098644328,"ANDRES MAURICIO BOTIA CONTRERAS"]
[1098654490,"ARIZA CRISTANCHO ZULMA NATALY"]
[1098662900,"INGRID CAROLINA VILLAMIZAR MENESES"]
[1098705997,"CARLOS GANDHI TARAZONA ROJAS"]
[1099213765,"ERIKA LIZETH NEIRA DIAZ"]
[1100951881,"DURAN DUARTE JONATHAN MIGUEL"]
[1100967399,"MARIA FERNANDA CASTILLO MEJIA      "]
[1101175639,"AMNY NATALY FORERO NIÑO"]
[1101755156,"CINDY DAYAN ARDILA VIASUS       "]
[1102379931,"LEIDY ESTEFANY SANDOVAL FERRER     "]
[1102804575,"VICTOR ALFONSO GARRIDO VELILLA"]
[1104674857,"GALLEGO SOTO JHON JAIRO"]
[1104696531,"OSCAR ANDRES PINEDA BOCANEGRA"]
[1104696774,"CHARRY LOPEZ INGRID MILENA"]
[1104698571,"ARABELLY ORJUELA SANCHEZ"]
[1104701510,"JUAN CARLOS RAMIREZ ORTEGA      "]
[1104702362,"CLAUDIA ROCIO VIVAS OSPINA"]
[1105305865,"LIZETH DANIELA REINOSO DIAZ      "]
[1105672670,"JORGE ARMANDO OSPINA CASILIMAS "]
[1105675717,"DIEGO FERNANDO ORTEGA VERA"]
[1105684091,"GERMAN ALBERTO AQUITE TAFUR"]
[1105785945,"JAIRO ALBERTO RUIZ PRIETO"]
[1106306993,"ANGELICA MARIA MUJICA OSPINA"]
[1106396460,"GUALTEROS RAMOS MARGARITA ROSA"]
[1106772546,"HAROL MAURICIO RODRIGUEZ PEREIRA"]
[1107047409,"TATIANA ZAMBRANO SANCHEZ"]
[1108232625,"GUTIERREZ GONZALEZ JESUS DAVID"]
[1108933959,"JOSE DAVID PIÑA RODRIGUEZ"]
[1110444611,"ALEX FERNANDO GONZALEZ VILLANUEVA "]
[1110445974,"BONILLA ALCAZAR DIANA CATALINA"]
[1110453991,"CATALINA CELEMIN CARDOSO"]
[1110454199,"XIMENA ALEXANDRA CORREAL CABEZAS"]
[1110456865,"JOSE LUIS ORTEGON PADILLA"]
[1110461017,"ANGELA MARIA MARTINEZ ALVIRA"]
[1110471820,"DIANA MARIA BOLAﾑOS LOPEZ       "]
[1110472734,"GLORIA ALEJANDRA VILLABON ALDANA"]
[1110475003,"CESPEDES GONZALEZ DANNA GISELLE"]
[1110476483,"JUAN PABLO ROMERO TORRES"]
[1110477730,"GALLEGO LOPEZ KAREN LORENA"]
[1110479912,"ERIKA JEANNETTE LOZANO RAMIREZ"]
[1110482018,"JAIMES AGUIRRE JORGE JEISSON"]
[1110493511,"ANDREA CAROLINA CAJIAO DELGADO"]
[1110496769,"LEIDY MARCELA MOSQUERA SOLANO"]
[1110498321,"CASTAÑEDA MURILLO GENNY MARCELA"]
[1110500003,"GONGORA SANCHEZ MONICA JULIETH"]
[1110501442,"JUAN CAMILO MEDINA ARGUELLO"]
[1110505393,"CAMILO ANDRES GOMEZ BOCANEGRA"]
[1110510355,"OSKAR ANDRES RAMON MARTINEZ "]
[1110513241,"LUIS FELIPE ARANZALEZ BRAVO"]
[1110518601,"MAITE DANIELA DUQUE ARCINIEGAS"]
[1110524564,"ANGELA CONSTANZA LAVERDE RODRIGUEZ"]
[1110528161,"ANA MARITZA SANCHEZ ORJUELA"]
[1110559402,"CAMARGO AGUIRRE DANA ALEJANDRA"]
[1111753162,"LUZ MARLING VALENCIA SINISTERRA"]
[1111756925,"EVELIN GUZMAN VALENCIA"]
[1111783353,"HEIDER LUIS ALOMIA VALENCIA"]
[1113629039,"DIEGO FERNANDO MORENO RIVAS"]
[1114487253,"JHERALDIN MOSQUERA CARVAJAL      "]
[1114889879,"DUBEY ALEJANDRA VISCUE TAQUINAS     "]
[1117811757,"LILIANA SAAVEDRA MORA"]
[1118811476,"LUIS MANUEL GOMEZ REDONDO       "]
[1119816477,"JENIFER LEONOR PINTO CORTES      "]
[1121205875,"JORGE FERNANDO MORENO BARBOSA"]
[1121817444,"CLAUDIA LISBETH HERRERA VERGARA"]
[1121820349,"LAURA VIVIANA PEﾑA        "]
[1122120914,"AGUDELO MENDIETA IREN KATERINE"]
[1122646921,"HILARY JOHANA LINARES KALVO      "]
[1122647365,"LINDA SELENE RAMOS FUENTES"]
[1122814632,"VICTOR RAFAEL MENDOZA ZARATE"]
[1123631147,"JEAN-EVE MAY BERNARD        "]
[1123631932,"MARCUS ANTONY HOOKER MARTINEZ"]
[1123996507,"STEFANO ROSANIA AGUIRRE"]
[1124851464,"NATHALIE MONTEZUMA PORRAS      "]
[1125469989,"MIGUEL BERNARDO VELOZ CABRERA"]
[1125550297,"LEIDY PAOLA MANCERA AGATON"]
[1125998518,"MELISSA MARIA MOORE DIAZ"]
[1126599090,"BRAYAN JEFERSON BARON AGUIRRE      "]
[1127950902,"CALDERON JACKSON DANIEL "]
[1128282988,"ANGARITA OSPINA JUAN DIEGO"]
[1128404337,"JULIAN DE JESUS POSADA ORTEGA"]
[1128406908,"SEBASTIAN  ORTIZ VASQUEZ"]
[1128416588,"DIANA CAROLINA MONTOYA MUÑOZ"]
[1129576738,"CAÑAS MANJARRES EVELYN TATIANA"]
[1130596336,"JULIAN ALBERTO SANTACRUZ ARANGO"]
[1130604365,"JOSE FERNANDO MEJIA VALENCIA"]
[1130607922,"LAURA MARCELA SULEZ GOMEZ       "]
[1130610581,"LUIS FERNANDO SOLIS BERMÚDEZ"]
[1130620788,"LILIAN VANESSA CORNEJO TELLO"]
[1130629725,"CARRILLO MAYO JOHANM MAURICIO"]
[1136879338,"CLAUDIA CATALINA MONTAÑEZ RUIZ"]
[1136879948,"DIANA MARITZA QUITIAN CUBIDES"]
[1136880173,"MARIA PAULA RUEDA PLATA"]
[1136880180,"SEBASTIAN JARAMILLO BERROCAL"]
[1136880541,"MAURICIO ORTIZ CORONADO"]
[1136880669,"TOMAS FERNANDEZ GUTIERREZ DE PIÑERES"]
[1136881251,"DANIELA DAZA SERRANO"]
[1136882058,"DILA FANED CASTRO GUTIERREZ"]
[1136882479,"DAVID JARAMILLO BOTERO"]
[1136882643,"JUAN FELIPE VIVES HABEYCH"]
[1136887920,"SERGIO STEVEN GARZON SANABRIA      "]
[1140816434,"ERNESTO FRABIZIO ARMELLA VELASQUEZ"]
[1140832382,"MARIA ALEJANDRA ZARTA DE LISA"]
[1143827821,"CARLOS ANDRES MARQUEZ HERNANDEZ"]
[1144047813,"JOSE FELIPE AGUILERA GIRON"]
[1151938257,"DIANA CAROLINA PINILLA ZAPATA"]

{"sheet":"Instrucciones","index":1,"n_rows":8,"n_cols":1,"rows_kept":8,"cut":false,"hidden":false,"merged":[]}
["Instrucciones:"]
[]
["1. Los campos resaltados en color verdese deben diligenciar con carácter obligatorio."]
["2. Si el campo Contratista, no se diligencia automáticamente al diligenciar el campo C.C., se debe diligenciar la celda L12"]
["3. Los campos Aporte Voluntario a Pensión, Ahorro Fomento Construcción, Medicina Prepagada, Intereses de Vivienda y Dependientes, "]
["    son de diligenciamiento opcional dependiendo de la documentación soporte que alleguen los contratistas."]
["4. Los campos relacionados bajo la Celda \"Cuenta\" se deben diligenciar conforme a las cuentas a afectar"]
["5. Se imprime el Formato  haciendo click en la imagen de la impresora"]

{"sheet":"Formato de Causación","index":2,"n_rows":130,"n_cols":28,"rows_kept":130,"cut":false,"hidden":false,"merged":[[70,1,70,10],[61,8,61,9],[62,8,62,9],[63,8,63,9],[64,8,64,9],[66,8,66,9],[67,8,67,9],[58,7,62,7],[60,8,60,9],[59,8,59,9],[65,8,65,9],[58,3,58,5],[58,8,58,9],[1,10,2,10],[16,6,16,7],[16,2,16,5],[9,1,9,10],[7,1,7,2],[13,1,13,2],[14,1,14,2],[13,5,13,7],[14,6,14,7],[15,6,15,7],[7,5,7,7],[57,17,57,18],[32,14,32,15],[34,14,34,15],[34,12,34,13],[33,12,33,13],[13,15,13,16],[49,1,49,2],[49,6,49,7],[43,1,43,10],[51,2,51,5],[51,6,51,7],[50,6,50,7],[47,4,47,5],[48,5,48,7],[48,1,48,2],[24,3,24,5],[23,7,26,7],[26,8,26,9],[25,8,25,9],[23,8,23,9],[24,8,24,9],[31,8,31,9],[10,12,10,14],[11,12,11,14],[28,8,28,9],[29,8,29,9],[30,8,30,9],[27,8,27,9],[13,12,13,13],[20,9,20,10],[21,9,21,10]]}
[null,{"$f":"((I17-SUM(K24:K25))*0.4)","v":0},false,null,null,null,null,null,null,false,false]
[null,null,null,null,null,null,null,null,null,null,"Imprimir Causación"]
[null,null,null,null,null,null,null,null,null,null,null,5.2199999999999998E-3]
[null,null,null,null,null,null,null,null,null,null,null,1.044E-2]
[null,null,null,null,null,null,null,null,null,null,null,2.436E-2]
[null,null,null,null,null,null,null,null,null,null,null,4.3499999999999997E-2]
[null,null,null,null,null,null,null,null,null,null,5.0000000000000001E-3,6.9599999999999995E-2]
[null,"ARTICULO 383",null,null,null,"Declara Renta",null,null,null,null,0.02]
[null,null,null,null,null,null,null,null,null,null,null,null,"UVT","Salario Mínimo","Base en UVT"]
[null,"FORMATO DE CAUSACION PRESTACION DE SERVICIOS",null,null,null,null,null,null,null,null,null,null,31859,737717,{"$f":"+F26/M10","v":0}]
[null,null,null,null,null,null,null,null,null,null,null,null,"Nombre Contratista Opcional"]
[]
[null,"Regimen Común",null,"Pensionado*",null,"Ingreso para IBC"]
[null,"No. CONTRATO Y VIGENCIA",null,"IBC ","SALUD","PENSION",null,null,"DIAS","ARL","Proyecto de Inversión / Rubro",null,"RANGO UVT",null,"%","RANGO VALORES"]
[null,null,null,{"$f":"IF(A23=TRUE,(I17*0.4),(IF(AND((I17*0.4)<N10,I17>0),N10,I17*0.4)))","v":0},0.125,0.16,0.17,null,null,null,null,null,"DESDE","HASTA",null,"DESDE","HASTA"]
[null,"C.C.",null,null,{"$f":"+D15*E15","v":0},{"$f":"IF(J1=TRUE,0,IF(D15<($N$10*4),D15*F15,0))","v":0},{"$f":"IF(J1=TRUE,0,IF(D15>(($N$10*4)-1),D15*G15,0))","v":0},null,null,{"$f":"ROUND((I17*0.4)*J15,-2)","v":0},null,null,0,95,0,0,{"$f":"+M10*N16","v":3026605}]
[null,"CONTRATISTA",{"$f":"IFERROR(VLOOKUP(C16,Contratistas!$A$1:$B$3616,2,0),IF(ISBLANK(M12)=TRUE,\"\",M12))","v":""},null,null,null,"Ingreso Bruto",null,{"$f":"IF(C1=TRUE,((C19/30)*I15)-C21,(C19/30*I15))","v":0},null,null,null,95,150,0.19,{"$f":"+M10*M17","v":3026605},{"$f":"+M10*N17","v":4778850}]
[null,null,null,null,null,null,null,null,null,null,null,null,150,360,0.28000000000000003,{"$f":"+M10*M18","v":4778850},{"$f":"+M10*N18","v":11469240}]
[null,"VR. MENSUALIDAD",null,null,null,null,null,null,null,"Fecha Inicio",null,null,360,1000,0.33,{"$f":"+M10*M19","v":11469240},0]
[null,"VR. ANTES DE IVA",{"$f":"IF(C1=FALSE,\"\",((C19/30)*I15)/1.19)","v":""},null,null,null,null,null,null,"Fecha Term."]
[null,"VR. IVA",{"$f":"IF(C1=FALSE,\"\",IF(C1=TRUE,((C19/30)*I15)-((C19/30)*I15)/1.19,(C19/30*I15)))","v":""},null,null,null,null,null,"Período"]
[]
[false]
["NOMBRE CUENTA","CODIGO CUENTA","DEBITO","CREDITO","% RETENCION","BASE",null,"Aportes Obligatorios y Voluntarios","Salud",null,{"$f":"+E16","v":0}]
["Honorarios Inversión",{"$f":"IFERROR(VLOOKUP(A25,A36:B41,2,0),\"\")","v":52110901},{"$f":"IF(C1=TRUE,C21+I17,I17)","v":0},null,null,null,null,null,"Pensión",null,{"$f":"IF(J1=TRUE,0,(F16+G16))","v":0}]
["Retefuente Servicios",24361502,null,{"$f":"IF((IF(O10<M19,IF(O10<M18,IF(O10<M17,0,((O10-N16)*O17)*M10),(((O10-M18)*O18)+10)*M10),(((O10-M19)*O19)+69)*M10))<0,0,IF(O10<M19,IF(O10<M18,IF(O10<M17,0,((O10-N16)*O17)*M10),(((O10-M18)*O18)+10)*M10),(((O10-M19)*O19)+69)*M10))","v":0},{"$f":"VLOOKUP(O10,M14:O19,3,1)","v":0},{"$f":"IF((I17-K32)<0,0,IF(SUM(K26:K31)<B1,(I17-K32),I17-B1-K24-K25))","v":0},null,null,"Aporte Voluntario a Pensión",null,null,"Monto Máximo a deducir en AFC"]
["ReteIVA",243625,null,{"$f":"IFERROR(E27*F27,0)","v":0},0.15,{"$f":"+C21","v":""},null,null,"Ahorro Fomento Construcción",null,null,{"$f":"(I17*0.3)-K26","v":0}]
["ReteICA",243627,null,{"$f":"+F28*E28","v":0},9.6600000000000002E-3,{"$f":"IF((I17-K24-K25)<0,0,I17-K24-K25)","v":0},null,"Otros Aportes Salud","Medicina Prepagada - Seguros\nComplementarios"]
["Estampilla Universidad Distrital",24369001,null,{"$f":"+F29*E29","v":0},0.01,{"$f":"I17","v":0},null,"Intereses","Intereses de Vivienda",null,null,"Monto Máximo a deducir en Dependientes"]
["Estampilla Pro Cultura",24369002,null,{"$f":"+F30*E30","v":0},5.0000000000000001E-3,{"$f":"I17","v":0},null,null,"Dependientes",null,null,{"$f":"IF(I17*0.1<M10*32,I17*0.1,M10*32)","v":0}]
["Estampilla Pro Adulto Mayor",24369003,null,{"$f":"+F31*E31","v":0},0.02,{"$f":"I17","v":0},null,null,"Deducciones por Renta Exenta",null,{"$f":"IF((I17-SUM(K23:K29))*0.25<240*M10,((I17-SUM(K23:K29))*0.25),M10*240)","v":0}]
["Cuentas por Pagar Honorarios",242552,null,{"$f":"+C25-D26-D27-D28-D29-D30-D31","v":0},null,null,null,null,"Total Deducciones",null,{"$f":"SUM(K24:K31)","v":0}]
[]
[null,null,null,null,null,null,null,null,null,"CONTABILIZA:"]
["* Aplica para pensionado o no obligado a cotizar pensión",null,null,"GCO-GCI-F068 VERSION 1 VIGENCIA: 30 de noviembre de 2017"]
[]
["Honorarios Inversión",52110901]
["Honorarios Funcionamiento",51111102]
["Servicios",51111103]
["Gastos de Administración - P. Ant",581588]
["Gastos de Operación - P. Ant",581589]
[]
[null,null,null,null,null,null,null,null,null,null,null,null,null,"Base en UVT"]
[null,null,null,null,null,null,null,null,null,null,null,null,null,{"$f":"+F60/M10","v":0}]
[]
[null,null,null,null,null,null,null,null,null,null,null,null,"Desde","Hasta","Impuesto en UVT"]
[null,null,null,null,null,null,null,null,null,null,null,null,0,128.96,0]
[null,null,null,null,null,null,null,null,null,null,null,null,{"$f":"+N47","v":128.96},132.36000000000001,0.09]
[null,null,null,null,null,null,null,null,null,null,null,null,132.36000000000001,135.75,0.09]
[null,null,null,null,null,null,null,null,null,null,null,null,135.75,139.13999999999999,0.09]
[null,null,null,null,null,null,null,null,null,null,null,null,139.13999999999999,142.54,0.09]
[null,null,null,null,null,null,null,null,null,null,null,null,142.54,145.93,0.1]
[null,null,null,null,null,null,null,null,null,null,null,null,145.93,149.32,0.2]
[null,null,null,null,null,null,null,null,null,null,null,null,149.32,152.72,0.2]
[null,null,null,null,null,null,null,null,null,null,null,null,152.72,156.11000000000001,0.21]
[null,null,null,null,null,null,null,null,null,null,null,null,156.11000000000001,159.51,0.4]
[null,null,null,null,null,null,null,null,null,null,null,null,159.51,162.9,0.41]
[null,null,null,null,null,null,null,null,null,null,null,null,162.9,166.29,0.41,null,null,null,null,null,null,null,null,null,null,null,null,{"$f":"VLOOKUP(N44,M46:O130,3,1)","v":0}]
[null,null,null,null,null,null,null,null,null,null,null,null,166.29,169.69,0.7]
[null,null,null,null,null,null,null,null,null,null,null,null,169.69,176.47,0.73]
[null,null,null,null,null,null,null,null,null,null,null,null,176.47,183.26,1.1499999999999999]
[null,null,null,null,null,null,null,null,null,null,null,null,183.26,190.05,1.19]
[null,null,null,null,null,null,null,null,null,null,null,null,{"$f":"+N62","v":190.05},196.84,1.65]
[null,null,null,null,null,null,null,null,null,null,null,null,{"$f":"+N63","v":196.84},203.62,2.14,null,null,null,{"$f":"+O50*M10","v":2867.31}]
[null,null,null,null,null,null,null,null,null,null,null,null,203.62,210.41,2.21]
[null,null,null,null,null,null,null,null,null,null,null,null,210.41,217.2,2.96]
[null,null,null,null,null,null,null,null,null,null,null,null,217.2,230.77,3.87]
[null,null,null,null,null,null,null,null,null,null,null,null,230.77,237.56,4.63]
[null,null,null,null,null,null,null,null,null,null,null,null,{"$f":"+N68","v":237.56},244.35,5.0599999999999996]
[null,null,null,null,null,null,null,null,null,null,null,null,244.35,257.92,5.96]
[null,null,null,null,null,null,null,null,null,null,null,null,257.92,264.70999999999998,6.44]
[null,null,null,null,null,null,null,null,null,null,null,null,264.70999999999998,271.5,6.93]
[null,null,null,null,null,null,null,null,null,null,null,null,271.5,278.29000000000002,7.44]
[null,null,null,null,null,null,null,null,null,null,null,null,{"$f":"+N73","v":278.29000000000002},285.07,7.96]
[null,null,null,null,null,null,null,null,null,null,null,null,285.07,291.86,8.5]
[null,null,null,null,null,null,null,null,null,null,null,null,291.86,298.64999999999998,9.0500000000000007]
[null,null,null,null,null,null,null,null,null,null,null,null,298.64999999999998,305.44,9.6199999999999992]
[null,null,null,null,null,null,null,null,null,null,null,null,305.44,312.22000000000003,10.210000000000001]
[null,null,null,null,null,null,null,null,null,null,null,null,312.22000000000003,319.01,10.81]
[null,null,null,null,null,null,null,null,null,null,null,null,319.01,325.8,11.43]
[null,null,null,null,null,null,null,null,null,null,null,null,{"$f":"+N80","v":325.8},332.59,12.07]
[null,null,null,null,null,null,null,null,null,null,null,null,332.59,339.37,12.71]
[null,null,null,null,null,null,null,null,null,null,null,null,339.37,356.34,14.06]
[null,null,null,null,null,null,null,null,null,null,null,null,356.34,373.31,15.83]
[null,null,null,null,null,null,null,null,null,null,null,null,373.31,390.28,17.690000000000001]
[null,null,null,null,null,null,null,null,null,null,null,null,390.28,407.25,19.649999999999999]
[null,null,null,null,null,null,null,null,null,null,null,null,407.25,424.22,21.69]
[null,null,null,null,null,null,null,null,null,null,null,null,424.22,441.19,23.84]
[null,null,null,null,null,null,null,null,null,null,null,null,441.19,458.16,26.07]
[null,null,null,null,null,null,null,null,null,null,null,null,458.16,475.12,28.39]
[null,null,null,null,null,null,null,null,null,null,null,null,475.12,492.09,30.8]
[null,null,null,null,null,null,null,null,null,null,null,null,492.09,509.06,33.29]
[null,null,null,null,null,null,null,null,null,null,null,null,509.06,526.03,35.869999999999997]
[null,null,null,null,null,null,null,null,null,null,null,null,526.03,543,38.54]
[null,null,null,null,null,null,null,null,null,null,null,null,543,559.97,41.29]
[null,null,null,null,null,null,null,null,null,null,null,null,559.97,576.94000000000005,44.11]
[null,null,null,null,null,null,null,null,null,null,null,null,576.94000000000005,593.9,47.02]
[null,null,null,null,null,null,null,null,null,null,null,null,593.9,610.87,50]
[null,null,null,null,null,null,null,null,null,null,null,null,610.87,627.84,53.06]
[null,null,null,null,null,null,null,null,null,null,null,null,627.84,644.80999999999995,56.2]
[null,null,null,null,null,null,null,null,null,null,null,null,644.80999999999995,661.78,59.4]
[null,null,null,null,null,null,null,null,null,null,null,null,661.78,678.75,62.68]
[null,null,null,null,null,null,null,null,null,null,null,null,678.75,695.72,66.02]
[null,null,null,null,null,null,null,null,null,null,null,null,695.72,712.69,69.430000000000007]
[null,null,null,null,null,null,null,null,null,null,null,null,712.69,729.65,72.900000000000006]
[null,null,null,null,null,null,null,null,null,null,null,null,729.65,746.62,76.430000000000007]
[null,null,null,null,null,null,null,null,null,null,null,null,746.62,763.59,80.03]
[null,null,null,null,null,null,null,null,null,null,null,null,763.59,780.56,83.68]
[null,null,null,null,null,null,null,null,null,null,null,null,780.56,797.53,87.39]
[null,null,null,null,null,null,null,null,null,null,null,null,797.53,814.5,91.15]
[null,null,null,null,null,null,null,null,null,null,null,null,814.5,831.47,94.96]
[null,null,null,null,null,null,null,null,null,null,null,null,831.47,848.44,98.81]
[null,null,null,null,null,null,null,null,null,null,null,null,848.44,865.4,102.72]
[null,null,null,null,null,null,null,null,null,null,null,null,865.4,882.37,106.67]
[null,null,null,null,null,null,null,null,null,null,null,null,882.37,899.34,110.65]
[null,null,null,null,null,null,null,null,null,null,null,null,899.34,916.31,114.68]
[null,null,null,null,null,null,null,null,null,null,null,null,916.31,933.28,118.74]
[null,null,null,null,null,null,null,null,null,null,null,null,933.28,950.25,122.84]
[null,null,null,null,null,null,null,null,null,null,null,null,950.25,967.22,126.96]
[null,null,null,null,null,null,null,null,null,null,null,null,967.22,984.19,131.11000000000001]
[null,null,null,null,null,null,null,null,null,null,null,null,984.19,1001.15,135.29]
[null,null,null,null,null,null,null,null,null,null,null,null,1001.15,1018.12,139.49]
[null,null,null,null,null,null,null,null,null,null,null,null,1018.12,1035.0899999999999,143.71]
[null,null,null,null,null,null,null,null,null,null,null,null,1035.0899999999999,1052.06,147.94]
[null,null,null,null,null,null,null,null,null,null,null,null,1052.06,1069.03,152.19]
[null,null,null,null,null,null,null,null,null,null,null,null,1069.03,1086,156.44999999999999]
[null,null,null,null,null,null,null,null,null,null,null,null,1086,1102.97,160.72]
[null,null,null,null,null,null,null,null,null,null,null,null,1102.97,1119.93,164.99]
[null,null,null,null,null,null,null,null,null,null,null,null,1119.93,1136.92,169.26]
[null,null,null,null,null,null,null,null,null,null,null,null,"Mas de 1136,92",null,"27%*PM – 135,17"]

{"sheet":"Lista de Chequeo","index":3,"n_rows":37,"n_cols":13,"rows_kept":37,"cut":false,"hidden":false,"merged":[[14,1,14,7],[14,10,14,12],[20,10,20,12],[27,10,27,12],[23,1,23,7],[23,10,23,12],[24,1,24,7],[24,10,24,12],[25,1,25,7],[25,10,25,12],[26,1,26,7],[26,10,26,12],[15,1,15,7],[15,10,15,12],[16,1,16,7],[16,10,16,12],[11,10,11,12],[12,1,12,7],[12,10,12,12],[13,1,13,7],[13,10,13,12],[11,1,11,7],[18,10,18,12],[22,1,22,7],[22,10,22,12],[17,1,17,7],[17,10,17,12],[18,1,18,7],[21,1,21,7],[21,10,21,12],[19,1,19,7],[19,10,19,12],[20,1,20,7],[10,1,10,7],[10,10,10,12],[6,10,6,11],[4,0,4,12],[8,8,8,9],[9,1,9,7],[9,10,9,12]]}
[]
[]
[]
[]
["PROCESO GESTIÓN Y ADQUISICIÓN DE RECURSOS \nFormato Lista de Chequeo de Soportes para Pago"]
[]
["Contrato Nº:",null,{"$f":"'Formato de Causación'!B15","v":0},"Beneficiario:",null,{"$f":"+'Formato de Causación'!C17","v":""},null,null,null,"Periodo:",{"$f":"IF(ISBLANK('Formato de Causación'!J21),\" \",'Formato de Causación'!J21)","v":" "},null,{"$f":"IF(ISBLANK('Formato de Causación'!J22),\" \",'Formato de Causación'!J22)","v":" "}]
["Dependencia:"]
[null,null,null,null,null,null,null,null,"Adjunta"]
["Documentos Básicos","Descripción",null,null,null,null,null,null,"Si","No","Observación"]
[1,"Formato de Causación"]
[2,"Certificación de cumplimiento o acta de recibo a satisfacción"]
[3,"Acta de inicio (si es primer pago)"]
[4,"Informe de actividades y soportes"]
[5,"Pago de aportes de seguridad social o Certificado de parafiscales persona jurídica"]
[6,"Resolución de pensión o recibo de pago de pensión y/o carta donde manifieste que nunca ha cotizado pensión (para mayores de 55 años)"]
[7,"Factura o Cuenta de cobro (si aplica)"]
[8,"Certificación bancaria (si es primer pago)"]
[9,"Certificación Calidad Tributaria del Contratista (Certificación Cedular)"]
[10,"Certificación de cuenta AFC y Carta autorización de descuento del pago"]
[11,"Certificación de cuenta aportes voluntarios pensión y carta solicitando el descuento"]
[12,"Certificación de intereses de vivienda pagados a 31 de diciembre del año anterior"]
[13,"Certificación de pagos a medicina prepagada a 31 de diciembre del año anterior"]
[14,"Formato de dependientes y Soportes"]
[15,"Copia de la minuta de adición, cesión, suspensión o terminación anticipada"]
[16,"Acta de liquidación y/o informe final del interventor"]
[17,"Control de retiro (si es ultimo pago)"]
[]
[]
["     Revisión Contabilidad",null,null,null,null,"          Revisión Giros",null,null,null,null,null,"      Revisión Gestión Documental"]
["     Firma",null,null,null,null,"          Firma",null,null,null,"  Orden de Pago Nº",null,"  Firma"]
["     Nombre:",{"$f":"+'Formato de Causación'!K34","v":0},null,null,null,"          Nombre:",null,null,null,null,null,"  Nombre:"]
["     Nº de Documentos Básicos:",null,null,null,null,"          Nº de Documentos Básicos:",null,null,null,null,null,"  Nº de Documentos Básicos: *"]
["     Fecha de diligenciamiento:",null,null,null,null,"          Fecha de recibido Giros:"]
[]
[]
["* La diferencia se relaciona con el documento orden de pago"]